Body name,Service Area Categorisation,Cost Centre Description,Detailed Expenses Type,Expenses Code,Date,Transaction Number,Amount,Supplier Name,Supplier ID
Solihull MBC,Children & Education Services,Castle Bromwich Inf,IT Equipment & Software,D32000,03/09/2014,38935549,3227.74,10 Squared Ltd,2115700
Solihull MBC,Children & Education Services,Afterschool Club,IT Equipment & Software,D32000,22/09/2014,40027642,220.00,2 Simple Software Ltd,91137
Solihull MBC,Children & Education Services,Fordbridge Community Primary,Software Licenses & Support,D32906,22/09/2014,40027642,430.00,2 Simple Software Ltd,91137
Solihull MBC,Children & Education Services,Tidbury Green J&I,IT Equipment & Software,D32000,10/09/2014,39497233,300.00,2Simple Software Limited,66771
Solihull MBC,Children & Education Services,St Anne's J&I,IT Equipment & Software,D32000,12/09/2014,39831548,450.00,2Simple Software Limited,66771
Solihull MBC,Adult Social Care,Winter Pressures,Other Contracted Services,E29000,25/09/2014,40092714,17142.86,3A Care Ltd,6704686
Solihull MBC,Children & Education Services,Forest Oak,Capitation,D11001,15/09/2014,39870575,242.05,4Imprint,84050
Solihull MBC,Central Services to the Public,ICT: Data Centre,IT Equipment & Software,D32000,15/09/2014,39869885,250.00,8 Solutions Ltd,127615
Solihull MBC,Children & Education Services,Evolution Project (BIP),Other Fees,D52000,09/09/2014,39374557,1950.00,90 One Education,274557
Solihull MBC,Children & Education Services,S.C.I.L. School Joint Costs,Building Maint Day To Day,B31001,04/09/2014,38977700,1482.00,A Hough,6041767
Solihull MBC,Adult Social Care,OP - North Spot Comm Care,ASC - Direct Payments,E20009,16/09/2014,39873866,340.88,Redacted Personal Data,3376692
Solihull MBC,Adult Social Care,LD Spot Comm Care,ASC - Residential Care Permanent,E20003,11/09/2014,39691551,2587.17,Redacted Personal Data,9412
Solihull MBC,Adult Social Care,LD Spot Comm Care,ASC - Residential Care Permanent,E20003,11/09/2014,39691552,1329.46,Redacted Personal Data,9412
Solihull MBC,Adult Social Care,LD Spot Comm Care,ASC - Residential Care Permanent,E20003,11/09/2014,39691553,1384.37,Redacted Personal Data,9412
Solihull MBC,Adult Social Care,LD Spot Comm Care - South,Clients Transport Costs,C21000,02/09/2014,38854554,17.00,A S C Birch,9523
Solihull MBC,Adult Social Care,PD Spot Comm Care - South,Clients Transport Costs,C21000,02/09/2014,38854554,576.00,A S C Birch,9523
Solihull MBC,Adult Social Care,LD Spot Comm Care - South,Clients Transport Costs,C21000,02/09/2014,38854554,68.00,A S C Birch,9523
Solihull MBC,Children & Education Services,Education Fire Fund,Repair & Maintn Of Buildings,B31000,08/09/2014,39193566,800.00,A T Flooring,203158
Solihull MBC,Children & Education Services,Education Fire Fund,Repair & Maintn Of Buildings,B31000,08/09/2014,39193573,3840.00,A T Flooring,203158
Solihull MBC,Children & Education Services,Education Fire Fund,Repair & Maintn Of Buildings,B31000,08/09/2014,39193569,1278.00,A T Flooring,203158
Solihull MBC,Children & Education Services,Afterschool Club,Other Fees,D52000,11/09/2014,39574547,297.00,A-Kleen Cleaning Services,105447
Solihull MBC,Children & Education Services,St Augustine's J&I,Cleaning Contracts,B40001,05/09/2014,39063606,1015.31,A-Kleen Cleaning Services,105447
Solihull MBC,Children & Education Services,Secondary Transport,Transport-Contract Hire,C30000,30/09/2014,40195607,3520.00,A-Line Coaches,222599
Solihull MBC,Children & Education Services,Castle Bromwich Inf,Photocopying,D40001,02/09/2014,38866548,483.34,A-Stat Office Technology Ltd,121926
Solihull MBC,Adult Social Care,PD Spot Comm Care,ASC - Nursing Care Permanent,E20005,22/09/2014,40029615,4228.09,Abbey Healthcare Homes Ltd,84370
Solihull MBC,Adult Social Care,PD Spot Comm Care,ASC - Nursing Care Permanent,E20005,22/09/2014,40029616,3742.41,Abbey Healthcare Homes Ltd,84370
Solihull MBC,Children & Education Services,Bishop Wilson J&I,Agency Staff: Teachers,A35001,11/09/2014,39665547,299.99,ABC Teachers,189821
Solihull MBC,Children & Education Services,Langley J&I,Agency Staff: Teachers,A35001,12/09/2014,39745547,569.97,ABC Teachers,189821
Solihull MBC,Children & Education Services,Chapel Fields Jnr,Agency Staff: Teachers,A35001,09/09/2014,39398548,744.96,ABC Teachers,189821
Solihull MBC,Children & Education Services,Damson Wood Inf,Agency Staff: Teachers,A35001,09/09/2014,39220548,569.97,ABC Teachers,189821
Solihull MBC,Children & Education Services,Fordbridge Community Primary,Agency Staff: Teachers,A35001,22/09/2014,40027629,1949.90,ABC Teachers,189821
Solihull MBC,Children & Education Services,Fordbridge Community Primary,Agency Staff: Teachers,A35001,22/09/2014,40027628,1797.09,ABC Teachers,189821
Solihull MBC,Children & Education Services,Fordbridge Community Primary,Agency Staff: Teachers,A35001,22/09/2014,40027630,1949.90,ABC Teachers,189821
Solihull MBC,Children & Education Services,Fordbridge Community Primary,Agency Staff: Teachers,A35001,23/09/2014,40068548,1602.10,ABC Teachers,189821
Solihull MBC,Children & Education Services,Ulverley J&I,Building Maint Planned,B31002,15/09/2014,39870578,6004.60,Abn.Amro Commercial Finance PLC,3321689
Solihull MBC,Children & Education Services,Ulverley J&I,Building Maint Planned,B31002,15/09/2014,39870581,793.00,Abn.Amro Commercial Finance PLC,3321689
Solihull MBC,Children & Education Services,CSW Team B U18 Local Clients,Supported Lodgings,E29007,17/09/2014,39913574,253.73,Abovenbeyond,5569686
Solihull MBC,Children & Education Services,Mill Lodge J&I,Other Premise Costs,B43000,03/09/2014,38935577,7200.00,Abrs Building & Roofing Services,6371688
Solihull MBC,Children & Education Services,Mill Lodge J&I,Other Premise Costs,B43000,03/09/2014,38935577,70.80,Abrs Building & Roofing Services,6371688
Solihull MBC,Adult Social Care,OP - Sol Hos Spot Comm Care,ASC - Nursing Care Permanent,E20005,05/09/2014,39107613,1334.86,Absolute Care Homes,2869686
Solihull MBC,Adult Social Care,OP - North Spot Comm Care,ASC - Nursing Care Permanent,E20005,05/09/2014,39107614,1746.10,Absolute Care Homes,2869686
Solihull MBC,Children & Education Services,Lyndon,Agency Staff: Teachers,A35001,23/09/2014,40038501,875.00,Academic Solutions (UK) Ltd,222215
Solihull MBC,Children & Education Services,Int. Fostering Chelmsley Wood,Other Contracted Services,E29000,11/09/2014,39724547,3314.68,Access With Choice,6120686
Solihull MBC,Children & Education Services,Int. Fostering Chelmsley Wood,Other Contracted Services,E29000,11/09/2014,39723547,3051.28,Access With Choice,6120686
Solihull MBC,Children & Education Services,CSW Team B U18 Local Clients,Supported Lodgings,E29007,30/09/2014,40235547,3104.63,Access With Choice,6120686
Solihull MBC,Children & Education Services,CSW Team B U18 Local Clients,Supported Lodgings,E29007,01/09/2014,38832548,3051.28,Access With Choice,6120686
Solihull MBC,Adult Social Care,SP - Old People Support Needs,Block Contracts,E21001,10/09/2014,39508549,7095.40,Accord Housing Association,23450
Solihull MBC,Adult Social Care,SP - Ment Disordered Offenders,Other Contracted Services,E29000,10/09/2014,39508548,2002.00,Accord Housing Association,23450
Solihull MBC,Adult Social Care,SP - Generic,Block Contracts,E21001,10/09/2014,39508547,396.93,Accord Housing Association,23450
Solihull MBC,Adult Social Care,OP - Extra Care Contract,ASC - Extra Care,E20007,08/09/2014,39138551,22570.11,Accord Housing Association,23450
Solihull MBC,Adult Social Care,Silver Birches Block,ASC - Residential Care Permanent,E20003,25/09/2014,40092604,1464.17,Accord Housing Asssociation,60226
Solihull MBC,Adult Social Care,Silver Birches Block,ASC - Residential Care Permanent,E20003,25/09/2014,40092606,61.36,Accord Housing Asssociation,60226
Solihull MBC,Adult Social Care,Silver Birches Block,ASC - Residential Care Permanent,E20003,25/09/2014,40092606,1065.43,Accord Housing Asssociation,60226
Solihull MBC,Adult Social Care,Silver Birches Block,ASC - Residential Care Permanent,E20003,25/09/2014,40092603,1219.10,Accord Housing Asssociation,60226
Solihull MBC,Adult Social Care,Silver Birches Block,ASC - Residential Care Permanent,E20003,25/09/2014,40092619,1412.94,Accord Housing Asssociation,60226
Solihull MBC,Adult Social Care,Silver Birches Block,ASC - Residential Care Permanent,E20003,25/09/2014,40092629,1544.51,Accord Housing Asssociation,60226
Solihull MBC,Adult Social Care,Silver Birches Block,ASC - Residential Care Permanent,E20003,25/09/2014,40092610,1305.76,Accord Housing Asssociation,60226
Solihull MBC,Adult Social Care,Silver Birches Block,ASC - Residential Care Permanent,E20003,25/09/2014,40092626,1375.65,Accord Housing Asssociation,60226
Solihull MBC,Adult Social Care,Silver Birches Block,ASC - Residential Care Permanent,E20003,25/09/2014,40092598,1700.79,Accord Housing Asssociation,60226
Solihull MBC,Adult Social Care,Silver Birches Block,ASC - Residential Care Permanent,E20003,25/09/2014,40092622,1436.54,Accord Housing Asssociation,60226
Solihull MBC,Adult Social Care,Silver Birches Block,ASC - Residential Care Permanent,E20003,25/09/2014,40092600,879.86,Accord Housing Asssociation,60226
Solihull MBC,Adult Social Care,Silver Birches Block,ASC - Residential Care Permanent,E20003,25/09/2014,40092620,1353.11,Accord Housing Asssociation,60226
Solihull MBC,Adult Social Care,Silver Birches Block,ASC - Residential Care Permanent,E20003,25/09/2014,40092615,1491.95,Accord Housing Asssociation,60226
Solihull MBC,Adult Social Care,Silver Birches Block,ASC - Residential Care Permanent,E20003,25/09/2014,40092607,778.19,Accord Housing Asssociation,60226
Solihull MBC,Adult Social Care,Silver Birches Block,ASC - Residential Care Permanent,E20003,25/09/2014,40092607,305.66,Accord Housing Asssociation,60226
Solihull MBC,Adult Social Care,Silver Birches Block,ASC - Residential Care Permanent,E20003,25/09/2014,40092621,1340.31,Accord Housing Asssociation,60226
Solihull MBC,Adult Social Care,Silver Birches Block,ASC - Residential Care Permanent,E20003,25/09/2014,40092608,1395.22,Accord Housing Asssociation,60226
Solihull MBC,Adult Social Care,Silver Birches Block,ASC - Residential Care Permanent,E20003,25/09/2014,40092616,1232.96,Accord Housing Asssociation,60226
Solihull MBC,Adult Social Care,Silver Birches Block,ASC - Residential Care Permanent,E20003,25/09/2014,40092609,1427.11,Accord Housing Asssociation,60226
Solihull MBC,Adult Social Care,Silver Birches Block,ASC - Residential Care Permanent,E20003,25/09/2014,40092611,1584.63,Accord Housing Asssociation,60226
Solihull MBC,Adult Social Care,Silver Birches Block,ASC - Residential Care Permanent,E20003,25/09/2014,40092623,1377.02,Accord Housing Asssociation,60226
Solihull MBC,Adult Social Care,Silver Birches Block,ASC - Residential Care Permanent,E20003,25/09/2014,40092613,1508.19,Accord Housing Asssociation,60226
Solihull MBC,Adult Social Care,Silver Birches Block,ASC - Residential Care Permanent,E20003,25/09/2014,40092618,1381.27,Accord Housing Asssociation,60226
Solihull MBC,Adult Social Care,Silver Birches Block,ASC - Residential Care Permanent,E20003,25/09/2014,40092624,1395.23,Accord Housing Asssociation,60226
Solihull MBC,Adult Social Care,Silver Birches Block,ASC - Residential Care Permanent,E20003,25/09/2014,40092601,1700.79,Accord Housing Asssociation,60226
Solihull MBC,Adult Social Care,Silver Birches Block,ASC - Residential Care Permanent,E20003,25/09/2014,40092614,1687.50,Accord Housing Asssociation,60226
Solihull MBC,Adult Social Care,Silver Birches Block,ASC - Residential Care Permanent,E20003,25/09/2014,40092612,1476.58,Accord Housing Asssociation,60226
Solihull MBC,Adult Social Care,Silver Birches Block,ASC - Residential Care Permanent,E20003,25/09/2014,40092625,1435.08,Accord Housing Asssociation,60226
Solihull MBC,Adult Social Care,Silver Birches Block,ASC - Residential Care Permanent,E20003,25/09/2014,40092602,1479.15,Accord Housing Asssociation,60226
Solihull MBC,Adult Social Care,Silver Birches Block,ASC - Residential Care Permanent,E20003,25/09/2014,40092599,779.69,Accord Housing Asssociation,60226
Solihull MBC,Adult Social Care,Silver Birches Block,ASC - Residential Care Permanent,E20003,25/09/2014,40092599,1619.88,Accord Housing Asssociation,60226
Solihull MBC,Adult Social Care,Silver Birches Block,ASC - Residential Care Permanent,E20003,25/09/2014,40092628,769.91,Accord Housing Asssociation,60226
Solihull MBC,Adult Social Care,Silver Birches Block,ASC - Residential Care Permanent,E20003,25/09/2014,40092627,2035.73,Accord Housing Asssociation,60226
Solihull MBC,Adult Social Care,Silver Birches Block,ASC - Residential Care Permanent,E20003,25/09/2014,40092617,1497.66,Accord Housing Asssociation,60226
Solihull MBC,Adult Social Care,Silver Birches Block,ASC - Residential Care Permanent,E20003,25/09/2014,40092628,1675.77,Accord Housing Asssociation,60226
Solihull MBC,Adult Social Care,OP - North Spot Comm Care,ASC - Home Care Support Services,E20019,05/09/2014,39063712,552.68,Accord- Homecare,3873841
Solihull MBC,Adult Social Care,OP - North Spot Comm Care,ASC - Home Care Support Services,E20019,26/09/2014,40115550,620.08,Accord- Homecare,3873841
Solihull MBC,Adult Social Care,PD Spot Comm Care,ASC - Home Care Support Services,E20019,05/09/2014,39063715,298.76,Accord- Homecare,3873841
Solihull MBC,Adult Social Care,OP - North Spot Comm Care,ASC - Home Care Support Services,E20019,05/09/2014,39063714,532.46,Accord- Homecare,3873841
Solihull MBC,Adult Social Care,PD Spot Comm Care,ASC - Home Care Support Services,E20019,26/09/2014,40115551,354.20,Accord- Homecare,3873841
Solihull MBC,Adult Social Care,OP - North Spot Comm Care,ASC - Home Care Support Services,E20019,26/09/2014,40115548,566.16,Accord- Homecare,3873841
Solihull MBC,Adult Social Care,LD Spot Comm Care,ASC - Home Care Support Services,E20019,26/09/2014,40115553,277.20,Accord- Homecare,3873841
Solihull MBC,Adult Social Care,OP - North Spot Comm Care,ASC - Home Care Support Services,E20019,05/09/2014,39063713,542.08,Accord- Homecare,3873841
Solihull MBC,Adult Social Care,OP - North Spot Comm Care,ASC - Home Care Support Services,E20019,26/09/2014,40115549,566.72,Accord- Homecare,3873841
Solihull MBC,Planning & Development Services,Building Control Holding Account,Professional Fees,D51000,10/09/2014,39496568,3842.79,Acivico,2289686
Solihull MBC,Other Housing Services,Policy + Spatial Planning,Professional Fees,D51000,03/09/2014,38935568,4650.00,Act On Energy,2677692
Solihull MBC,Adult Social Care,ASC - Wheelchairs,Furniture & Equipment,D10000,10/09/2014,39496566,2367.93,Activate,687635
Solihull MBC,Central Services to the Public,Organisational Development,Training,A32000,03/09/2014,38931553,1340.00,Activate Learning,5452688
Solihull MBC,Children & Education Services,Oak Cottage J&I,IT Equipment & Software,D32000,11/09/2014,39545547,1201.00,Active Visual Supplies Ltd,57805
Solihull MBC,Children & Education Services,Reynalds Cross,IT Equipment & Software,D32000,05/09/2014,39063577,25.00,Active Visual Supplies Ltd,57805
Solihull MBC,Children & Education Services,Reynalds Cross,IT Equipment & Software,D32000,05/09/2014,39063577,1441.00,Active Visual Supplies Ltd,57805
Solihull MBC,Children & Education Services,Burman,Hardware,Y13001,17/09/2014,39937547,668.00,Active Visual Supplies Ltd,57805
Solihull MBC,Children & Education Services,Our Lady Compassion  J&I,Capitation,D11001,12/09/2014,39751549,720.00,Active Visual Supplies Ltd,57805
Solihull MBC,Children & Education Services,Our Lady Compassion  J&I,Capitation,D11001,22/09/2014,40027636,211.00,Active Visual Supplies Ltd,57805
Solihull MBC,Children & Education Services,St Andrew's J&I,IT Equipment & Software,D32000,15/09/2014,39868651,3105.00,Active Visual Supplies Ltd,57805
Solihull MBC,Children & Education Services,St Anne's J&I,IT Equipment & Software,D32000,12/09/2014,39785548,2873.00,Active Visual Supplies Ltd,57805
Solihull MBC,Children & Education Services,Kingshurst Primary,IT Equipment & Software,D32000,09/09/2014,39339549,605.00,Active Visual Supplies Ltd,57805
Solihull MBC,Children & Education Services,Kingshurst Primary,IT Equipment & Software,D32000,09/09/2014,39392548,641.00,Active Visual Supplies Ltd,57805
Solihull MBC,Children & Education Services,Mill Lodge J&I,IT Equipment & Software,D32000,10/09/2014,39496774,356.00,Active Visual Supplies Ltd,57805
Solihull MBC,Planning & Development Services,Performance&Program Mngmt,Training,A32000,05/09/2014,39063636,354.00,Activia Training,244772
Solihull MBC,Children & Education Services,St Peter's,Training,A32000,10/09/2014,39511547,474.00,Adaptive Catering,181547
Solihull MBC,Children & Education Services,Meriden J&I,Alarms,B43002,09/09/2014,39412547,224.00,ADT Fire & Security PLC,10132
Solihull MBC,Children & Education Services,Yorkswood J&I,Alarms,B43002,22/09/2014,40028613,370.01,ADT Fire & Security PLC,10132
Solihull MBC,Central Services to the Public,Keepers Lodge,Other Premise Costs,B43000,02/09/2014,38875555,259.05,ADT Fire & Security PLC,10132
Solihull MBC,Children & Education Services,St Alphege Jnr,Health & Safety,B43003,15/09/2014,39868647,303.33,ADT Fire & Security PLC,10132
Solihull MBC,Children & Education Services,St Alphege Jnr,Alarms,B43002,23/09/2014,40048547,224.21,ADT Fire And Security  PLC,206540
Solihull MBC,Children & Education Services,St Alphege Jnr,Alarms,B43002,10/09/2014,39496579,2201.38,ADT Fire And Security  PLC,206540
Solihull MBC,Children & Education Services,St Alphege Jnr,Alarms,B43002,30/09/2014,40234551,528.30,ADT Fire And Security  PLC,206540
Solihull MBC,Children & Education Services,Hazel Oak,Capitation,D11001,22/09/2014,40029666,230.00,Aesops Touring Theatre Company,227511
Solihull MBC,Children & Education Services,Hazel Oak,Capitation,D11001,22/09/2014,40029666,230.00,Aesops Touring Theatre Company,227511
Solihull MBC,Children & Education Services,Adoption Team,Professional Fees,D51000,26/09/2014,40107818,3240.00,After Adoption,168658
Solihull MBC,Central Services to the Public,I & A Management,Other Fees,D52000,18/09/2014,39992582,20000.00,Age Concern,5184
Solihull MBC,Adult Social Care,SP - Old People Support Needs,Block Contracts,E21001,10/09/2014,39508550,6225.01,Age Concern Solihull,958597
Solihull MBC,Adult Social Care,Healthy Standrd of Living,Other Contracted Services,E29000,04/09/2014,38998562,1665.00,Age UK Solihull,2205695
Solihull MBC,Adult Social Care,ASC - Direct Payment Support Service,Other Contracted Services,E29000,22/09/2014,40030556,16916.67,Age UK Solihull,2205695
Solihull MBC,Adult Social Care,ASC - Joint Stores,Furniture & Equipment,D10000,29/09/2014,40135547,491.28,Aidapt Bathrooms Ltd,687651
Solihull MBC,Adult Social Care,ASC - Joint Stores,Furniture & Equipment,D10000,08/09/2014,39191548,214.80,Aidapt Bathrooms Ltd,687651
Solihull MBC,Adult Social Care,ASC - Joint Stores,Furniture & Equipment,D10000,08/09/2014,39191548,378.48,Aidapt Bathrooms Ltd,687651
Solihull MBC,Adult Social Care,ASC - Joint Stores,Furniture & Equipment,D10000,08/09/2014,39191547,320.00,Aidapt Bathrooms Ltd,687651
Solihull MBC,Adult Social Care,ASC - Joint Stores,Furniture & Equipment,D10000,08/09/2014,39143550,720.00,Aidapt Bathrooms Ltd,687651
Solihull MBC,Adult Social Care,ASC - Joint Stores,Furniture & Equipment,D10000,22/09/2014,40029679,97.00,Aidapt Bathrooms Ltd,687651
Solihull MBC,Adult Social Care,ASC - Joint Stores,Furniture & Equipment,D10000,22/09/2014,40029679,62.40,Aidapt Bathrooms Ltd,687651
Solihull MBC,Adult Social Care,ASC - Joint Stores,Furniture & Equipment,D10000,22/09/2014,40029679,66.00,Aidapt Bathrooms Ltd,687651
Solihull MBC,Adult Social Care,ASC - Joint Stores,Furniture & Equipment,D10000,22/09/2014,40029679,215.46,Aidapt Bathrooms Ltd,687651
Solihull MBC,Adult Social Care,ASC - Joint Stores,Furniture & Equipment,D10000,22/09/2014,40029679,491.28,Aidapt Bathrooms Ltd,687651
Solihull MBC,Adult Social Care,ASC - Joint Stores,Furniture & Equipment,D10000,22/09/2014,40029679,309.60,Aidapt Bathrooms Ltd,687651
Solihull MBC,Adult Social Care,ASC - Joint Stores,Furniture & Equipment,D10000,22/09/2014,40029679,720.00,Aidapt Bathrooms Ltd,687651
Solihull MBC,Adult Social Care,ASC - Joint Stores,Furniture & Equipment,D10000,22/09/2014,40029679,455.28,Aidapt Bathrooms Ltd,687651
Solihull MBC,Adult Social Care,ASC - Joint Stores,Furniture & Equipment,D10000,11/09/2014,39734551,269.64,Aidapt Bathrooms Ltd,687651
Solihull MBC,Adult Social Care,ASC - Joint Stores,Furniture & Equipment,D10000,29/09/2014,40135547,287.28,Aidapt Bathrooms Ltd,687651
Solihull MBC,Adult Social Care,ASC - Joint Stores,Furniture & Equipment,D10000,29/09/2014,40135547,600.00,Aidapt Bathrooms Ltd,687651
Solihull MBC,Adult Social Care,ASC - Joint Stores,Furniture & Equipment,D10000,02/09/2014,38837549,614.10,Aidapt Bathrooms Ltd,687651
Solihull MBC,Adult Social Care,ASC - Joint Stores,Furniture & Equipment,D10000,03/09/2014,38935557,309.60,Aidapt Bathrooms Ltd,687651
Solihull MBC,Adult Social Care,ASC - Joint Stores,Furniture & Equipment,D10000,03/09/2014,38935557,227.64,Aidapt Bathrooms Ltd,687651
Solihull MBC,Adult Social Care,ASC - Joint Stores,Furniture & Equipment,D10000,03/09/2014,38935557,539.28,Aidapt Bathrooms Ltd,687651
Solihull MBC,Adult Social Care,ASC - Joint Stores,Furniture & Equipment,D10000,29/09/2014,40129548,752.50,Aidservice Ltd,197178
Solihull MBC,Adult Social Care,ASC - Joint Stores,Furniture & Equipment,D10000,29/09/2014,40129548,-35.00,Aidservice Ltd,197178
Solihull MBC,Adult Social Care,ASC - Joint Stores,Furniture & Equipment,D10000,29/09/2014,40129548,35.00,Aidservice Ltd,197178
Solihull MBC,Central Services to the Public,Legal Services,Other Fees,D52000,01/09/2014,38809562,420.00,St Ives Chambers,2461691
Solihull MBC,Central Services to the Public,ICT: Data Centre,IT Equipment & Software,D32000,26/09/2014,40107758,3267.00,Ait Partnership Group Ltd,4270686
Solihull MBC,Children & Education Services,Daylesford Before & After,Stationery,D41000,11/09/2014,39595548,360.00,Ajaia Ltd,2093647
Solihull MBC,Adult Social Care,OP - North Spot Comm Care,ASC - Nursing Care Permanent,E20005,15/09/2014,39869627,1604.96,Akari Care Ltd,2677701
Solihull MBC,Children & Education Services,Top Up Funding - SEC,Other Contracted Services,E29000,18/09/2014,39992609,12892.00,Alderbrook School,1691620
Solihull MBC,Children & Education Services,Top Up Funding - ARCS,Other Contracted Services,E29000,18/09/2014,39992609,10748.00,Alderbrook School,1691620
Solihull MBC,Adult Social Care,OP South Spot Comm Care,ASC - Domiciliary Care,E20008,25/09/2014,40092587,1288.00,Aldermore Invoice Finance - Plan It Home Care Ltd,4912686
Solihull MBC,Adult Social Care,Prior Year Spot PMT 12/13,ASC - Domiciliary Care,E20008,25/09/2014,40092585,378.00,Aldermore Invoice Finance - Plan It Home Care Ltd,4912686
Solihull MBC,Adult Social Care,OP - North Spot Comm Care,ASC - Domiciliary Care,E20008,25/09/2014,40092591,1092.00,Aldermore Invoice Finance - Plan It Home Care Ltd,4912686
Solihull MBC,Adult Social Care,Winter Pressures,ASC - Domiciliary Care,E20008,25/09/2014,40092595,441.00,Aldermore Invoice Finance - Plan It Home Care Ltd,4912686
Solihull MBC,Adult Social Care,OP - North Spot Comm Care,ASC - Domiciliary Care,E20008,25/09/2014,40092590,2604.00,Aldermore Invoice Finance - Plan It Home Care Ltd,4912686
Solihull MBC,Adult Social Care,OP South Spot Comm Care,ASC - Domiciliary Care,E20008,25/09/2014,40092586,455.00,Aldermore Invoice Finance - Plan It Home Care Ltd,4912686
Solihull MBC,Adult Social Care,OP - North Spot Comm Care,ASC - Domiciliary Care,E20008,25/09/2014,40092589,315.00,Aldermore Invoice Finance - Plan It Home Care Ltd,4912686
Solihull MBC,Adult Social Care,OP South Spot Comm Care,ASC - Domiciliary Care,E20008,25/09/2014,40092592,651.00,Aldermore Invoice Finance - Plan It Home Care Ltd,4912686
Solihull MBC,Adult Social Care,PD Spot Comm Care,ASC - Residential Care Permanent,E20003,05/09/2014,39107569,3991.87,Alexandra Centre For Physical Disability,2185686
Solihull MBC,Adult Social Care,OP - North Spot Comm Care,ASC - Direct Payments,E20009,16/09/2014,39873823,1264.36,Redacted Personal Data,3329686
Solihull MBC,Adult Social Care,PD Spot Comm Care - South,ASC - Direct Payments,E20009,16/09/2014,39873938,1454.20,Redacted Personal Data,239391
Solihull MBC,Children & Education Services,Special Transport,Clients Transport Costs,C21000,15/09/2014,39870553,467.40,Redacted Personal Data,6604686
Solihull MBC,Planning & Development Services,Nhood Mgt Area 1 Staff,Other Contracted Services,E29000,25/09/2014,40078234,1070.00,Alison Saint,272457
Solihull MBC,Adult Social Care,LD Spot Comm Care,ASC - Residential Care Permanent,E20003,11/09/2014,39691547,2214.95,Redacted Personal Data,5529
Solihull MBC,Adult Social Care,LD Spot Comm Care,ASC - Residential Care Permanent,E20003,11/09/2014,39691549,2279.47,Redacted Personal Data,5529
Solihull MBC,Adult Social Care,LD Spot Comm Care,ASC - Residential Care Permanent,E20003,11/09/2014,39691548,1683.08,Redacted Personal Data,5529
Solihull MBC,Children & Education Services,Smith's Wood,Capitation,D11001,05/09/2014,39103562,1176.95,Alkemygold Ltd,3067688
Solihull MBC,Children & Education Services,Yew Tree J&I,Maintenance Of Grounds,B30000,04/09/2014,39012549,327.50,All Seasons Garden Services,283336
Solihull MBC,Children & Education Services,Damson Wood Inf,Maintenance Of Grounds,B30000,18/09/2014,39991602,1465.00,All Seasons Garden Services,283336
Solihull MBC,Children & Education Services,Damson Wood Inf,Maintenance Of Grounds,B30000,12/09/2014,39830549,2830.00,All Seasons Garden Services,283336
Solihull MBC,Children & Education Services,Chapel Fields Jnr,Building Maint Day To Day,B31001,09/09/2014,39397560,390.00,All Seasons Garden Services,283336
Solihull MBC,Children & Education Services,Oak Cottage J&I,Maintenance Of Grounds,B30000,08/09/2014,39130617,495.00,All Seasons Garden Services,283336
Solihull MBC,Children & Education Services,Chapel Fields Jnr,Maintenance Of Grounds,B30000,09/09/2014,39397556,324.17,All Seasons Garden Services,283336
Solihull MBC,Children & Education Services,Tidbury Green J&I,Catering Provisions,D20000,10/09/2014,39497245,310.00,Alliance In Partnership Ltd,3585692
Solihull MBC,Adult Social Care,LD Spot Comm Care,ASC - Residential Care Permanent,E20003,04/09/2014,38973712,8352.95,Alophonsus Services Ltd,1124612
Solihull MBC,Adult Social Care,OP - North Spot Comm Care,ASC - Nursing Care Permanent,E20005,12/09/2014,39761551,2093.52,Alpha Health Care Ltd,5595
Solihull MBC,Adult Social Care,PD Spot Comm Care - South,ASC - Direct Payments,E20009,16/09/2014,39873884,1162.60,Redacted Personal Data,3084687
Solihull MBC,Adult Social Care,OP - North Spot Comm Care,ASC - Carers Direct Payment,E20001,26/09/2014,40115579,400.00,Redacted Personal Data,6699688
Solihull MBC,Adult Social Care,PD Spot Comm Care - South,ASC - Nursing Care Permanent,E20005,12/09/2014,39761616,4874.35,Amberley Court Nursing Home,126185
Solihull MBC,Adult Social Care,OP South Spot Comm Care,ASC - Residential Care Permanent,E20003,17/09/2014,39909611,1562.71,Anchor Homes - Kerria Court,688062
Solihull MBC,Children & Education Services,St Augustine's J&I,Capitation,D11001,05/09/2014,39063623,9.50,Andrell Education Ltd,125363
Solihull MBC,Children & Education Services,St Augustine's J&I,Capitation,D11001,05/09/2014,39063623,300.00,Andrell Education Ltd,125363
Solihull MBC,Children & Education Services,St Augustine's J&I,Training,A32000,05/09/2014,39063617,360.00,Andrell Education Ltd,125363
Solihull MBC,Adult Social Care,LD Spot Comm Care,ASC - Direct Payments,E20009,16/09/2014,39874080,700.08,Redacted Personal Data,173478
Solihull MBC,Children & Education Services,Special Transport,Clients Transport Costs,C21000,11/09/2014,39691564,1026.00,Redacted Personal Data,189142
Solihull MBC,Children & Education Services,Fostering Extra District,Foster Parents,D50000,09/09/2014,39415335,400.00,Redacted Personal Data,225471
Solihull MBC,Children & Education Services,Fostering Extra District,Foster Parents,D50000,30/09/2014,40196114,400.00,Redacted Personal Data,225471
Solihull MBC,Children & Education Services,Fostering Extra District,Foster Parents,D50000,23/09/2014,40038038,400.00,Redacted Personal Data,225471
Solihull MBC,Children & Education Services,Fostering Extra District,Foster Parents,D50000,16/09/2014,39872940,400.00,Redacted Personal Data,225471
Solihull MBC,Children & Education Services,Fostering Extra District,Foster Parents,D50000,02/09/2014,38867741,400.00,Redacted Personal Data,225471
Solihull MBC,Children & Education Services,Section 17 CDT,Clients Expenses,D62000,24/09/2014,40077727,328.10,Redacted Personal Data,281557
Solihull MBC,Children & Education Services,Section 17 CDT,Clients Expenses,D62000,24/09/2014,40077728,303.03,Redacted Personal Data,281557
Solihull MBC,Adult Social Care,OP - North Spot Comm Care,ASC - Home Care Support Services,E20019,04/09/2014,38973948,281.60,Angels Healthcare Ltd,687666
Solihull MBC,Adult Social Care,OP - North Spot Comm Care,ASC - Home Care Support Services,E20019,04/09/2014,38973946,396.80,Angels Healthcare Ltd,687666
Solihull MBC,Adult Social Care,OP - North Spot Comm Care,ASC - Home Care Support Services,E20019,04/09/2014,38973941,302.76,Angels Healthcare Ltd,687666
Solihull MBC,Adult Social Care,OP - North Spot Comm Care,ASC - Home Care Support Services,E20019,04/09/2014,38973951,448.00,Angels Healthcare Ltd,687666
Solihull MBC,Adult Social Care,OP - Roundmead Reablement Team,ASC - Domiciliary Care,E20008,04/09/2014,38973930,914.25,Angels Healthcare Ltd,687666
Solihull MBC,Adult Social Care,Winter Pressures,Other Contracted Services,E29000,08/09/2014,39137548,907.63,Angels Healthcare Ltd,687666
Solihull MBC,Adult Social Care,Winter Pressures,Other Contracted Services,E29000,08/09/2014,39137550,1563.50,Angels Healthcare Ltd,687666
Solihull MBC,Adult Social Care,Heart Hos Spot Comm Care,ASC - Out of hospital,E20012,04/09/2014,38973939,406.25,Angels Healthcare Ltd,687666
Solihull MBC,Adult Social Care,OP - North Spot Comm Care,ASC - Home Care Support Services,E20019,04/09/2014,38973956,355.20,Angels Healthcare Ltd,687666
Solihull MBC,Adult Social Care,OP - North Spot Comm Care,ASC - Home Care Support Services,E20019,04/09/2014,38973949,716.80,Angels Healthcare Ltd,687666
Solihull MBC,Adult Social Care,OP - Roundmead Reablement Team,ASC - Domiciliary Care,E20008,04/09/2014,38973927,649.25,Angels Healthcare Ltd,687666
Solihull MBC,Adult Social Care,OP - Roundmead Reablement Team,ASC - Domiciliary Care,E20008,04/09/2014,38973935,503.50,Angels Healthcare Ltd,687666
Solihull MBC,Adult Social Care,OP - Roundmead Reablement Team,ASC - Domiciliary Care,E20008,04/09/2014,38973933,755.25,Angels Healthcare Ltd,687666
Solihull MBC,Adult Social Care,OP - North Spot Comm Care,ASC - Home Care Support Services,E20019,04/09/2014,38973943,1433.60,Angels Healthcare Ltd,687666
Solihull MBC,Adult Social Care,OP - North Spot Comm Care,ASC - Home Care Support Services,E20019,04/09/2014,38973947,371.20,Angels Healthcare Ltd,687666
Solihull MBC,Adult Social Care,OP - North Spot Comm Care,ASC - Home Care Support Services,E20019,04/09/2014,38973950,1459.20,Angels Healthcare Ltd,687666
Solihull MBC,Adult Social Care,OP - Roundmead Reablement Team,ASC - Domiciliary Care,E20008,04/09/2014,38973936,539.94,Angels Healthcare Ltd,687666
Solihull MBC,Adult Social Care,OP - North Spot Comm Care,ASC - Home Care Support Services,E20019,04/09/2014,38973953,499.20,Angels Healthcare Ltd,687666
Solihull MBC,Children & Education Services,Special Transport,Clients Transport Costs,C21000,11/09/2014,39691587,433.20,Redacted Personal Data,6548686
Solihull MBC,Adult Social Care,LD Spot Comm Care - South,ASC - Direct Payments,E20009,16/09/2014,39874091,290.98,Redacted Personal Data,2795687
Solihull MBC,Central Services to the Public,Multi Functional Printers,General Office Expenses,D42000,12/09/2014,39759552,2337.20,Annodata Business Communications,100865
Solihull MBC,Central Services to the Public,Multi Functional Printers,General Office Expenses,D42000,01/09/2014,38803556,5436.30,Annodata Business Communications,100865
Solihull MBC,Adult Social Care,LD Spot Comm Care - South,ASC - Direct Payments,E20009,16/09/2014,39874060,1424.64,Redacted Personal Data,688091
Solihull MBC,Adult Social Care,OP - North Spot Comm Care,ASC - Direct Payments,E20009,16/09/2014,39874014,326.82,Redacted Personal Data,3210697
Solihull MBC,Children & Education Services,Ulverley J&I,Training,A32000,25/09/2014,40093596,3215.00,Apac Ltd,6697686
Solihull MBC,Children & Education Services,Forest Oak,Other Fees,D52000,11/09/2014,39660547,636.37,Apec Architects Ltd,2000681
Solihull MBC,Adult Social Care,OP South Spot Comm Care,ASC - Day Care,E20010,22/09/2014,40029630,630.00,Apna Ghar(1995) Ltd,6039
Solihull MBC,Adult Social Care,OP South Spot Comm Care,ASC - Day Care,E20010,22/09/2014,40029629,350.00,Apna Ghar(1995) Ltd,6039
Solihull MBC,Children & Education Services,Smith's Wood,Meetings & Other Expenses,D61002,09/09/2014,39290548,488.40,Aquaaid (Midlands),78951
Solihull MBC,Children & Education Services,Smith's Wood,Meetings & Other Expenses,D61002,09/09/2014,39292547,546.60,Aquaaid (Midlands),78951
Solihull MBC,Children & Education Services,Castle Bromwich Inf,Health & Safety,B43003,03/09/2014,38935553,850.20,Aquaid,71388
Solihull MBC,Children & Education Services,Daylesford Inf,Health & Safety,B43003,11/09/2014,39548548,606.80,Aquaid,71388
Solihull MBC,Children & Education Services,Damson Wood Inf,Health & Safety,B43003,09/09/2014,39353547,376.80,Aquaid,71388
Solihull MBC,Adult Social Care,ASC - Joint Stores,Furniture & Equipment,D10000,12/09/2014,39829547,15.00,"Aquajoy Bathlifts Ltd.,",687669
Solihull MBC,Adult Social Care,ASC - Joint Stores,Furniture & Equipment,D10000,12/09/2014,39829547,712.00,"Aquajoy Bathlifts Ltd.,",687669
Solihull MBC,Children & Education Services,Academy & Contingency SEN,Other Contracted Services,E29000,22/09/2014,40027592,7200.00,Archway Community College,1872614
Solihull MBC,Children & Education Services,Lanchester,Training,A32000,02/09/2014,38835556,1100.00,Archway Community College,1872614
Solihull MBC,Children & Education Services,Academy & Contingency SEN,Other Contracted Services,E29000,08/09/2014,39141552,1440.00,Archway Community College,1872614
Solihull MBC,Children & Education Services,Top Up Funding - SEC,Other Contracted Services,E29000,18/09/2014,39992607,5966.00,Arden Academy Trust,483596
Solihull MBC,Children & Education Services,St Augustine's J&I,Health & Safety,B43003,05/09/2014,39063624,550.00,Arden Gates Ltd,275893
Solihull MBC,Children & Education Services,Oaklands N Hse Acad Proj,Furniture & Equipment,Y13000,23/09/2014,40038429,1863.00,Arden Interiors,4019691
Solihull MBC,Adult Social Care,OP - Sol Hos Spot Comm Care,ASC - Nursing Care Permanent,E20005,12/09/2014,39761621,1540.97,Ardenlea Court,96816
Solihull MBC,Adult Social Care,OP - North Spot Comm Care,ASC - Nursing Care Permanent,E20005,12/09/2014,39761622,3031.27,Ardenlea Court,96816
Solihull MBC,Adult Social Care,OP - North Spot Comm Care,ASC - Nursing Care Permanent,E20005,12/09/2014,39761619,1419.93,Ardenlea Grove,688097
Solihull MBC,Adult Social Care,OP South Spot Comm Care,ASC - Nursing Care Permanent,E20005,12/09/2014,39761618,2791.20,Ardenlea Grove,688097
Solihull MBC,Adult Social Care,PD Spot Comm Care - South,ASC - Nursing Care Permanent,E20005,12/09/2014,39761617,3396.98,Ardenlea Grove,688097
Solihull MBC,Adult Social Care,OP South Spot Comm Care,ASC - Nursing Care Permanent,E20005,12/09/2014,39761620,1599.25,Ardenlea Grove,688097
Solihull MBC,Environmental and Regulatory Services,Town Centres and Events,Other Fees,D52000,02/09/2014,38871557,175.00,Aries Entertainment Ltd,221331
Solihull MBC,Environmental and Regulatory Services,Town Centres and Events,Other Fees,D52000,02/09/2014,38871557,295.00,Aries Entertainment Ltd,221331
Solihull MBC,Central Services to the Public,Landlord Team,Servicing,B31304,17/09/2014,39904594,391.31,Arjo Ltd,6307
Solihull MBC,Central Services to the Public,Landlord Team,Servicing,B31304,17/09/2014,39904597,236.00,Arjo Ltd,6307
Solihull MBC,Central Services to the Public,Landlord Team,Servicing,B31304,17/09/2014,39904596,600.00,Arjo Ltd,6307
Solihull MBC,Adult Social Care,ASC - Joint Stores,Furniture & Equipment,D10000,01/09/2014,38813551,745.94,Arjohuntleigh,3307691
Solihull MBC,Adult Social Care,ASC - Joint Stores,Furniture & Equipment,D10000,01/09/2014,38813551,7362.06,Arjohuntleigh,3307691
Solihull MBC,Children & Education Services,LDC Stores,Cleaning,B40000,24/09/2014,40090559,3.96,Arrow County Supplies,6340
Solihull MBC,Children & Education Services,LDC Stores,Cleaning,B40000,24/09/2014,40090559,72.50,Arrow County Supplies,6340
Solihull MBC,Children & Education Services,LDC Stores,Cleaning,B40000,24/09/2014,40090559,361.20,Arrow County Supplies,6340
Solihull MBC,Children & Education Services,LDC Stores,Cleaning,B40000,24/09/2014,40090559,43.15,Arrow County Supplies,6340
Solihull MBC,Children & Education Services,LDC Stores,Cleaning,B40000,24/09/2014,40090559,81.24,Arrow County Supplies,6340
Solihull MBC,Children & Education Services,LDC Stores,Cleaning,B40000,18/09/2014,39992583,42.60,Arrow County Supplies,6340
Solihull MBC,Children & Education Services,LDC Stores,Cleaning,B40000,18/09/2014,39992583,66.81,Arrow County Supplies,6340
Solihull MBC,Children & Education Services,LDC Stores,Cleaning,B40000,18/09/2014,39992583,142.32,Arrow County Supplies,6340
Solihull MBC,Children & Education Services,LDC Stores,Cleaning,B40000,18/09/2014,39992583,361.20,Arrow County Supplies,6340
Solihull MBC,Children & Education Services,LDC Stores,Cleaning,B40000,18/09/2014,39992583,10.65,Arrow County Supplies,6340
Solihull MBC,Children & Education Services,LDC Stores,Cleaning,B40000,24/09/2014,40090559,3.96,Arrow County Supplies,6340
Solihull MBC,Children & Education Services,LDC Stores,Cleaning,B40000,08/09/2014,39194548,160.20,Arrow County Supplies,6340
Solihull MBC,Children & Education Services,LDC Stores,Cleaning,B40000,08/09/2014,39194548,71.16,Arrow County Supplies,6340
Solihull MBC,Children & Education Services,LDC Stores,Cleaning,B40000,08/09/2014,39194548,3.55,Arrow County Supplies,6340
Solihull MBC,Adult Social Care,OP - North Spot Comm Care,ASC - Direct Payments,E20009,16/09/2014,39874137,618.16,Redacted Personal Data,688099
Solihull MBC,Children & Education Services,Coppice Jnr,Professional Fees,D51000,09/09/2014,39267547,7260.00,Artis Education Ltd,239663
Solihull MBC,Children & Education Services,Forest Oak,Examination Fees,D52001,15/09/2014,39870580,350.00,Asdan,107778
Solihull MBC,Children & Education Services,Forest Oak,Capitation,D11001,23/09/2014,40038534,1045.95,Asdan,107778
Solihull MBC,Children & Education Services,Forest Oak,Capitation,D11001,04/09/2014,38978547,1123.25,Asdan,107778
Solihull MBC,Children & Education Services,Reynalds Cross,Capitation,D11001,04/09/2014,38989547,600.00,Asdan,107778
Solihull MBC,Children & Education Services,Merstone,Capitation,D11001,02/09/2014,38872553,903.40,Asdan,107778
Solihull MBC,Children & Education Services,Merstone,Capitation,D11001,10/09/2014,39488547,350.00,Asdan,107778
Solihull MBC,Adult Social Care,OP South Spot Comm Care,ASC - Residential Care Permanent,E20003,15/09/2014,39869686,429.00,Ashdale Residential,57021
Solihull MBC,Highways & Transport Services,Car Parks Expenditure,Repair & Maintn Of Buildings,B31000,11/09/2014,39690548,1125.00,Ashdown Phillips & Partners Ltd,2424758
Solihull MBC,Adult Social Care,OP South Spot Comm Care,ASC - Residential Care Permanent,E20003,12/09/2014,39761623,925.66,Ashley Lodge,6517
Solihull MBC,Adult Social Care,SP - Black & Ethnic Minority,Block Contracts,E21001,10/09/2014,39508551,2723.48,Ashram Housing Association Ltd,65191
Solihull MBC,Cultural & Related Services,Libraries Resources Fund,Materials,D11000,03/09/2014,38945560,15.05,Askews Library Services Ltd,6562
Solihull MBC,Cultural & Related Services,Libraries Resources Fund,Materials,D11000,16/09/2014,39872822,157.30,Askews Library Services Ltd,6562
Solihull MBC,Cultural & Related Services,Libraries Resources Fund,Materials,D11000,30/09/2014,40195585,50.02,Askews Library Services Ltd,6562
Solihull MBC,Cultural & Related Services,Libraries Resources Fund,Materials,D11000,03/09/2014,38945560,797.49,Askews Library Services Ltd,6562
Solihull MBC,Cultural & Related Services,Libraries Resources Fund,Materials,D11000,03/09/2014,38945560,3.37,Askews Library Services Ltd,6562
Solihull MBC,Cultural & Related Services,Libraries Resources Fund,Materials,D11000,08/09/2014,39170550,834.10,Askews Library Services Ltd,6562
Solihull MBC,Cultural & Related Services,Libraries Resources Fund,Materials,D11000,16/09/2014,39872822,883.49,Askews Library Services Ltd,6562
Solihull MBC,Cultural & Related Services,Libraries Resources Fund,Materials,D11000,08/09/2014,39170550,747.41,Askews Library Services Ltd,6562
Solihull MBC,Cultural & Related Services,Libraries Resources Fund,Materials,D11000,30/09/2014,40195585,475.56,Askews Library Services Ltd,6562
Solihull MBC,Cultural & Related Services,Libraries Resources Fund,Materials,D11000,22/09/2014,40027604,370.94,Askews Library Services Ltd,6562
Solihull MBC,Cultural & Related Services,Libraries Resources Fund,Materials,D11000,08/09/2014,39170550,975.78,Askews Library Services Ltd,6562
Solihull MBC,Cultural & Related Services,Libraries Resources Fund,Materials,D11000,03/09/2014,38945560,143.92,Askews Library Services Ltd,6562
Solihull MBC,Cultural & Related Services,Libraries Resources Fund,Materials,D11000,03/09/2014,38945560,733.95,Askews Library Services Ltd,6562
Solihull MBC,Cultural & Related Services,Libraries Resources Fund,Materials,D11000,30/09/2014,40195585,425.56,Askews Library Services Ltd,6562
Solihull MBC,Cultural & Related Services,Libraries Resources Fund,Materials,D11000,30/09/2014,40195585,2038.40,Askews Library Services Ltd,6562
Solihull MBC,Cultural & Related Services,Libraries Resources Fund,Materials,D11000,22/09/2014,40027604,406.60,Askews Library Services Ltd,6562
Solihull MBC,Cultural & Related Services,Libraries Resources Fund,Materials,D11000,22/09/2014,40027604,455.93,Askews Library Services Ltd,6562
Solihull MBC,Cultural & Related Services,Libraries Resources Fund,Materials,D11000,16/09/2014,39872822,234.47,Askews Library Services Ltd,6562
Solihull MBC,Cultural & Related Services,Libraries Resources Fund,Materials,D11000,16/09/2014,39872822,406.59,Askews Library Services Ltd,6562
Solihull MBC,Cultural & Related Services,Libraries Resources Fund,Materials,D11000,30/09/2014,40195585,99.21,Askews Library Services Ltd,6562
Solihull MBC,Cultural & Related Services,Libraries Resources Fund,Materials,D11000,22/09/2014,40027604,144.31,Askews Library Services Ltd,6562
Solihull MBC,Cultural & Related Services,Libraries Resources Fund,Materials,D11000,16/09/2014,39872822,51.63,Askews Library Services Ltd,6562
Solihull MBC,Cultural & Related Services,Libraries Resources Fund,Materials,D11000,08/09/2014,39170550,70.11,Askews Library Services Ltd,6562
Solihull MBC,Cultural & Related Services,Libraries Resources Fund,Materials,D11000,03/09/2014,38945560,38.94,Askews Library Services Ltd,6562
Solihull MBC,Cultural & Related Services,Libraries Resources Fund,Materials,D11000,03/09/2014,38945558,237.97,Askews Library Services Ltd,6562
Solihull MBC,Adult Social Care,LD Spot Comm Care - South,ASC - Domiciliary Care,E20008,19/09/2014,39996582,7047.23,Aspects Care Ltd,2651706
Solihull MBC,Adult Social Care,LD Spot Comm Care - South,ASC - Home Care Support Services,E20019,19/09/2014,39996588,1854.72,Aspects Care Ltd,2651706
Solihull MBC,Adult Social Care,LD Spot Comm Care - South,ASC - Domiciliary Care,E20008,19/09/2014,39996584,3724.65,Aspects Care Ltd,2651706
Solihull MBC,Adult Social Care,LD Spot Comm Care - South,ASC - Domiciliary Care,E20008,19/09/2014,39996581,4419.67,Aspects Care Ltd,2651706
Solihull MBC,Adult Social Care,LD Spot Comm Care - South,ASC - Domiciliary Care,E20008,19/09/2014,39996586,4570.64,Aspects Care Ltd,2651706
Solihull MBC,Adult Social Care,LD Spot Comm Care,ASC - Domiciliary Care,E20008,19/09/2014,39996583,6844.18,Aspects Care Ltd,2651706
Solihull MBC,Adult Social Care,LD Spot Comm Care - South,ASC - Home Care Support Services,E20019,19/09/2014,39996587,824.32,Aspects Care Ltd,2651706
Solihull MBC,Adult Social Care,LD Spot Comm Care - South,ASC - Domiciliary Care,E20008,19/09/2014,39996585,7047.23,Aspects Care Ltd,2651706
Solihull MBC,Children & Education Services,Smith's Wood,Agency Staff: Teachers,A35001,18/09/2014,39994635,2692.50,Aspire People Ltd,186698
Solihull MBC,Children & Education Services,Smith's Wood,Agency Staff: Teachers,A35001,17/09/2014,39978547,1000.00,Aspire People Ltd,186698
Solihull MBC,Highways & Transport Services,LSTF-Poplar Rd/Station Rd,Consultants,Y31000,25/09/2014,40078200,2000.00,Atkins,3714802
Solihull MBC,Highways & Transport Services,Carriageway Maintenance,Consultants,Y31000,12/09/2014,39859548,4881.20,Atkins,3714802
Solihull MBC,Highways & Transport Services,Network Management Staff,Agency Staff,A35000,12/09/2014,39862549,3204.25,Atkins,3714802
Solihull MBC,Highways & Transport Services,Lode Ln Route Improvement,Consultants,Y31000,08/09/2014,39130646,2994.96,Atkins,3714802
Solihull MBC,Highways & Transport Services,Traffic Management Staff,Agency Staff,A35000,24/09/2014,40077701,15434.39,Atkins,3714802
Solihull MBC,Highways & Transport Services,Highway Design Staff,Agency Staff,A35000,12/09/2014,39863547,14548.57,Atkins,3714802
Solihull MBC,Planning & Development Services,Craig Croft Village Centre,Consultants,Y31000,12/09/2014,39862547,3768.30,Atkins,3714802
Solihull MBC,Highways & Transport Services,Flood Management,Professional Fees,D51000,12/09/2014,39858547,3357.36,Atkins Ltd,108832
Solihull MBC,Planning & Development Services,Windward Way units,Other Premise Costs,B43000,16/09/2014,39872798,-60.00,Audible & Visual Security Ltd,6784
Solihull MBC,Planning & Development Services,Windward Way units,Other Premise Costs,B43000,16/09/2014,39872798,60.00,Audible & Visual Security Ltd,6784
Solihull MBC,Planning & Development Services,Windward Way units,Other Premise Costs,B43000,16/09/2014,39872798,240.00,Audible & Visual Security Ltd,6784
Solihull MBC,Central Services to the Public,Internal Audit,Grant & Subscription (SCITT),D92000,25/09/2014,40078186,4000.00,Audit Commission,6806
Solihull MBC,Adult Social Care,OP South Spot Comm Care,ASC - Direct Payments,E20009,16/09/2014,39873914,630.40,Redacted Personal Data,5441686
Solihull MBC,Adult Social Care,ASC - WFD - Social Workers,Training,A32000,24/09/2014,40081548,525.00,Autism West Midlands,80510
Solihull MBC,Adult Social Care,LD Spot Comm Care,ASC - Residential Care Permanent,E20003,05/09/2014,39107650,6358.41,Autism West Midlands,80510
Solihull MBC,Adult Social Care,LD Spot Comm Care,ASC - Residential Care Permanent,E20003,05/09/2014,39107649,4320.47,Autism West Midlands,80510
Solihull MBC,Adult Social Care,LD Spot Comm Care,ASC - Residential Care Permanent,E20003,05/09/2014,39107648,6629.66,Autism West Midlands,80510
Solihull MBC,Adult Social Care,LD Spot Comm Care,ASC - Residential Care Permanent,E20003,05/09/2014,39107651,10053.61,Autism West Midlands,80510
Solihull MBC,Adult Social Care,LD Spot Comm Care,ASC - Residential Care Permanent,E20003,05/09/2014,39107652,6289.28,Autism West Midlands,80510
Solihull MBC,Environmental and Regulatory Services,Methane Gas Abstraction,Other Contracted Services,E29000,04/09/2014,38998559,340.00,Automatic Flare Systems Ltd,85570
Solihull MBC,Cultural & Related Services,Business Support,Transport-Contract Hire,C30000,03/09/2014,38906548,318.57,Automotive Leasing (Orders),688119
Solihull MBC,Cultural & Related Services,Business Support,Transport-Contract Hire,C30000,03/09/2014,38902585,318.57,Automotive Leasing (Orders),688119
Solihull MBC,Highways & Transport Services,Street Lighting Contract 1,Transport-Contract Hire,C30000,09/09/2014,39323547,347.42,Automotive Leasing (Orders),688119
Solihull MBC,Highways & Transport Services,Street Lighting Contract 1,Transport-Contract Hire,C30000,09/09/2014,39325547,236.78,Automotive Leasing (Orders),688119
Solihull MBC,Cultural & Related Services,Business Support,Transport-Contract Hire,C30000,08/09/2014,39193559,318.57,Automotive Leasing (Orders),688119
Solihull MBC,Planning & Development Services,Environmental Crime,Car Allowances: Officers,C10000,23/09/2014,40038288,305.12,Automotive Leasing (Orders),688119
Solihull MBC,Highways & Transport Services,Traffic Management Staff,Transport-Contract Hire,C30000,19/09/2014,40010547,210.80,Automotive Leasing (Orders),688119
Solihull MBC,Highways & Transport Services,Tankers,Transport-Contract Hire,C30000,09/09/2014,39331547,347.42,Automotive Leasing (Orders),688119
Solihull MBC,Adult Social Care,ASC - Wheelchairs,Transport-Contract Hire,C30000,08/09/2014,39135553,324.26,Automotive Leasing (Orders),688119
Solihull MBC,Cultural & Related Services,Park Rangers,Transport-Contract Hire,C30000,04/09/2014,38974590,281.81,Automotive Leasing (Orders),688119
Solihull MBC,Cultural & Related Services,Park Rangers,Transport-Contract Hire,C30000,04/09/2014,38974591,297.37,Automotive Leasing (Orders),688119
Solihull MBC,Cultural & Related Services,Park Rangers,Transport-Contract Hire,C30000,04/09/2014,38974592,297.37,Automotive Leasing (Orders),688119
Solihull MBC,Adult Social Care,ASC - Joint Stores,Transport-Contract Hire,C30000,08/09/2014,39135549,341.28,Automotive Leasing (Orders),688119
Solihull MBC,Adult Social Care,ASC - Joint Stores,Transport-Contract Hire,C30000,08/09/2014,39135551,445.24,Automotive Leasing (Orders),688119
Solihull MBC,Adult Social Care,ASC - Joint Stores,Transport-Contract Hire,C30000,08/09/2014,39135554,341.28,Automotive Leasing (Orders),688119
Solihull MBC,Highways & Transport Services,Street Lighting Contract 1,Transport-Contract Hire,C30000,09/09/2014,39326547,236.78,Automotive Leasing (Orders),688119
Solihull MBC,Adult Social Care,ASC - Joint Stores,Transport-Contract Hire,C30000,08/09/2014,39135556,324.26,Automotive Leasing (Orders),688119
Solihull MBC,Children & Education Services,St Alphege Jnr,Capitation,D11001,15/09/2014,39868648,2974.00,Avantis Systems Ltd,229260
Solihull MBC,Adult Social Care,OP - North Spot Comm Care,ASC - Residential Care Permanent,E20003,04/09/2014,38973715,1272.02,Avery Homes Wolverhampton,2386687
Solihull MBC,Central Services to the Public,Bid Control Account,Bid Refunds,R29902,16/09/2014,39874551,669.70,Aviva Life & Pensions UK Ltd,252368
Solihull MBC,Children & Education Services,Forest Oak,Agency Staff: Teachers,A35001,04/09/2014,38984547,825.00,Axcis Education Recruitment,1698614
Solihull MBC,Adult Social Care,OP South Spot Comm Care,ASC - Direct Payments,E20009,16/09/2014,39873929,655.20,Redacted Personal Data,688124
Solihull MBC,Children & Education Services,ATC-CSW Staffing Team 1,Car Allowances: Officers,C10000,10/09/2014,39496932,15.00,Redacted Personal Data,1706698
Solihull MBC,Children & Education Services,ATC-CSW Staffing Team 1,Car Allowances: Officers,C10000,10/09/2014,39496932,13.75,Redacted Personal Data,1706698
Solihull MBC,Children & Education Services,ATC-CSW Staffing Team 1,Car Allowances: Officers,C10000,10/09/2014,39496932,5.00,Redacted Personal Data,1706698
Solihull MBC,Children & Education Services,ATC-CSW Staffing Team 1,Car Allowances: Officers,C10000,10/09/2014,39496932,26.25,Redacted Personal Data,1706698
Solihull MBC,Children & Education Services,ATC-CSW Staffing Team 1,Car Allowances: Officers,C10000,10/09/2014,39496932,7.50,Redacted Personal Data,1706698
Solihull MBC,Children & Education Services,ATC-CSW Staffing Team 1,Car Allowances: Officers,C10000,10/09/2014,39496932,24.58,Redacted Personal Data,1706698
Solihull MBC,Children & Education Services,ATC-CSW Staffing Team 1,Car Allowances: Officers,C10000,10/09/2014,39496932,22.50,Redacted Personal Data,1706698
Solihull MBC,Children & Education Services,ATC-CSW Staffing Team 1,Car Allowances: Officers,C10000,10/09/2014,39496932,27.75,Redacted Personal Data,1706698
Solihull MBC,Children & Education Services,ATC-CSW Staffing Team 1,Car Allowances: Officers,C10000,10/09/2014,39496932,24.17,Redacted Personal Data,1706698
Solihull MBC,Children & Education Services,ATC-CSW Staffing Team 1,Car Allowances: Officers,C10000,10/09/2014,39496932,4.50,Redacted Personal Data,1706698
Solihull MBC,Children & Education Services,ATC-CSW Staffing Team 1,Car Allowances: Officers,C10000,10/09/2014,39496932,28.42,Redacted Personal Data,1706698
Solihull MBC,Children & Education Services,ATC-CSW Staffing Team 1,Car Allowances: Officers,C10000,10/09/2014,39496932,22.50,Redacted Personal Data,1706698
Solihull MBC,Children & Education Services,ATC-CSW Staffing Team 1,Car Allowances: Officers,C10000,10/09/2014,39496932,27.75,Redacted Personal Data,1706698
Solihull MBC,Children & Education Services,ATC-CSW Staffing Team 1,Car Allowances: Officers,C10000,10/09/2014,39496932,24.17,Redacted Personal Data,1706698
Solihull MBC,Children & Education Services,ATC-CSW Staffing Team 1,Car Allowances: Officers,C10000,10/09/2014,39496932,13.50,Redacted Personal Data,1706698
Solihull MBC,Children & Education Services,ATC-CSW Staffing Team 1,Car Allowances: Officers,C10000,10/09/2014,39496932,15.00,Redacted Personal Data,1706698
Solihull MBC,Children & Education Services,Adoption Team,Advertising/Publicity/Promotion,D93000,25/09/2014,40078296,337.00,BAAF,124674
Solihull MBC,Children & Education Services,Kingshurst Primary,Stationery,D41000,24/09/2014,40077673,290.15,Badgemaster Ltd,96299
Solihull MBC,Adult Social Care,LD Spot Comm Care,ASC - Direct Payments,E20009,16/09/2014,39874057,709.80,Redacted Personal Data,256978
Solihull MBC,Highways & Transport Services,Struct Mtce Carriageways�,Other Contracted Services,E29000,22/09/2014,40027618,1666.83,Balfour Beatty Living Places Ltd,3171686
Solihull MBC,Highways & Transport Services,Struct Mtce Carriageways�,Other Contracted Services,E29000,22/09/2014,40027618,34721.73,Balfour Beatty Living Places Ltd,3171686
Solihull MBC,Highways & Transport Services,Struct Mtce Carriageways�,Other Contracted Services,E29000,22/09/2014,40027618,4614.79,Balfour Beatty Living Places Ltd,3171686
Solihull MBC,Highways & Transport Services,Struct Mtce Carriageways�,Other Contracted Services,E29000,22/09/2014,40027618,1784.88,Balfour Beatty Living Places Ltd,3171686
Solihull MBC,Highways & Transport Services,Struct Mtce Carriageways�,Other Contracted Services,E29000,22/09/2014,40027618,9241.60,Balfour Beatty Living Places Ltd,3171686
Solihull MBC,Highways & Transport Services,Struct Mtce Carriageways�,Other Contracted Services,E29000,22/09/2014,40027618,65.07,Balfour Beatty Living Places Ltd,3171686
Solihull MBC,Highways & Transport Services,Struct Mtce Carriageways�,Other Contracted Services,E29000,22/09/2014,40027618,9.57,Balfour Beatty Living Places Ltd,3171686
Solihull MBC,Highways & Transport Services,Struct Mtce Carriageways�,Other Contracted Services,E29000,22/09/2014,40027618,84.18,Balfour Beatty Living Places Ltd,3171686
Solihull MBC,Highways & Transport Services,Struct Mtce Carriageways�,Other Contracted Services,E29000,22/09/2014,40027618,93.75,Balfour Beatty Living Places Ltd,3171686
Solihull MBC,Highways & Transport Services,Struct Mtce Carriageways�,Other Contracted Services,E29000,22/09/2014,40027618,9.57,Balfour Beatty Living Places Ltd,3171686
Solihull MBC,Highways & Transport Services,Struct Mtce Carriageways�,Other Contracted Services,E29000,22/09/2014,40027618,16.27,Balfour Beatty Living Places Ltd,3171686
Solihull MBC,Highways & Transport Services,Struct Mtce Carriageways�,Other Contracted Services,E29000,22/09/2014,40027618,3.54,Balfour Beatty Living Places Ltd,3171686
Solihull MBC,Highways & Transport Services,Struct Mtce Carriageways�,Other Contracted Services,E29000,22/09/2014,40027618,5.84,Balfour Beatty Living Places Ltd,3171686
Solihull MBC,Highways & Transport Services,Struct Mtce Carriageways�,Other Contracted Services,E29000,22/09/2014,40027618,9.57,Balfour Beatty Living Places Ltd,3171686
Solihull MBC,Highways & Transport Services,Struct Mtce Carriageways�,Other Contracted Services,E29000,22/09/2014,40027618,269.78,Balfour Beatty Living Places Ltd,3171686
Solihull MBC,Highways & Transport Services,Struct Mtce Carriageways�,Other Contracted Services,E29000,22/09/2014,40027618,9.57,Balfour Beatty Living Places Ltd,3171686
Solihull MBC,Highways & Transport Services,Struct Mtce Carriageways�,Other Contracted Services,E29000,22/09/2014,40027618,9.57,Balfour Beatty Living Places Ltd,3171686
Solihull MBC,Highways & Transport Services,Struct Mtce Carriageways�,Other Contracted Services,E29000,22/09/2014,40027618,19.15,Balfour Beatty Living Places Ltd,3171686
Solihull MBC,Highways & Transport Services,Struct Mtce Carriageways�,Other Contracted Services,E29000,22/09/2014,40027618,17.52,Balfour Beatty Living Places Ltd,3171686
Solihull MBC,Highways & Transport Services,Struct Mtce Carriageways�,Other Contracted Services,E29000,22/09/2014,40027618,9.57,Balfour Beatty Living Places Ltd,3171686
Solihull MBC,Highways & Transport Services,Struct Mtce Carriageways�,Other Contracted Services,E29000,22/09/2014,40027618,9.57,Balfour Beatty Living Places Ltd,3171686
Solihull MBC,Highways & Transport Services,Struct Mtce Carriageways�,Other Contracted Services,E29000,22/09/2014,40027618,9.57,Balfour Beatty Living Places Ltd,3171686
Solihull MBC,Highways & Transport Services,Struct Mtce Carriageways�,Other Contracted Services,E29000,22/09/2014,40027618,19.15,Balfour Beatty Living Places Ltd,3171686
Solihull MBC,Highways & Transport Services,Struct Mtce Carriageways�,Other Contracted Services,E29000,22/09/2014,40027618,16.27,Balfour Beatty Living Places Ltd,3171686
Solihull MBC,Highways & Transport Services,Struct Mtce Carriageways�,Other Contracted Services,E29000,22/09/2014,40027618,9.57,Balfour Beatty Living Places Ltd,3171686
Solihull MBC,Highways & Transport Services,Struct Mtce Carriageways�,Other Contracted Services,E29000,22/09/2014,40027618,32.54,Balfour Beatty Living Places Ltd,3171686
Solihull MBC,Highways & Transport Services,Struct Mtce Carriageways�,Other Contracted Services,E29000,22/09/2014,40027618,16.27,Balfour Beatty Living Places Ltd,3171686
Solihull MBC,Highways & Transport Services,Struct Mtce Carriageways�,Other Contracted Services,E29000,22/09/2014,40027618,16.27,Balfour Beatty Living Places Ltd,3171686
Solihull MBC,Highways & Transport Services,Struct Mtce Carriageways�,Other Contracted Services,E29000,22/09/2014,40027618,28.72,Balfour Beatty Living Places Ltd,3171686
Solihull MBC,Highways & Transport Services,Struct Mtce Carriageways�,Other Contracted Services,E29000,22/09/2014,40027618,4.79,Balfour Beatty Living Places Ltd,3171686
Solihull MBC,Highways & Transport Services,Struct Mtce Carriageways�,Other Contracted Services,E29000,22/09/2014,40027618,104.29,Balfour Beatty Living Places Ltd,3171686
Solihull MBC,Highways & Transport Services,Struct Mtce Carriageways�,Other Contracted Services,E29000,22/09/2014,40027618,94.71,Balfour Beatty Living Places Ltd,3171686
Solihull MBC,Highways & Transport Services,Struct Mtce Carriageways�,Other Contracted Services,E29000,22/09/2014,40027618,94.71,Balfour Beatty Living Places Ltd,3171686
Solihull MBC,Highways & Transport Services,Struct Mtce Carriageways�,Other Contracted Services,E29000,22/09/2014,40027618,67.45,Balfour Beatty Living Places Ltd,3171686
Solihull MBC,Highways & Transport Services,Struct Mtce Carriageways�,Other Contracted Services,E29000,22/09/2014,40027618,94.71,Balfour Beatty Living Places Ltd,3171686
Solihull MBC,Highways & Transport Services,Struct Mtce Carriageways�,Other Contracted Services,E29000,22/09/2014,40027618,77.02,Balfour Beatty Living Places Ltd,3171686
Solihull MBC,Highways & Transport Services,Struct Mtce Carriageways�,Other Contracted Services,E29000,22/09/2014,40027618,94.71,Balfour Beatty Living Places Ltd,3171686
Solihull MBC,Highways & Transport Services,Struct Mtce Carriageways�,Other Contracted Services,E29000,22/09/2014,40027618,9.57,Balfour Beatty Living Places Ltd,3171686
Solihull MBC,Highways & Transport Services,Struct Mtce Carriageways�,Other Contracted Services,E29000,22/09/2014,40027618,9.57,Balfour Beatty Living Places Ltd,3171686
Solihull MBC,Highways & Transport Services,Struct Mtce Carriageways�,Other Contracted Services,E29000,22/09/2014,40027618,38.30,Balfour Beatty Living Places Ltd,3171686
Solihull MBC,Highways & Transport Services,Struct Mtce Carriageways�,Other Contracted Services,E29000,22/09/2014,40027618,82.30,Balfour Beatty Living Places Ltd,3171686
Solihull MBC,Highways & Transport Services,Struct Mtce Carriageways�,Other Contracted Services,E29000,22/09/2014,40027618,82.30,Balfour Beatty Living Places Ltd,3171686
Solihull MBC,Highways & Transport Services,Struct Mtce Carriageways�,Other Contracted Services,E29000,22/09/2014,40027618,82.30,Balfour Beatty Living Places Ltd,3171686
Solihull MBC,Highways & Transport Services,Struct Mtce Carriageways�,Other Contracted Services,E29000,22/09/2014,40027618,82.30,Balfour Beatty Living Places Ltd,3171686
Solihull MBC,Highways & Transport Services,Struct Mtce Carriageways�,Other Contracted Services,E29000,22/09/2014,40027618,28.72,Balfour Beatty Living Places Ltd,3171686
Solihull MBC,Highways & Transport Services,SRTS Minor Works,Contractors,Y21000,22/09/2014,40027618,1826.30,Balfour Beatty Living Places Ltd,3171686
Solihull MBC,Highways & Transport Services,Streetcare-Cleanse/Ground,Other Contracted Services,E29000,22/09/2014,40027618,405.00,Balfour Beatty Living Places Ltd,3171686
Solihull MBC,Highways & Transport Services,Salting & Gritting,Other Contracted Services,E29000,22/09/2014,40027618,512.00,Balfour Beatty Living Places Ltd,3171686
Solihull MBC,Highways & Transport Services,Struct Mtce Carriageways�,Other Contracted Services,E29000,22/09/2014,40027618,857.78,Balfour Beatty Living Places Ltd,3171686
Solihull MBC,Highways & Transport Services,LSTF-Poplar Rd/Station Rd,Contractors,Y21000,22/09/2014,40027618,1786.28,Balfour Beatty Living Places Ltd,3171686
Solihull MBC,Highways & Transport Services,Struct Mtce Carriageways�,Other Contracted Services,E29000,22/09/2014,40027618,5008.66,Balfour Beatty Living Places Ltd,3171686
Solihull MBC,Highways & Transport Services,Struct Mtce Carriageways�,Other Contracted Services,E29000,22/09/2014,40027618,631.94,Balfour Beatty Living Places Ltd,3171686
Solihull MBC,Highways & Transport Services,Struct Mtce Carriageways�,Other Contracted Services,E29000,22/09/2014,40027618,6745.56,Balfour Beatty Living Places Ltd,3171686
Solihull MBC,Highways & Transport Services,Struct Mtce Carriageways�,Other Contracted Services,E29000,22/09/2014,40027618,8392.90,Balfour Beatty Living Places Ltd,3171686
Solihull MBC,Highways & Transport Services,Struct Mtce Carriageways�,Other Contracted Services,E29000,22/09/2014,40027618,656.99,Balfour Beatty Living Places Ltd,3171686
Solihull MBC,Highways & Transport Services,Struct Mtce Carriageways�,Other Contracted Services,E29000,22/09/2014,40027618,607.53,Balfour Beatty Living Places Ltd,3171686
Solihull MBC,Highways & Transport Services,Struct Mtce Carriageways�,Other Contracted Services,E29000,22/09/2014,40027618,900.65,Balfour Beatty Living Places Ltd,3171686
Solihull MBC,Highways & Transport Services,Struct Mtce Carriageways�,Other Contracted Services,E29000,22/09/2014,40027618,6700.46,Balfour Beatty Living Places Ltd,3171686
Solihull MBC,Highways & Transport Services,Struct Mtce Carriageways�,Other Contracted Services,E29000,22/09/2014,40027618,5502.41,Balfour Beatty Living Places Ltd,3171686
Solihull MBC,Highways & Transport Services,Struct Mtce Carriageways�,Other Contracted Services,E29000,22/09/2014,40027618,1900.30,Balfour Beatty Living Places Ltd,3171686
Solihull MBC,Highways & Transport Services,Struct Mtce Carriageways�,Other Contracted Services,E29000,22/09/2014,40027618,2775.19,Balfour Beatty Living Places Ltd,3171686
Solihull MBC,Highways & Transport Services,Struct Mtce Carriageways�,Other Contracted Services,E29000,22/09/2014,40027618,1424.11,Balfour Beatty Living Places Ltd,3171686
Solihull MBC,Highways & Transport Services,Struct Mtce Carriageways�,Other Contracted Services,E29000,22/09/2014,40027618,1511.19,Balfour Beatty Living Places Ltd,3171686
Solihull MBC,Highways & Transport Services,Struct Mtce Carriageways�,Other Contracted Services,E29000,22/09/2014,40027618,3432.79,Balfour Beatty Living Places Ltd,3171686
Solihull MBC,Highways & Transport Services,Struct Mtce Carriageways�,Other Contracted Services,E29000,22/09/2014,40027618,92.45,Balfour Beatty Living Places Ltd,3171686
Solihull MBC,Highways & Transport Services,Struct Mtce Carriageways�,Other Contracted Services,E29000,22/09/2014,40027618,92.45,Balfour Beatty Living Places Ltd,3171686
Solihull MBC,Highways & Transport Services,Struct Mtce Carriageways�,Other Contracted Services,E29000,22/09/2014,40027618,9.57,Balfour Beatty Living Places Ltd,3171686
Solihull MBC,Highways & Transport Services,Struct Mtce Carriageways�,Other Contracted Services,E29000,22/09/2014,40027618,9.57,Balfour Beatty Living Places Ltd,3171686
Solihull MBC,Highways & Transport Services,Struct Mtce Carriageways�,Other Contracted Services,E29000,22/09/2014,40027618,57.44,Balfour Beatty Living Places Ltd,3171686
Solihull MBC,Highways & Transport Services,Struct Mtce Carriageways�,Other Contracted Services,E29000,22/09/2014,40027618,91.87,Balfour Beatty Living Places Ltd,3171686
Solihull MBC,Highways & Transport Services,Struct Mtce Carriageways�,Other Contracted Services,E29000,22/09/2014,40027618,82.30,Balfour Beatty Living Places Ltd,3171686
Solihull MBC,Highways & Transport Services,Struct Mtce Carriageways�,Other Contracted Services,E29000,22/09/2014,40027618,94.71,Balfour Beatty Living Places Ltd,3171686
Solihull MBC,Highways & Transport Services,Struct Mtce Carriageways�,Other Contracted Services,E29000,22/09/2014,40027618,94.71,Balfour Beatty Living Places Ltd,3171686
Solihull MBC,Highways & Transport Services,Struct Mtce Carriageways�,Other Contracted Services,E29000,22/09/2014,40027618,105.41,Balfour Beatty Living Places Ltd,3171686
Solihull MBC,Highways & Transport Services,Struct Mtce Carriageways�,Other Contracted Services,E29000,22/09/2014,40027618,9.57,Balfour Beatty Living Places Ltd,3171686
Solihull MBC,Highways & Transport Services,Struct Mtce Carriageways�,Other Contracted Services,E29000,22/09/2014,40027618,28.72,Balfour Beatty Living Places Ltd,3171686
Solihull MBC,Highways & Transport Services,Struct Mtce Carriageways�,Other Contracted Services,E29000,22/09/2014,40027618,28.72,Balfour Beatty Living Places Ltd,3171686
Solihull MBC,Highways & Transport Services,Struct Mtce Carriageways�,Other Contracted Services,E29000,22/09/2014,40027618,1.10,Balfour Beatty Living Places Ltd,3171686
Solihull MBC,Highways & Transport Services,Struct Mtce Carriageways�,Other Contracted Services,E29000,22/09/2014,40027618,82.30,Balfour Beatty Living Places Ltd,3171686
Solihull MBC,Highways & Transport Services,Struct Mtce Carriageways�,Other Contracted Services,E29000,22/09/2014,40027618,19.15,Balfour Beatty Living Places Ltd,3171686
Solihull MBC,Highways & Transport Services,Struct Mtce Carriageways�,Other Contracted Services,E29000,22/09/2014,40027618,88.46,Balfour Beatty Living Places Ltd,3171686
Solihull MBC,Highways & Transport Services,Struct Mtce Carriageways�,Other Contracted Services,E29000,22/09/2014,40027618,84.18,Balfour Beatty Living Places Ltd,3171686
Solihull MBC,Highways & Transport Services,Struct Mtce Carriageways�,Other Contracted Services,E29000,22/09/2014,40027618,82.30,Balfour Beatty Living Places Ltd,3171686
Solihull MBC,Highways & Transport Services,Struct Mtce Carriageways�,Other Contracted Services,E29000,22/09/2014,40027618,84.18,Balfour Beatty Living Places Ltd,3171686
Solihull MBC,Highways & Transport Services,Struct Mtce Carriageways�,Other Contracted Services,E29000,22/09/2014,40027618,93.75,Balfour Beatty Living Places Ltd,3171686
Solihull MBC,Highways & Transport Services,Struct Mtce Carriageways�,Other Contracted Services,E29000,22/09/2014,40027618,65.07,Balfour Beatty Living Places Ltd,3171686
Solihull MBC,Highways & Transport Services,Struct Mtce Carriageways�,Other Contracted Services,E29000,22/09/2014,40027618,65.07,Balfour Beatty Living Places Ltd,3171686
Solihull MBC,Highways & Transport Services,Struct Mtce Carriageways�,Other Contracted Services,E29000,22/09/2014,40027618,5.84,Balfour Beatty Living Places Ltd,3171686
Solihull MBC,Highways & Transport Services,Struct Mtce Carriageways�,Other Contracted Services,E29000,22/09/2014,40027618,82.30,Balfour Beatty Living Places Ltd,3171686
Solihull MBC,Highways & Transport Services,Struct Mtce Carriageways�,Other Contracted Services,E29000,22/09/2014,40027618,9.57,Balfour Beatty Living Places Ltd,3171686
Solihull MBC,Highways & Transport Services,Struct Mtce Carriageways�,Other Contracted Services,E29000,22/09/2014,40027618,84.18,Balfour Beatty Living Places Ltd,3171686
Solihull MBC,Highways & Transport Services,Struct Mtce Carriageways�,Other Contracted Services,E29000,22/09/2014,40027618,91.87,Balfour Beatty Living Places Ltd,3171686
Solihull MBC,Highways & Transport Services,Struct Mtce Carriageways�,Other Contracted Services,E29000,22/09/2014,40027618,84.18,Balfour Beatty Living Places Ltd,3171686
Solihull MBC,Highways & Transport Services,Struct Mtce Carriageways�,Other Contracted Services,E29000,22/09/2014,40027618,9.57,Balfour Beatty Living Places Ltd,3171686
Solihull MBC,Highways & Transport Services,Struct Mtce Carriageways�,Other Contracted Services,E29000,22/09/2014,40027618,693.33,Balfour Beatty Living Places Ltd,3171686
Solihull MBC,Highways & Transport Services,Struct Mtce Carriageways�,Other Contracted Services,E29000,22/09/2014,40027618,12.83,Balfour Beatty Living Places Ltd,3171686
Solihull MBC,Highways & Transport Services,Struct Mtce Carriageways�,Other Contracted Services,E29000,22/09/2014,40027618,103.41,Balfour Beatty Living Places Ltd,3171686
Solihull MBC,Highways & Transport Services,Struct Mtce Carriageways�,Other Contracted Services,E29000,22/09/2014,40027618,82.30,Balfour Beatty Living Places Ltd,3171686
Solihull MBC,Highways & Transport Services,Struct Mtce Carriageways�,Other Contracted Services,E29000,22/09/2014,40027618,82.30,Balfour Beatty Living Places Ltd,3171686
Solihull MBC,Highways & Transport Services,Struct Mtce Carriageways�,Other Contracted Services,E29000,22/09/2014,40027618,85.72,Balfour Beatty Living Places Ltd,3171686
Solihull MBC,Highways & Transport Services,Struct Mtce Carriageways�,Other Contracted Services,E29000,22/09/2014,40027618,82.30,Balfour Beatty Living Places Ltd,3171686
Solihull MBC,Highways & Transport Services,Struct Mtce Carriageways�,Other Contracted Services,E29000,22/09/2014,40027618,82.30,Balfour Beatty Living Places Ltd,3171686
Solihull MBC,Highways & Transport Services,Struct Mtce Carriageways�,Other Contracted Services,E29000,22/09/2014,40027618,3.42,Balfour Beatty Living Places Ltd,3171686
Solihull MBC,Highways & Transport Services,Struct Mtce Carriageways�,Other Contracted Services,E29000,22/09/2014,40027618,9.57,Balfour Beatty Living Places Ltd,3171686
Solihull MBC,Highways & Transport Services,Struct Mtce Carriageways�,Other Contracted Services,E29000,22/09/2014,40027618,87.27,Balfour Beatty Living Places Ltd,3171686
Solihull MBC,Highways & Transport Services,Struct Mtce Carriageways�,Other Contracted Services,E29000,22/09/2014,40027618,82.30,Balfour Beatty Living Places Ltd,3171686
Solihull MBC,Highways & Transport Services,Struct Mtce Carriageways�,Other Contracted Services,E29000,22/09/2014,40027618,9.57,Balfour Beatty Living Places Ltd,3171686
Solihull MBC,Highways & Transport Services,Struct Mtce Carriageways�,Other Contracted Services,E29000,22/09/2014,40027618,84.18,Balfour Beatty Living Places Ltd,3171686
Solihull MBC,Highways & Transport Services,Struct Mtce Carriageways�,Other Contracted Services,E29000,22/09/2014,40027618,84.18,Balfour Beatty Living Places Ltd,3171686
Solihull MBC,Highways & Transport Services,Struct Mtce Carriageways�,Other Contracted Services,E29000,22/09/2014,40027618,139.74,Balfour Beatty Living Places Ltd,3171686
Solihull MBC,Highways & Transport Services,Struct Mtce Carriageways�,Other Contracted Services,E29000,22/09/2014,40027618,10.26,Balfour Beatty Living Places Ltd,3171686
Solihull MBC,Highways & Transport Services,Struct Mtce Carriageways�,Other Contracted Services,E29000,22/09/2014,40027618,84.18,Balfour Beatty Living Places Ltd,3171686
Solihull MBC,Highways & Transport Services,Struct Mtce Carriageways�,Other Contracted Services,E29000,22/09/2014,40027618,9.57,Balfour Beatty Living Places Ltd,3171686
Solihull MBC,Highways & Transport Services,Struct Mtce Carriageways�,Other Contracted Services,E29000,22/09/2014,40027618,9.57,Balfour Beatty Living Places Ltd,3171686
Solihull MBC,Highways & Transport Services,Struct Mtce Carriageways�,Other Contracted Services,E29000,22/09/2014,40027618,84.18,Balfour Beatty Living Places Ltd,3171686
Solihull MBC,Highways & Transport Services,Struct Mtce Carriageways�,Other Contracted Services,E29000,22/09/2014,40027618,84.18,Balfour Beatty Living Places Ltd,3171686
Solihull MBC,Highways & Transport Services,Struct Mtce Carriageways�,Other Contracted Services,E29000,22/09/2014,40027618,84.18,Balfour Beatty Living Places Ltd,3171686
Solihull MBC,Highways & Transport Services,Struct Mtce Carriageways�,Other Contracted Services,E29000,22/09/2014,40027618,52664.95,Balfour Beatty Living Places Ltd,3171686
Solihull MBC,Highways & Transport Services,Struct Mtce Carriageways�,Other Contracted Services,E29000,22/09/2014,40027618,9829.70,Balfour Beatty Living Places Ltd,3171686
Solihull MBC,Highways & Transport Services,Struct Mtce Carriageways�,Other Contracted Services,E29000,22/09/2014,40027618,24862.90,Balfour Beatty Living Places Ltd,3171686
Solihull MBC,Highways & Transport Services,Struct Mtce Carriageways�,Other Contracted Services,E29000,22/09/2014,40027618,19.15,Balfour Beatty Living Places Ltd,3171686
Solihull MBC,Highways & Transport Services,Struct Mtce Carriageways�,Other Contracted Services,E29000,22/09/2014,40027618,113.86,Balfour Beatty Living Places Ltd,3171686
Solihull MBC,Highways & Transport Services,Struct Mtce Carriageways�,Other Contracted Services,E29000,22/09/2014,40027618,9.57,Balfour Beatty Living Places Ltd,3171686
Solihull MBC,Highways & Transport Services,Struct Mtce Carriageways�,Other Contracted Services,E29000,22/09/2014,40027618,13.50,Balfour Beatty Living Places Ltd,3171686
Solihull MBC,Highways & Transport Services,Struct Mtce Carriageways�,Other Contracted Services,E29000,22/09/2014,40027618,9.57,Balfour Beatty Living Places Ltd,3171686
Solihull MBC,Highways & Transport Services,Struct Mtce Carriageways�,Other Contracted Services,E29000,22/09/2014,40027618,82.30,Balfour Beatty Living Places Ltd,3171686
Solihull MBC,Highways & Transport Services,Struct Mtce Carriageways�,Other Contracted Services,E29000,22/09/2014,40027618,38.30,Balfour Beatty Living Places Ltd,3171686
Solihull MBC,Highways & Transport Services,Struct Mtce Carriageways�,Other Contracted Services,E29000,22/09/2014,40027618,1.50,Balfour Beatty Living Places Ltd,3171686
Solihull MBC,Highways & Transport Services,Struct Mtce Carriageways�,Other Contracted Services,E29000,22/09/2014,40027618,111.02,Balfour Beatty Living Places Ltd,3171686
Solihull MBC,Highways & Transport Services,Struct Mtce Carriageways�,Other Contracted Services,E29000,22/09/2014,40027618,111.60,Balfour Beatty Living Places Ltd,3171686
Solihull MBC,Highways & Transport Services,Struct Mtce Carriageways�,Other Contracted Services,E29000,22/09/2014,40027618,9.57,Balfour Beatty Living Places Ltd,3171686
Solihull MBC,Highways & Transport Services,Struct Mtce Carriageways�,Other Contracted Services,E29000,22/09/2014,40027618,91.71,Balfour Beatty Living Places Ltd,3171686
Solihull MBC,Highways & Transport Services,Struct Mtce Carriageways�,Other Contracted Services,E29000,22/09/2014,40027618,9.57,Balfour Beatty Living Places Ltd,3171686
Solihull MBC,Highways & Transport Services,Struct Mtce Carriageways�,Other Contracted Services,E29000,22/09/2014,40027618,9.57,Balfour Beatty Living Places Ltd,3171686
Solihull MBC,Highways & Transport Services,Struct Mtce Carriageways�,Other Contracted Services,E29000,22/09/2014,40027618,5.84,Balfour Beatty Living Places Ltd,3171686
Solihull MBC,Highways & Transport Services,Struct Mtce Carriageways�,Other Contracted Services,E29000,22/09/2014,40027618,113.86,Balfour Beatty Living Places Ltd,3171686
Solihull MBC,Highways & Transport Services,Struct Mtce Carriageways�,Other Contracted Services,E29000,22/09/2014,40027618,84.18,Balfour Beatty Living Places Ltd,3171686
Solihull MBC,Highways & Transport Services,Struct Mtce Carriageways�,Other Contracted Services,E29000,22/09/2014,40027618,17.54,Balfour Beatty Living Places Ltd,3171686
Solihull MBC,Highways & Transport Services,Struct Mtce Carriageways�,Other Contracted Services,E29000,22/09/2014,40027618,19.15,Balfour Beatty Living Places Ltd,3171686
Solihull MBC,Highways & Transport Services,Struct Mtce Carriageways�,Other Contracted Services,E29000,22/09/2014,40027618,23.15,Balfour Beatty Living Places Ltd,3171686
Solihull MBC,Highways & Transport Services,Struct Mtce Carriageways�,Other Contracted Services,E29000,22/09/2014,40027618,92.87,Balfour Beatty Living Places Ltd,3171686
Solihull MBC,Highways & Transport Services,Struct Mtce Carriageways�,Other Contracted Services,E29000,22/09/2014,40027618,19.15,Balfour Beatty Living Places Ltd,3171686
Solihull MBC,Highways & Transport Services,Struct Mtce Carriageways�,Other Contracted Services,E29000,22/09/2014,40027618,102.45,Balfour Beatty Living Places Ltd,3171686
Solihull MBC,Highways & Transport Services,Struct Mtce Carriageways�,Other Contracted Services,E29000,22/09/2014,40027618,10.57,Balfour Beatty Living Places Ltd,3171686
Solihull MBC,Highways & Transport Services,Struct Mtce Carriageways�,Other Contracted Services,E29000,22/09/2014,40027618,90.14,Balfour Beatty Living Places Ltd,3171686
Solihull MBC,Highways & Transport Services,Struct Mtce Carriageways�,Other Contracted Services,E29000,22/09/2014,40027618,20.15,Balfour Beatty Living Places Ltd,3171686
Solihull MBC,Highways & Transport Services,Struct Mtce Carriageways�,Other Contracted Services,E29000,22/09/2014,40027618,85.14,Balfour Beatty Living Places Ltd,3171686
Solihull MBC,Highways & Transport Services,Struct Mtce Carriageways�,Other Contracted Services,E29000,22/09/2014,40027618,16.93,Balfour Beatty Living Places Ltd,3171686
Solihull MBC,Highways & Transport Services,Struct Mtce Carriageways�,Other Contracted Services,E29000,22/09/2014,40027618,9.57,Balfour Beatty Living Places Ltd,3171686
Solihull MBC,Highways & Transport Services,Struct Mtce Carriageways�,Other Contracted Services,E29000,22/09/2014,40027618,27.76,Balfour Beatty Living Places Ltd,3171686
Solihull MBC,Highways & Transport Services,Struct Mtce Carriageways�,Other Contracted Services,E29000,22/09/2014,40027618,82.14,Balfour Beatty Living Places Ltd,3171686
Solihull MBC,Highways & Transport Services,Struct Mtce Carriageways�,Other Contracted Services,E29000,22/09/2014,40027618,28.72,Balfour Beatty Living Places Ltd,3171686
Solihull MBC,Highways & Transport Services,Struct Mtce Carriageways�,Other Contracted Services,E29000,22/09/2014,40027618,9.57,Balfour Beatty Living Places Ltd,3171686
Solihull MBC,Highways & Transport Services,Struct Mtce Carriageways�,Other Contracted Services,E29000,22/09/2014,40027618,38.30,Balfour Beatty Living Places Ltd,3171686
Solihull MBC,Highways & Transport Services,Struct Mtce Carriageways�,Other Contracted Services,E29000,22/09/2014,40027618,27.76,Balfour Beatty Living Places Ltd,3171686
Solihull MBC,Highways & Transport Services,Struct Mtce Carriageways�,Other Contracted Services,E29000,22/09/2014,40027618,16.27,Balfour Beatty Living Places Ltd,3171686
Solihull MBC,Highways & Transport Services,Struct Mtce Carriageways�,Other Contracted Services,E29000,22/09/2014,40027618,85.14,Balfour Beatty Living Places Ltd,3171686
Solihull MBC,Highways & Transport Services,Struct Mtce Carriageways�,Other Contracted Services,E29000,22/09/2014,40027618,85.14,Balfour Beatty Living Places Ltd,3171686
Solihull MBC,Highways & Transport Services,Struct Mtce Carriageways�,Other Contracted Services,E29000,22/09/2014,40027618,85.14,Balfour Beatty Living Places Ltd,3171686
Solihull MBC,Highways & Transport Services,Struct Mtce Carriageways�,Other Contracted Services,E29000,22/09/2014,40027618,85.14,Balfour Beatty Living Places Ltd,3171686
Solihull MBC,Highways & Transport Services,Struct Mtce Carriageways�,Other Contracted Services,E29000,22/09/2014,40027618,9.57,Balfour Beatty Living Places Ltd,3171686
Solihull MBC,Highways & Transport Services,Struct Mtce Carriageways�,Other Contracted Services,E29000,22/09/2014,40027618,5.84,Balfour Beatty Living Places Ltd,3171686
Solihull MBC,Highways & Transport Services,Struct Mtce Carriageways�,Other Contracted Services,E29000,22/09/2014,40027618,61.72,Balfour Beatty Living Places Ltd,3171686
Solihull MBC,Highways & Transport Services,Struct Mtce Carriageways�,Other Contracted Services,E29000,22/09/2014,40027618,9.56,Balfour Beatty Living Places Ltd,3171686
Solihull MBC,Highways & Transport Services,Struct Mtce Carriageways�,Other Contracted Services,E29000,22/09/2014,40027618,9.57,Balfour Beatty Living Places Ltd,3171686
Solihull MBC,Highways & Transport Services,Struct Mtce Carriageways�,Other Contracted Services,E29000,22/09/2014,40027618,9.57,Balfour Beatty Living Places Ltd,3171686
Solihull MBC,Highways & Transport Services,Struct Mtce Carriageways�,Other Contracted Services,E29000,22/09/2014,40027618,9.57,Balfour Beatty Living Places Ltd,3171686
Solihull MBC,Highways & Transport Services,Struct Mtce Carriageways�,Other Contracted Services,E29000,22/09/2014,40027618,48.87,Balfour Beatty Living Places Ltd,3171686
Solihull MBC,Highways & Transport Services,Struct Mtce Carriageways�,Other Contracted Services,E29000,22/09/2014,40027618,14.20,Balfour Beatty Living Places Ltd,3171686
Solihull MBC,Highways & Transport Services,Struct Mtce Carriageways�,Other Contracted Services,E29000,22/09/2014,40027618,9.57,Balfour Beatty Living Places Ltd,3171686
Solihull MBC,Highways & Transport Services,Struct Mtce Carriageways�,Other Contracted Services,E29000,22/09/2014,40027618,84.18,Balfour Beatty Living Places Ltd,3171686
Solihull MBC,Highways & Transport Services,Struct Mtce Carriageways�,Other Contracted Services,E29000,22/09/2014,40027618,90.02,Balfour Beatty Living Places Ltd,3171686
Solihull MBC,Highways & Transport Services,Struct Mtce Carriageways�,Other Contracted Services,E29000,22/09/2014,40027618,9.57,Balfour Beatty Living Places Ltd,3171686
Solihull MBC,Highways & Transport Services,Struct Mtce Carriageways�,Other Contracted Services,E29000,22/09/2014,40027618,84.18,Balfour Beatty Living Places Ltd,3171686
Solihull MBC,Highways & Transport Services,Struct Mtce Carriageways�,Other Contracted Services,E29000,22/09/2014,40027618,5.84,Balfour Beatty Living Places Ltd,3171686
Solihull MBC,Highways & Transport Services,Struct Mtce Carriageways�,Other Contracted Services,E29000,22/09/2014,40027618,82.30,Balfour Beatty Living Places Ltd,3171686
Solihull MBC,Highways & Transport Services,Struct Mtce Carriageways�,Other Contracted Services,E29000,22/09/2014,40027618,9.57,Balfour Beatty Living Places Ltd,3171686
Solihull MBC,Highways & Transport Services,Struct Mtce Carriageways�,Other Contracted Services,E29000,22/09/2014,40027618,5.13,Balfour Beatty Living Places Ltd,3171686
Solihull MBC,Highways & Transport Services,Struct Mtce Carriageways�,Other Contracted Services,E29000,22/09/2014,40027618,5.84,Balfour Beatty Living Places Ltd,3171686
Solihull MBC,Highways & Transport Services,Struct Mtce Carriageways�,Other Contracted Services,E29000,22/09/2014,40027618,82.30,Balfour Beatty Living Places Ltd,3171686
Solihull MBC,Highways & Transport Services,Struct Mtce Carriageways�,Other Contracted Services,E29000,22/09/2014,40027618,9.57,Balfour Beatty Living Places Ltd,3171686
Solihull MBC,Highways & Transport Services,Struct Mtce Carriageways�,Other Contracted Services,E29000,22/09/2014,40027618,19.15,Balfour Beatty Living Places Ltd,3171686
Solihull MBC,Highways & Transport Services,Struct Mtce Carriageways�,Other Contracted Services,E29000,22/09/2014,40027618,82.30,Balfour Beatty Living Places Ltd,3171686
Solihull MBC,Highways & Transport Services,Struct Mtce Carriageways�,Other Contracted Services,E29000,22/09/2014,40027618,19.15,Balfour Beatty Living Places Ltd,3171686
Solihull MBC,Highways & Transport Services,Struct Mtce Carriageways�,Other Contracted Services,E29000,22/09/2014,40027618,88.14,Balfour Beatty Living Places Ltd,3171686
Solihull MBC,Highways & Transport Services,Struct Mtce Carriageways�,Other Contracted Services,E29000,22/09/2014,40027618,82.30,Balfour Beatty Living Places Ltd,3171686
Solihull MBC,Highways & Transport Services,Struct Mtce Carriageways�,Other Contracted Services,E29000,22/09/2014,40027618,9.57,Balfour Beatty Living Places Ltd,3171686
Solihull MBC,Highways & Transport Services,Struct Mtce Carriageways�,Other Contracted Services,E29000,22/09/2014,40027618,82.30,Balfour Beatty Living Places Ltd,3171686
Solihull MBC,Highways & Transport Services,Struct Mtce Carriageways�,Other Contracted Services,E29000,22/09/2014,40027618,149.90,Balfour Beatty Living Places Ltd,3171686
Solihull MBC,Highways & Transport Services,Struct Mtce Carriageways�,Other Contracted Services,E29000,22/09/2014,40027618,67.67,Balfour Beatty Living Places Ltd,3171686
Solihull MBC,Highways & Transport Services,Struct Mtce Carriageways�,Other Contracted Services,E29000,22/09/2014,40027618,9.57,Balfour Beatty Living Places Ltd,3171686
Solihull MBC,Highways & Transport Services,Struct Mtce Carriageways�,Other Contracted Services,E29000,22/09/2014,40027618,92.45,Balfour Beatty Living Places Ltd,3171686
Solihull MBC,Highways & Transport Services,Struct Mtce Carriageways�,Other Contracted Services,E29000,22/09/2014,40027618,25.87,Balfour Beatty Living Places Ltd,3171686
Solihull MBC,Highways & Transport Services,Struct Mtce Carriageways�,Other Contracted Services,E29000,22/09/2014,40027618,77.62,Balfour Beatty Living Places Ltd,3171686
Solihull MBC,Highways & Transport Services,Struct Mtce Carriageways�,Other Contracted Services,E29000,22/09/2014,40027618,59.63,Balfour Beatty Living Places Ltd,3171686
Solihull MBC,Highways & Transport Services,Struct Mtce Carriageways�,Other Contracted Services,E29000,22/09/2014,40027618,59.63,Balfour Beatty Living Places Ltd,3171686
Solihull MBC,Highways & Transport Services,Struct Mtce Carriageways�,Other Contracted Services,E29000,22/09/2014,40027618,17.52,Balfour Beatty Living Places Ltd,3171686
Solihull MBC,Highways & Transport Services,Struct Mtce Carriageways�,Other Contracted Services,E29000,22/09/2014,40027618,156.51,Balfour Beatty Living Places Ltd,3171686
Solihull MBC,Highways & Transport Services,Struct Mtce Carriageways�,Other Contracted Services,E29000,22/09/2014,40027618,20.07,Balfour Beatty Living Places Ltd,3171686
Solihull MBC,Highways & Transport Services,Struct Mtce Carriageways�,Other Contracted Services,E29000,22/09/2014,40027618,11.68,Balfour Beatty Living Places Ltd,3171686
Solihull MBC,Highways & Transport Services,Struct Mtce Carriageways�,Other Contracted Services,E29000,22/09/2014,40027618,38.59,Balfour Beatty Living Places Ltd,3171686
Solihull MBC,Highways & Transport Services,Struct Mtce Carriageways�,Other Contracted Services,E29000,22/09/2014,40027618,136.78,Balfour Beatty Living Places Ltd,3171686
Solihull MBC,Highways & Transport Services,Struct Mtce Carriageways�,Other Contracted Services,E29000,22/09/2014,40027618,33.60,Balfour Beatty Living Places Ltd,3171686
Solihull MBC,Highways & Transport Services,Struct Mtce Carriageways�,Other Contracted Services,E29000,22/09/2014,40027618,116.11,Balfour Beatty Living Places Ltd,3171686
Solihull MBC,Highways & Transport Services,Struct Mtce Carriageways�,Other Contracted Services,E29000,22/09/2014,40027618,4.78,Balfour Beatty Living Places Ltd,3171686
Solihull MBC,Highways & Transport Services,Struct Mtce Carriageways�,Other Contracted Services,E29000,22/09/2014,40027618,59.63,Balfour Beatty Living Places Ltd,3171686
Solihull MBC,Highways & Transport Services,Struct Mtce Carriageways�,Other Contracted Services,E29000,22/09/2014,40027618,27.76,Balfour Beatty Living Places Ltd,3171686
Solihull MBC,Highways & Transport Services,Struct Mtce Carriageways�,Other Contracted Services,E29000,22/09/2014,40027618,5.84,Balfour Beatty Living Places Ltd,3171686
Solihull MBC,Highways & Transport Services,Struct Mtce Carriageways�,Other Contracted Services,E29000,22/09/2014,40027618,9.28,Balfour Beatty Living Places Ltd,3171686
Solihull MBC,Highways & Transport Services,Struct Mtce Carriageways�,Other Contracted Services,E29000,22/09/2014,40027618,27.76,Balfour Beatty Living Places Ltd,3171686
Solihull MBC,Highways & Transport Services,Struct Mtce Carriageways�,Other Contracted Services,E29000,22/09/2014,40027618,111.05,Balfour Beatty Living Places Ltd,3171686
Solihull MBC,Highways & Transport Services,Struct Mtce Carriageways�,Other Contracted Services,E29000,22/09/2014,40027618,109.57,Balfour Beatty Living Places Ltd,3171686
Solihull MBC,Highways & Transport Services,Struct Mtce Carriageways�,Other Contracted Services,E29000,22/09/2014,40027618,254.18,Balfour Beatty Living Places Ltd,3171686
Solihull MBC,Highways & Transport Services,Struct Mtce Carriageways�,Other Contracted Services,E29000,22/09/2014,40027618,5.84,Balfour Beatty Living Places Ltd,3171686
Solihull MBC,Highways & Transport Services,Struct Mtce Carriageways�,Other Contracted Services,E29000,22/09/2014,40027618,15.41,Balfour Beatty Living Places Ltd,3171686
Solihull MBC,Highways & Transport Services,Struct Mtce Carriageways�,Other Contracted Services,E29000,22/09/2014,40027618,29.03,Balfour Beatty Living Places Ltd,3171686
Solihull MBC,Highways & Transport Services,Struct Mtce Carriageways�,Other Contracted Services,E29000,22/09/2014,40027618,9.57,Balfour Beatty Living Places Ltd,3171686
Solihull MBC,Highways & Transport Services,Struct Mtce Carriageways�,Other Contracted Services,E29000,22/09/2014,40027618,151.20,Balfour Beatty Living Places Ltd,3171686
Solihull MBC,Highways & Transport Services,Struct Mtce Carriageways�,Other Contracted Services,E29000,22/09/2014,40027618,5.84,Balfour Beatty Living Places Ltd,3171686
Solihull MBC,Highways & Transport Services,Struct Mtce Carriageways�,Other Contracted Services,E29000,22/09/2014,40027618,82.30,Balfour Beatty Living Places Ltd,3171686
Solihull MBC,Highways & Transport Services,Struct Mtce Carriageways�,Other Contracted Services,E29000,22/09/2014,40027618,84.18,Balfour Beatty Living Places Ltd,3171686
Solihull MBC,Highways & Transport Services,Struct Mtce Carriageways�,Other Contracted Services,E29000,22/09/2014,40027618,82.30,Balfour Beatty Living Places Ltd,3171686
Solihull MBC,Highways & Transport Services,Struct Mtce Carriageways�,Other Contracted Services,E29000,22/09/2014,40027618,82.30,Balfour Beatty Living Places Ltd,3171686
Solihull MBC,Highways & Transport Services,Struct Mtce Carriageways�,Other Contracted Services,E29000,22/09/2014,40027618,82.30,Balfour Beatty Living Places Ltd,3171686
Solihull MBC,Highways & Transport Services,Struct Mtce Carriageways�,Other Contracted Services,E29000,22/09/2014,40027618,82.30,Balfour Beatty Living Places Ltd,3171686
Solihull MBC,Highways & Transport Services,Struct Mtce Carriageways�,Other Contracted Services,E29000,22/09/2014,40027618,9.57,Balfour Beatty Living Places Ltd,3171686
Solihull MBC,Highways & Transport Services,Struct Mtce Carriageways�,Other Contracted Services,E29000,22/09/2014,40027618,82.30,Balfour Beatty Living Places Ltd,3171686
Solihull MBC,Highways & Transport Services,Struct Mtce Carriageways�,Other Contracted Services,E29000,22/09/2014,40027618,38.30,Balfour Beatty Living Places Ltd,3171686
Solihull MBC,Highways & Transport Services,Struct Mtce Carriageways�,Other Contracted Services,E29000,22/09/2014,40027618,16.27,Balfour Beatty Living Places Ltd,3171686
Solihull MBC,Highways & Transport Services,Struct Mtce Carriageways�,Other Contracted Services,E29000,22/09/2014,40027618,11.68,Balfour Beatty Living Places Ltd,3171686
Solihull MBC,Highways & Transport Services,Struct Mtce Carriageways�,Other Contracted Services,E29000,22/09/2014,40027618,84.18,Balfour Beatty Living Places Ltd,3171686
Solihull MBC,Highways & Transport Services,Struct Mtce Carriageways�,Other Contracted Services,E29000,22/09/2014,40027618,82.30,Balfour Beatty Living Places Ltd,3171686
Solihull MBC,Highways & Transport Services,Struct Mtce Carriageways�,Other Contracted Services,E29000,22/09/2014,40027618,82.30,Balfour Beatty Living Places Ltd,3171686
Solihull MBC,Highways & Transport Services,Struct Mtce Carriageways�,Other Contracted Services,E29000,22/09/2014,40027618,9.57,Balfour Beatty Living Places Ltd,3171686
Solihull MBC,Highways & Transport Services,Struct Mtce Carriageways�,Other Contracted Services,E29000,22/09/2014,40027618,82.30,Balfour Beatty Living Places Ltd,3171686
Solihull MBC,Highways & Transport Services,Struct Mtce Carriageways�,Other Contracted Services,E29000,22/09/2014,40027618,9.57,Balfour Beatty Living Places Ltd,3171686
Solihull MBC,Highways & Transport Services,Struct Mtce Carriageways�,Other Contracted Services,E29000,22/09/2014,40027618,9.57,Balfour Beatty Living Places Ltd,3171686
Solihull MBC,Highways & Transport Services,Struct Mtce Carriageways�,Other Contracted Services,E29000,22/09/2014,40027618,82.30,Balfour Beatty Living Places Ltd,3171686
Solihull MBC,Highways & Transport Services,Struct Mtce Carriageways�,Other Contracted Services,E29000,22/09/2014,40027618,82.30,Balfour Beatty Living Places Ltd,3171686
Solihull MBC,Highways & Transport Services,Struct Mtce Carriageways�,Other Contracted Services,E29000,22/09/2014,40027618,98.71,Balfour Beatty Living Places Ltd,3171686
Solihull MBC,Highways & Transport Services,Struct Mtce Carriageways�,Other Contracted Services,E29000,22/09/2014,40027618,82.30,Balfour Beatty Living Places Ltd,3171686
Solihull MBC,Highways & Transport Services,Struct Mtce Carriageways�,Other Contracted Services,E29000,22/09/2014,40027618,103.33,Balfour Beatty Living Places Ltd,3171686
Solihull MBC,Highways & Transport Services,Struct Mtce Carriageways�,Other Contracted Services,E29000,22/09/2014,40027618,91.87,Balfour Beatty Living Places Ltd,3171686
Solihull MBC,Highways & Transport Services,Struct Mtce Carriageways�,Other Contracted Services,E29000,22/09/2014,40027618,9.57,Balfour Beatty Living Places Ltd,3171686
Solihull MBC,Highways & Transport Services,Struct Mtce Carriageways�,Other Contracted Services,E29000,22/09/2014,40027618,111.02,Balfour Beatty Living Places Ltd,3171686
Solihull MBC,Highways & Transport Services,Struct Mtce Carriageways�,Other Contracted Services,E29000,22/09/2014,40027618,17.54,Balfour Beatty Living Places Ltd,3171686
Solihull MBC,Highways & Transport Services,Struct Mtce Carriageways�,Other Contracted Services,E29000,22/09/2014,40027618,19.15,Balfour Beatty Living Places Ltd,3171686
Solihull MBC,Highways & Transport Services,Struct Mtce Carriageways�,Other Contracted Services,E29000,22/09/2014,40027618,9.57,Balfour Beatty Living Places Ltd,3171686
Solihull MBC,Highways & Transport Services,Struct Mtce Carriageways�,Other Contracted Services,E29000,22/09/2014,40027618,32.54,Balfour Beatty Living Places Ltd,3171686
Solihull MBC,Highways & Transport Services,Struct Mtce Carriageways�,Other Contracted Services,E29000,22/09/2014,40027618,85.14,Balfour Beatty Living Places Ltd,3171686
Solihull MBC,Highways & Transport Services,Struct Mtce Carriageways�,Other Contracted Services,E29000,22/09/2014,40027618,113.86,Balfour Beatty Living Places Ltd,3171686
Solihull MBC,Highways & Transport Services,Struct Mtce Carriageways�,Other Contracted Services,E29000,22/09/2014,40027618,19.15,Balfour Beatty Living Places Ltd,3171686
Solihull MBC,Highways & Transport Services,Struct Mtce Carriageways�,Other Contracted Services,E29000,22/09/2014,40027618,19.15,Balfour Beatty Living Places Ltd,3171686
Solihull MBC,Highways & Transport Services,Struct Mtce Carriageways�,Other Contracted Services,E29000,22/09/2014,40027618,27.76,Balfour Beatty Living Places Ltd,3171686
Solihull MBC,Highways & Transport Services,Struct Mtce Carriageways�,Other Contracted Services,E29000,22/09/2014,40027618,55.52,Balfour Beatty Living Places Ltd,3171686
Solihull MBC,Highways & Transport Services,Struct Mtce Carriageways�,Other Contracted Services,E29000,22/09/2014,40027618,20.07,Balfour Beatty Living Places Ltd,3171686
Solihull MBC,Highways & Transport Services,Struct Mtce Carriageways�,Other Contracted Services,E29000,22/09/2014,40027618,5.84,Balfour Beatty Living Places Ltd,3171686
Solihull MBC,Highways & Transport Services,Struct Mtce Carriageways�,Other Contracted Services,E29000,22/09/2014,40027618,20.07,Balfour Beatty Living Places Ltd,3171686
Solihull MBC,Highways & Transport Services,Struct Mtce Carriageways�,Other Contracted Services,E29000,22/09/2014,40027618,20.07,Balfour Beatty Living Places Ltd,3171686
Solihull MBC,Highways & Transport Services,Struct Mtce Carriageways�,Other Contracted Services,E29000,22/09/2014,40027618,20.07,Balfour Beatty Living Places Ltd,3171686
Solihull MBC,Highways & Transport Services,Struct Mtce Carriageways�,Other Contracted Services,E29000,22/09/2014,40027618,20.07,Balfour Beatty Living Places Ltd,3171686
Solihull MBC,Highways & Transport Services,Struct Mtce Carriageways�,Other Contracted Services,E29000,22/09/2014,40027618,20.07,Balfour Beatty Living Places Ltd,3171686
Solihull MBC,Highways & Transport Services,Struct Mtce Carriageways�,Other Contracted Services,E29000,22/09/2014,40027618,5.84,Balfour Beatty Living Places Ltd,3171686
Solihull MBC,Highways & Transport Services,Struct Mtce Carriageways�,Other Contracted Services,E29000,22/09/2014,40027618,16.27,Balfour Beatty Living Places Ltd,3171686
Solihull MBC,Highways & Transport Services,Struct Mtce Carriageways�,Other Contracted Services,E29000,22/09/2014,40027618,25.91,Balfour Beatty Living Places Ltd,3171686
Solihull MBC,Highways & Transport Services,Struct Mtce Carriageways�,Other Contracted Services,E29000,22/09/2014,40027618,20.07,Balfour Beatty Living Places Ltd,3171686
Solihull MBC,Highways & Transport Services,Struct Mtce Carriageways�,Other Contracted Services,E29000,22/09/2014,40027618,20.07,Balfour Beatty Living Places Ltd,3171686
Solihull MBC,Highways & Transport Services,Struct Mtce Carriageways�,Other Contracted Services,E29000,22/09/2014,40027618,16.27,Balfour Beatty Living Places Ltd,3171686
Solihull MBC,Highways & Transport Services,Struct Mtce Carriageways�,Other Contracted Services,E29000,22/09/2014,40027618,5.84,Balfour Beatty Living Places Ltd,3171686
Solihull MBC,Highways & Transport Services,Struct Mtce Carriageways�,Other Contracted Services,E29000,22/09/2014,40027618,16.27,Balfour Beatty Living Places Ltd,3171686
Solihull MBC,Highways & Transport Services,Struct Mtce Carriageways�,Other Contracted Services,E29000,22/09/2014,40027618,20.07,Balfour Beatty Living Places Ltd,3171686
Solihull MBC,Highways & Transport Services,Struct Mtce Carriageways�,Other Contracted Services,E29000,22/09/2014,40027618,20.07,Balfour Beatty Living Places Ltd,3171686
Solihull MBC,Highways & Transport Services,Struct Mtce Carriageways�,Other Contracted Services,E29000,22/09/2014,40027618,0.51,Balfour Beatty Living Places Ltd,3171686
Solihull MBC,Highways & Transport Services,Struct Mtce Carriageways�,Other Contracted Services,E29000,22/09/2014,40027618,20.07,Balfour Beatty Living Places Ltd,3171686
Solihull MBC,Highways & Transport Services,Struct Mtce Carriageways�,Other Contracted Services,E29000,22/09/2014,40027618,9.37,Balfour Beatty Living Places Ltd,3171686
Solihull MBC,Highways & Transport Services,Struct Mtce Carriageways�,Other Contracted Services,E29000,22/09/2014,40027618,94.71,Balfour Beatty Living Places Ltd,3171686
Solihull MBC,Highways & Transport Services,Struct Mtce Carriageways�,Other Contracted Services,E29000,22/09/2014,40027618,80.26,Balfour Beatty Living Places Ltd,3171686
Solihull MBC,Highways & Transport Services,Struct Mtce Carriageways�,Other Contracted Services,E29000,22/09/2014,40027618,5.84,Balfour Beatty Living Places Ltd,3171686
Solihull MBC,Highways & Transport Services,Struct Mtce Carriageways�,Other Contracted Services,E29000,22/09/2014,40027618,37.44,Balfour Beatty Living Places Ltd,3171686
Solihull MBC,Highways & Transport Services,Struct Mtce Carriageways�,Other Contracted Services,E29000,22/09/2014,40027618,98.88,Balfour Beatty Living Places Ltd,3171686
Solihull MBC,Highways & Transport Services,Struct Mtce Carriageways�,Other Contracted Services,E29000,22/09/2014,40027618,33.60,Balfour Beatty Living Places Ltd,3171686
Solihull MBC,Highways & Transport Services,Struct Mtce Carriageways�,Other Contracted Services,E29000,22/09/2014,40027618,113.58,Balfour Beatty Living Places Ltd,3171686
Solihull MBC,Highways & Transport Services,Struct Mtce Carriageways�,Other Contracted Services,E29000,22/09/2014,40027618,27.76,Balfour Beatty Living Places Ltd,3171686
Solihull MBC,Highways & Transport Services,Struct Mtce Carriageways�,Other Contracted Services,E29000,22/09/2014,40027618,27.76,Balfour Beatty Living Places Ltd,3171686
Solihull MBC,Highways & Transport Services,Struct Mtce Carriageways�,Other Contracted Services,E29000,22/09/2014,40027618,94.71,Balfour Beatty Living Places Ltd,3171686
Solihull MBC,Highways & Transport Services,Struct Mtce Carriageways�,Other Contracted Services,E29000,22/09/2014,40027618,94.71,Balfour Beatty Living Places Ltd,3171686
Solihull MBC,Highways & Transport Services,Struct Mtce Carriageways�,Other Contracted Services,E29000,22/09/2014,40027618,9.57,Balfour Beatty Living Places Ltd,3171686
Solihull MBC,Highways & Transport Services,Struct Mtce Carriageways�,Other Contracted Services,E29000,22/09/2014,40027618,27.76,Balfour Beatty Living Places Ltd,3171686
Solihull MBC,Highways & Transport Services,Struct Mtce Carriageways�,Other Contracted Services,E29000,22/09/2014,40027618,20.01,Balfour Beatty Living Places Ltd,3171686
Solihull MBC,Highways & Transport Services,Struct Mtce Carriageways�,Other Contracted Services,E29000,22/09/2014,40027618,20.07,Balfour Beatty Living Places Ltd,3171686
Solihull MBC,Highways & Transport Services,Struct Mtce Carriageways�,Other Contracted Services,E29000,22/09/2014,40027618,20.07,Balfour Beatty Living Places Ltd,3171686
Solihull MBC,Highways & Transport Services,Struct Mtce Carriageways�,Other Contracted Services,E29000,22/09/2014,40027618,16.27,Balfour Beatty Living Places Ltd,3171686
Solihull MBC,Highways & Transport Services,Struct Mtce Carriageways�,Other Contracted Services,E29000,22/09/2014,40027618,20.07,Balfour Beatty Living Places Ltd,3171686
Solihull MBC,Highways & Transport Services,Struct Mtce Carriageways�,Other Contracted Services,E29000,22/09/2014,40027618,20.07,Balfour Beatty Living Places Ltd,3171686
Solihull MBC,Highways & Transport Services,Struct Mtce Carriageways�,Other Contracted Services,E29000,22/09/2014,40027618,20.07,Balfour Beatty Living Places Ltd,3171686
Solihull MBC,Highways & Transport Services,Struct Mtce Carriageways�,Other Contracted Services,E29000,22/09/2014,40027618,20.07,Balfour Beatty Living Places Ltd,3171686
Solihull MBC,Highways & Transport Services,Struct Mtce Carriageways�,Other Contracted Services,E29000,22/09/2014,40027618,20.07,Balfour Beatty Living Places Ltd,3171686
Solihull MBC,Highways & Transport Services,Struct Mtce Carriageways�,Other Contracted Services,E29000,22/09/2014,40027618,20.07,Balfour Beatty Living Places Ltd,3171686
Solihull MBC,Highways & Transport Services,Struct Mtce Carriageways�,Other Contracted Services,E29000,22/09/2014,40027618,20.07,Balfour Beatty Living Places Ltd,3171686
Solihull MBC,Highways & Transport Services,Struct Mtce Carriageways�,Other Contracted Services,E29000,22/09/2014,40027618,20.07,Balfour Beatty Living Places Ltd,3171686
Solihull MBC,Highways & Transport Services,Struct Mtce Carriageways�,Other Contracted Services,E29000,22/09/2014,40027618,20.07,Balfour Beatty Living Places Ltd,3171686
Solihull MBC,Highways & Transport Services,Struct Mtce Carriageways�,Other Contracted Services,E29000,22/09/2014,40027618,5.84,Balfour Beatty Living Places Ltd,3171686
Solihull MBC,Highways & Transport Services,Struct Mtce Carriageways�,Other Contracted Services,E29000,22/09/2014,40027618,20.07,Balfour Beatty Living Places Ltd,3171686
Solihull MBC,Highways & Transport Services,Struct Mtce Carriageways�,Other Contracted Services,E29000,22/09/2014,40027618,2.19,Balfour Beatty Living Places Ltd,3171686
Solihull MBC,Highways & Transport Services,Struct Mtce Carriageways�,Other Contracted Services,E29000,22/09/2014,40027618,2.19,Balfour Beatty Living Places Ltd,3171686
Solihull MBC,Highways & Transport Services,Struct Mtce Carriageways�,Other Contracted Services,E29000,22/09/2014,40027618,25.91,Balfour Beatty Living Places Ltd,3171686
Solihull MBC,Highways & Transport Services,Struct Mtce Carriageways�,Other Contracted Services,E29000,22/09/2014,40027618,20.07,Balfour Beatty Living Places Ltd,3171686
Solihull MBC,Highways & Transport Services,Struct Mtce Carriageways�,Other Contracted Services,E29000,22/09/2014,40027618,92.93,Balfour Beatty Living Places Ltd,3171686
Solihull MBC,Highways & Transport Services,Struct Mtce Carriageways�,Other Contracted Services,E29000,22/09/2014,40027618,33.60,Balfour Beatty Living Places Ltd,3171686
Solihull MBC,Highways & Transport Services,Struct Mtce Carriageways�,Other Contracted Services,E29000,22/09/2014,40027618,33.60,Balfour Beatty Living Places Ltd,3171686
Solihull MBC,Highways & Transport Services,Struct Mtce Carriageways�,Other Contracted Services,E29000,22/09/2014,40027618,193.31,Balfour Beatty Living Places Ltd,3171686
Solihull MBC,Highways & Transport Services,Struct Mtce Carriageways�,Other Contracted Services,E29000,22/09/2014,40027618,27.76,Balfour Beatty Living Places Ltd,3171686
Solihull MBC,Highways & Transport Services,Struct Mtce Carriageways�,Other Contracted Services,E29000,22/09/2014,40027618,27.76,Balfour Beatty Living Places Ltd,3171686
Solihull MBC,Highways & Transport Services,Struct Mtce Carriageways�,Other Contracted Services,E29000,22/09/2014,40027618,8.82,Balfour Beatty Living Places Ltd,3171686
Solihull MBC,Highways & Transport Services,Struct Mtce Carriageways�,Other Contracted Services,E29000,22/09/2014,40027618,64.42,Balfour Beatty Living Places Ltd,3171686
Solihull MBC,Highways & Transport Services,Struct Mtce Carriageways�,Other Contracted Services,E29000,22/09/2014,40027618,64.42,Balfour Beatty Living Places Ltd,3171686
Solihull MBC,Highways & Transport Services,Struct Mtce Carriageways�,Other Contracted Services,E29000,22/09/2014,40027618,27.76,Balfour Beatty Living Places Ltd,3171686
Solihull MBC,Highways & Transport Services,Struct Mtce Carriageways�,Other Contracted Services,E29000,22/09/2014,40027618,36.34,Balfour Beatty Living Places Ltd,3171686
Solihull MBC,Highways & Transport Services,Struct Mtce Carriageways�,Other Contracted Services,E29000,22/09/2014,40027618,39.34,Balfour Beatty Living Places Ltd,3171686
Solihull MBC,Highways & Transport Services,Struct Mtce Carriageways�,Other Contracted Services,E29000,22/09/2014,40027618,16.05,Balfour Beatty Living Places Ltd,3171686
Solihull MBC,Highways & Transport Services,Struct Mtce Carriageways�,Other Contracted Services,E29000,22/09/2014,40027618,16.05,Balfour Beatty Living Places Ltd,3171686
Solihull MBC,Highways & Transport Services,Struct Mtce Carriageways�,Other Contracted Services,E29000,22/09/2014,40027618,16.05,Balfour Beatty Living Places Ltd,3171686
Solihull MBC,Highways & Transport Services,Struct Mtce Carriageways�,Other Contracted Services,E29000,22/09/2014,40027618,16.05,Balfour Beatty Living Places Ltd,3171686
Solihull MBC,Highways & Transport Services,Struct Mtce Carriageways�,Other Contracted Services,E29000,22/09/2014,40027618,112.80,Balfour Beatty Living Places Ltd,3171686
Solihull MBC,Highways & Transport Services,Struct Mtce Carriageways�,Other Contracted Services,E29000,22/09/2014,40027618,9.57,Balfour Beatty Living Places Ltd,3171686
Solihull MBC,Highways & Transport Services,Struct Mtce Carriageways�,Other Contracted Services,E29000,22/09/2014,40027618,87.09,Balfour Beatty Living Places Ltd,3171686
Solihull MBC,Highways & Transport Services,Struct Mtce Carriageways�,Other Contracted Services,E29000,22/09/2014,40027618,83.29,Balfour Beatty Living Places Ltd,3171686
Solihull MBC,Highways & Transport Services,Struct Mtce Carriageways�,Other Contracted Services,E29000,22/09/2014,40027618,55.52,Balfour Beatty Living Places Ltd,3171686
Solihull MBC,Highways & Transport Services,Struct Mtce Carriageways�,Other Contracted Services,E29000,22/09/2014,40027618,27.76,Balfour Beatty Living Places Ltd,3171686
Solihull MBC,Highways & Transport Services,Struct Mtce Carriageways�,Other Contracted Services,E29000,22/09/2014,40027618,27.76,Balfour Beatty Living Places Ltd,3171686
Solihull MBC,Highways & Transport Services,Struct Mtce Carriageways�,Other Contracted Services,E29000,22/09/2014,40027618,34.87,Balfour Beatty Living Places Ltd,3171686
Solihull MBC,Highways & Transport Services,Struct Mtce Carriageways�,Other Contracted Services,E29000,22/09/2014,40027618,33.60,Balfour Beatty Living Places Ltd,3171686
Solihull MBC,Highways & Transport Services,Struct Mtce Carriageways�,Other Contracted Services,E29000,22/09/2014,40027618,29.03,Balfour Beatty Living Places Ltd,3171686
Solihull MBC,Highways & Transport Services,Struct Mtce Carriageways�,Other Contracted Services,E29000,22/09/2014,40027618,27.76,Balfour Beatty Living Places Ltd,3171686
Solihull MBC,Highways & Transport Services,Struct Mtce Carriageways�,Other Contracted Services,E29000,22/09/2014,40027618,29.03,Balfour Beatty Living Places Ltd,3171686
Solihull MBC,Highways & Transport Services,Struct Mtce Carriageways�,Other Contracted Services,E29000,22/09/2014,40027618,29.03,Balfour Beatty Living Places Ltd,3171686
Solihull MBC,Highways & Transport Services,Struct Mtce Carriageways�,Other Contracted Services,E29000,22/09/2014,40027618,29.03,Balfour Beatty Living Places Ltd,3171686
Solihull MBC,Highways & Transport Services,Struct Mtce Carriageways�,Other Contracted Services,E29000,22/09/2014,40027618,29.03,Balfour Beatty Living Places Ltd,3171686
Solihull MBC,Highways & Transport Services,Struct Mtce Carriageways�,Other Contracted Services,E29000,22/09/2014,40027618,116.11,Balfour Beatty Living Places Ltd,3171686
Solihull MBC,Highways & Transport Services,Struct Mtce Carriageways�,Other Contracted Services,E29000,22/09/2014,40027618,27.76,Balfour Beatty Living Places Ltd,3171686
Solihull MBC,Highways & Transport Services,Struct Mtce Carriageways�,Other Contracted Services,E29000,22/09/2014,40027618,27.76,Balfour Beatty Living Places Ltd,3171686
Solihull MBC,Highways & Transport Services,Struct Mtce Carriageways�,Other Contracted Services,E29000,22/09/2014,40027618,58.05,Balfour Beatty Living Places Ltd,3171686
Solihull MBC,Highways & Transport Services,Struct Mtce Carriageways�,Other Contracted Services,E29000,22/09/2014,40027618,116.11,Balfour Beatty Living Places Ltd,3171686
Solihull MBC,Highways & Transport Services,Struct Mtce Carriageways�,Other Contracted Services,E29000,22/09/2014,40027618,55.52,Balfour Beatty Living Places Ltd,3171686
Solihull MBC,Highways & Transport Services,Struct Mtce Carriageways�,Other Contracted Services,E29000,22/09/2014,40027618,99.59,Balfour Beatty Living Places Ltd,3171686
Solihull MBC,Highways & Transport Services,Struct Mtce Carriageways�,Other Contracted Services,E29000,22/09/2014,40027618,40.71,Balfour Beatty Living Places Ltd,3171686
Solihull MBC,Highways & Transport Services,Struct Mtce Carriageways�,Other Contracted Services,E29000,22/09/2014,40027618,16.05,Balfour Beatty Living Places Ltd,3171686
Solihull MBC,Highways & Transport Services,Struct Mtce Carriageways�,Other Contracted Services,E29000,22/09/2014,40027618,20.07,Balfour Beatty Living Places Ltd,3171686
Solihull MBC,Highways & Transport Services,Struct Mtce Carriageways�,Other Contracted Services,E29000,22/09/2014,40027618,203.33,Balfour Beatty Living Places Ltd,3171686
Solihull MBC,Highways & Transport Services,Struct Mtce Carriageways�,Other Contracted Services,E29000,22/09/2014,40027618,176.60,Balfour Beatty Living Places Ltd,3171686
Solihull MBC,Highways & Transport Services,Struct Mtce Carriageways�,Other Contracted Services,E29000,22/09/2014,40027618,16.27,Balfour Beatty Living Places Ltd,3171686
Solihull MBC,Highways & Transport Services,Struct Mtce Carriageways�,Other Contracted Services,E29000,22/09/2014,40027618,9.57,Balfour Beatty Living Places Ltd,3171686
Solihull MBC,Highways & Transport Services,Struct Mtce Carriageways�,Other Contracted Services,E29000,22/09/2014,40027618,34.87,Balfour Beatty Living Places Ltd,3171686
Solihull MBC,Highways & Transport Services,Struct Mtce Carriageways�,Other Contracted Services,E29000,22/09/2014,40027618,116.11,Balfour Beatty Living Places Ltd,3171686
Solihull MBC,Highways & Transport Services,Struct Mtce Carriageways�,Other Contracted Services,E29000,22/09/2014,40027618,29.03,Balfour Beatty Living Places Ltd,3171686
Solihull MBC,Highways & Transport Services,Struct Mtce Carriageways�,Other Contracted Services,E29000,22/09/2014,40027618,58.05,Balfour Beatty Living Places Ltd,3171686
Solihull MBC,Highways & Transport Services,Struct Mtce Carriageways�,Other Contracted Services,E29000,22/09/2014,40027618,99.59,Balfour Beatty Living Places Ltd,3171686
Solihull MBC,Highways & Transport Services,Struct Mtce Carriageways�,Other Contracted Services,E29000,22/09/2014,40027618,2.19,Balfour Beatty Living Places Ltd,3171686
Solihull MBC,Highways & Transport Services,Struct Mtce Carriageways�,Other Contracted Services,E29000,22/09/2014,40027618,29.03,Balfour Beatty Living Places Ltd,3171686
Solihull MBC,Highways & Transport Services,Struct Mtce Carriageways�,Other Contracted Services,E29000,22/09/2014,40027618,27.76,Balfour Beatty Living Places Ltd,3171686
Solihull MBC,Highways & Transport Services,Struct Mtce Carriageways�,Other Contracted Services,E29000,22/09/2014,40027618,27.76,Balfour Beatty Living Places Ltd,3171686
Solihull MBC,Highways & Transport Services,Struct Mtce Carriageways�,Other Contracted Services,E29000,22/09/2014,40027618,5.84,Balfour Beatty Living Places Ltd,3171686
Solihull MBC,Highways & Transport Services,Struct Mtce Carriageways�,Other Contracted Services,E29000,22/09/2014,40027618,116.11,Balfour Beatty Living Places Ltd,3171686
Solihull MBC,Highways & Transport Services,Struct Mtce Carriageways�,Other Contracted Services,E29000,22/09/2014,40027618,20.07,Balfour Beatty Living Places Ltd,3171686
Solihull MBC,Highways & Transport Services,Struct Mtce Carriageways�,Other Contracted Services,E29000,22/09/2014,40027618,25.58,Balfour Beatty Living Places Ltd,3171686
Solihull MBC,Highways & Transport Services,Struct Mtce Carriageways�,Other Contracted Services,E29000,22/09/2014,40027618,2.00,Balfour Beatty Living Places Ltd,3171686
Solihull MBC,Highways & Transport Services,Struct Mtce Carriageways�,Other Contracted Services,E29000,22/09/2014,40027618,68.87,Balfour Beatty Living Places Ltd,3171686
Solihull MBC,Highways & Transport Services,Struct Mtce Carriageways�,Other Contracted Services,E29000,22/09/2014,40027618,20.07,Balfour Beatty Living Places Ltd,3171686
Solihull MBC,Highways & Transport Services,Struct Mtce Carriageways�,Other Contracted Services,E29000,22/09/2014,40027618,40.13,Balfour Beatty Living Places Ltd,3171686
Solihull MBC,Highways & Transport Services,Struct Mtce Carriageways�,Other Contracted Services,E29000,22/09/2014,40027618,77.92,Balfour Beatty Living Places Ltd,3171686
Solihull MBC,Highways & Transport Services,Struct Mtce Carriageways�,Other Contracted Services,E29000,22/09/2014,40027618,20.07,Balfour Beatty Living Places Ltd,3171686
Solihull MBC,Highways & Transport Services,Struct Mtce Carriageways�,Other Contracted Services,E29000,22/09/2014,40027618,20.07,Balfour Beatty Living Places Ltd,3171686
Solihull MBC,Highways & Transport Services,Struct Mtce Carriageways�,Other Contracted Services,E29000,22/09/2014,40027618,27.76,Balfour Beatty Living Places Ltd,3171686
Solihull MBC,Highways & Transport Services,Struct Mtce Carriageways�,Other Contracted Services,E29000,22/09/2014,40027618,58.05,Balfour Beatty Living Places Ltd,3171686
Solihull MBC,Highways & Transport Services,Struct Mtce Carriageways�,Other Contracted Services,E29000,22/09/2014,40027618,9.57,Balfour Beatty Living Places Ltd,3171686
Solihull MBC,Highways & Transport Services,Struct Mtce Carriageways�,Other Contracted Services,E29000,22/09/2014,40027618,29.03,Balfour Beatty Living Places Ltd,3171686
Solihull MBC,Highways & Transport Services,Struct Mtce Carriageways�,Other Contracted Services,E29000,22/09/2014,40027618,58.05,Balfour Beatty Living Places Ltd,3171686
Solihull MBC,Highways & Transport Services,Struct Mtce Carriageways�,Other Contracted Services,E29000,22/09/2014,40027618,111.05,Balfour Beatty Living Places Ltd,3171686
Solihull MBC,Highways & Transport Services,Struct Mtce Carriageways�,Other Contracted Services,E29000,22/09/2014,40027618,58.05,Balfour Beatty Living Places Ltd,3171686
Solihull MBC,Highways & Transport Services,Struct Mtce Carriageways�,Other Contracted Services,E29000,22/09/2014,40027618,116.11,Balfour Beatty Living Places Ltd,3171686
Solihull MBC,Highways & Transport Services,Struct Mtce Carriageways�,Other Contracted Services,E29000,22/09/2014,40027618,58.05,Balfour Beatty Living Places Ltd,3171686
Solihull MBC,Highways & Transport Services,Struct Mtce Carriageways�,Other Contracted Services,E29000,22/09/2014,40027618,55.52,Balfour Beatty Living Places Ltd,3171686
Solihull MBC,Highways & Transport Services,Struct Mtce Carriageways�,Other Contracted Services,E29000,22/09/2014,40027618,37.32,Balfour Beatty Living Places Ltd,3171686
Solihull MBC,Highways & Transport Services,Struct Mtce Carriageways�,Other Contracted Services,E29000,22/09/2014,40027618,5.84,Balfour Beatty Living Places Ltd,3171686
Solihull MBC,Highways & Transport Services,Struct Mtce Carriageways�,Other Contracted Services,E29000,22/09/2014,40027618,5.84,Balfour Beatty Living Places Ltd,3171686
Solihull MBC,Highways & Transport Services,Struct Mtce Carriageways�,Other Contracted Services,E29000,22/09/2014,40027618,29.03,Balfour Beatty Living Places Ltd,3171686
Solihull MBC,Highways & Transport Services,Struct Mtce Carriageways�,Other Contracted Services,E29000,22/09/2014,40027618,20.07,Balfour Beatty Living Places Ltd,3171686
Solihull MBC,Highways & Transport Services,Struct Mtce Carriageways�,Other Contracted Services,E29000,22/09/2014,40027618,9.57,Balfour Beatty Living Places Ltd,3171686
Solihull MBC,Highways & Transport Services,Struct Mtce Carriageways�,Other Contracted Services,E29000,22/09/2014,40027618,19.15,Balfour Beatty Living Places Ltd,3171686
Solihull MBC,Highways & Transport Services,Struct Mtce Carriageways�,Other Contracted Services,E29000,22/09/2014,40027618,98.88,Balfour Beatty Living Places Ltd,3171686
Solihull MBC,Highways & Transport Services,Struct Mtce Carriageways�,Other Contracted Services,E29000,22/09/2014,40027618,104.01,Balfour Beatty Living Places Ltd,3171686
Solihull MBC,Highways & Transport Services,Struct Mtce Carriageways�,Other Contracted Services,E29000,22/09/2014,40027618,20.07,Balfour Beatty Living Places Ltd,3171686
Solihull MBC,Highways & Transport Services,Struct Mtce Carriageways�,Other Contracted Services,E29000,22/09/2014,40027618,20.07,Balfour Beatty Living Places Ltd,3171686
Solihull MBC,Highways & Transport Services,Struct Mtce Carriageways�,Other Contracted Services,E29000,22/09/2014,40027618,98.88,Balfour Beatty Living Places Ltd,3171686
Solihull MBC,Highways & Transport Services,Struct Mtce Carriageways�,Other Contracted Services,E29000,22/09/2014,40027618,20.07,Balfour Beatty Living Places Ltd,3171686
Solihull MBC,Highways & Transport Services,Struct Mtce Carriageways�,Other Contracted Services,E29000,22/09/2014,40027618,115.33,Balfour Beatty Living Places Ltd,3171686
Solihull MBC,Highways & Transport Services,Struct Mtce Carriageways�,Other Contracted Services,E29000,22/09/2014,40027618,20.07,Balfour Beatty Living Places Ltd,3171686
Solihull MBC,Highways & Transport Services,Struct Mtce Carriageways�,Other Contracted Services,E29000,22/09/2014,40027618,60.19,Balfour Beatty Living Places Ltd,3171686
Solihull MBC,Highways & Transport Services,Struct Mtce Carriageways�,Other Contracted Services,E29000,22/09/2014,40027618,10.04,Balfour Beatty Living Places Ltd,3171686
Solihull MBC,Highways & Transport Services,Struct Mtce Carriageways�,Other Contracted Services,E29000,22/09/2014,40027618,10.03,Balfour Beatty Living Places Ltd,3171686
Solihull MBC,Highways & Transport Services,Struct Mtce Carriageways�,Other Contracted Services,E29000,22/09/2014,40027618,20.07,Balfour Beatty Living Places Ltd,3171686
Solihull MBC,Highways & Transport Services,Struct Mtce Carriageways�,Other Contracted Services,E29000,22/09/2014,40027618,20.07,Balfour Beatty Living Places Ltd,3171686
Solihull MBC,Highways & Transport Services,Struct Mtce Carriageways�,Other Contracted Services,E29000,22/09/2014,40027618,40.13,Balfour Beatty Living Places Ltd,3171686
Solihull MBC,Highways & Transport Services,Struct Mtce Carriageways�,Other Contracted Services,E29000,22/09/2014,40027618,16.27,Balfour Beatty Living Places Ltd,3171686
Solihull MBC,Highways & Transport Services,Struct Mtce Carriageways�,Other Contracted Services,E29000,22/09/2014,40027618,29.03,Balfour Beatty Living Places Ltd,3171686
Solihull MBC,Highways & Transport Services,Struct Mtce Carriageways�,Other Contracted Services,E29000,22/09/2014,40027618,98.21,Balfour Beatty Living Places Ltd,3171686
Solihull MBC,Highways & Transport Services,Struct Mtce Carriageways�,Other Contracted Services,E29000,22/09/2014,40027618,29.03,Balfour Beatty Living Places Ltd,3171686
Solihull MBC,Highways & Transport Services,Struct Mtce Carriageways�,Other Contracted Services,E29000,22/09/2014,40027618,25.87,Balfour Beatty Living Places Ltd,3171686
Solihull MBC,Highways & Transport Services,Struct Mtce Carriageways�,Other Contracted Services,E29000,22/09/2014,40027618,40.71,Balfour Beatty Living Places Ltd,3171686
Solihull MBC,Highways & Transport Services,Struct Mtce Carriageways�,Other Contracted Services,E29000,22/09/2014,40027618,15.41,Balfour Beatty Living Places Ltd,3171686
Solihull MBC,Highways & Transport Services,Struct Mtce Carriageways�,Other Contracted Services,E29000,22/09/2014,40027618,58.05,Balfour Beatty Living Places Ltd,3171686
Solihull MBC,Highways & Transport Services,Struct Mtce Carriageways�,Other Contracted Services,E29000,22/09/2014,40027618,29.03,Balfour Beatty Living Places Ltd,3171686
Solihull MBC,Highways & Transport Services,Struct Mtce Carriageways�,Other Contracted Services,E29000,22/09/2014,40027618,58.05,Balfour Beatty Living Places Ltd,3171686
Solihull MBC,Highways & Transport Services,Struct Mtce Carriageways�,Other Contracted Services,E29000,22/09/2014,40027618,277.03,Balfour Beatty Living Places Ltd,3171686
Solihull MBC,Highways & Transport Services,Struct Mtce Carriageways�,Other Contracted Services,E29000,22/09/2014,40027618,29.03,Balfour Beatty Living Places Ltd,3171686
Solihull MBC,Highways & Transport Services,Struct Mtce Carriageways�,Other Contracted Services,E29000,22/09/2014,40027618,29.03,Balfour Beatty Living Places Ltd,3171686
Solihull MBC,Highways & Transport Services,Struct Mtce Carriageways�,Other Contracted Services,E29000,22/09/2014,40027618,29.03,Balfour Beatty Living Places Ltd,3171686
Solihull MBC,Highways & Transport Services,Struct Mtce Carriageways�,Other Contracted Services,E29000,22/09/2014,40027618,29.03,Balfour Beatty Living Places Ltd,3171686
Solihull MBC,Highways & Transport Services,Struct Mtce Carriageways�,Other Contracted Services,E29000,22/09/2014,40027618,29.03,Balfour Beatty Living Places Ltd,3171686
Solihull MBC,Highways & Transport Services,Struct Mtce Carriageways�,Other Contracted Services,E29000,22/09/2014,40027618,29.03,Balfour Beatty Living Places Ltd,3171686
Solihull MBC,Highways & Transport Services,Struct Mtce Carriageways�,Other Contracted Services,E29000,22/09/2014,40027618,116.11,Balfour Beatty Living Places Ltd,3171686
Solihull MBC,Highways & Transport Services,Struct Mtce Carriageways�,Other Contracted Services,E29000,22/09/2014,40027618,58.05,Balfour Beatty Living Places Ltd,3171686
Solihull MBC,Highways & Transport Services,Struct Mtce Carriageways�,Other Contracted Services,E29000,22/09/2014,40027618,464.45,Balfour Beatty Living Places Ltd,3171686
Solihull MBC,Highways & Transport Services,Struct Mtce Carriageways�,Other Contracted Services,E29000,22/09/2014,40027618,34.87,Balfour Beatty Living Places Ltd,3171686
Solihull MBC,Highways & Transport Services,Struct Mtce Carriageways�,Other Contracted Services,E29000,22/09/2014,40027618,56.79,Balfour Beatty Living Places Ltd,3171686
Solihull MBC,Highways & Transport Services,Struct Mtce Carriageways�,Other Contracted Services,E29000,22/09/2014,40027618,116.11,Balfour Beatty Living Places Ltd,3171686
Solihull MBC,Highways & Transport Services,Struct Mtce Carriageways�,Other Contracted Services,E29000,22/09/2014,40027618,29.03,Balfour Beatty Living Places Ltd,3171686
Solihull MBC,Highways & Transport Services,Struct Mtce Carriageways�,Other Contracted Services,E29000,22/09/2014,40027618,29.03,Balfour Beatty Living Places Ltd,3171686
Solihull MBC,Highways & Transport Services,Struct Mtce Carriageways�,Other Contracted Services,E29000,22/09/2014,40027618,29.03,Balfour Beatty Living Places Ltd,3171686
Solihull MBC,Highways & Transport Services,Struct Mtce Carriageways�,Other Contracted Services,E29000,22/09/2014,40027618,116.11,Balfour Beatty Living Places Ltd,3171686
Solihull MBC,Highways & Transport Services,Struct Mtce Carriageways�,Other Contracted Services,E29000,22/09/2014,40027618,29.03,Balfour Beatty Living Places Ltd,3171686
Solihull MBC,Highways & Transport Services,Struct Mtce Carriageways�,Other Contracted Services,E29000,22/09/2014,40027618,104.29,Balfour Beatty Living Places Ltd,3171686
Solihull MBC,Highways & Transport Services,Struct Mtce Carriageways�,Other Contracted Services,E29000,22/09/2014,40027618,104.29,Balfour Beatty Living Places Ltd,3171686
Solihull MBC,Highways & Transport Services,Struct Mtce Carriageways�,Other Contracted Services,E29000,22/09/2014,40027618,94.71,Balfour Beatty Living Places Ltd,3171686
Solihull MBC,Highways & Transport Services,Struct Mtce Carriageways�,Other Contracted Services,E29000,22/09/2014,40027618,11.68,Balfour Beatty Living Places Ltd,3171686
Solihull MBC,Highways & Transport Services,Struct Mtce Carriageways�,Other Contracted Services,E29000,22/09/2014,40027618,18.17,Balfour Beatty Living Places Ltd,3171686
Solihull MBC,Highways & Transport Services,Struct Mtce Carriageways�,Other Contracted Services,E29000,22/09/2014,40027618,18.17,Balfour Beatty Living Places Ltd,3171686
Solihull MBC,Highways & Transport Services,Struct Mtce Carriageways�,Other Contracted Services,E29000,22/09/2014,40027618,18.17,Balfour Beatty Living Places Ltd,3171686
Solihull MBC,Highways & Transport Services,Struct Mtce Carriageways�,Other Contracted Services,E29000,22/09/2014,40027618,18.17,Balfour Beatty Living Places Ltd,3171686
Solihull MBC,Highways & Transport Services,Struct Mtce Carriageways�,Other Contracted Services,E29000,22/09/2014,40027618,18.17,Balfour Beatty Living Places Ltd,3171686
Solihull MBC,Highways & Transport Services,Struct Mtce Carriageways�,Other Contracted Services,E29000,22/09/2014,40027618,18.17,Balfour Beatty Living Places Ltd,3171686
Solihull MBC,Highways & Transport Services,Struct Mtce Carriageways�,Other Contracted Services,E29000,22/09/2014,40027618,18.17,Balfour Beatty Living Places Ltd,3171686
Solihull MBC,Highways & Transport Services,Struct Mtce Carriageways�,Other Contracted Services,E29000,22/09/2014,40027618,18.17,Balfour Beatty Living Places Ltd,3171686
Solihull MBC,Highways & Transport Services,Struct Mtce Carriageways�,Other Contracted Services,E29000,22/09/2014,40027618,20.07,Balfour Beatty Living Places Ltd,3171686
Solihull MBC,Highways & Transport Services,Struct Mtce Carriageways�,Other Contracted Services,E29000,22/09/2014,40027618,20.07,Balfour Beatty Living Places Ltd,3171686
Solihull MBC,Highways & Transport Services,Struct Mtce Carriageways�,Other Contracted Services,E29000,22/09/2014,40027618,630.34,Balfour Beatty Living Places Ltd,3171686
Solihull MBC,Highways & Transport Services,Struct Mtce Carriageways�,Other Contracted Services,E29000,22/09/2014,40027618,2272.03,Balfour Beatty Living Places Ltd,3171686
Solihull MBC,Highways & Transport Services,Struct Mtce Carriageways�,Other Contracted Services,E29000,22/09/2014,40027618,2868.96,Balfour Beatty Living Places Ltd,3171686
Solihull MBC,Highways & Transport Services,Struct Mtce Carriageways�,Other Contracted Services,E29000,22/09/2014,40027618,1468.21,Balfour Beatty Living Places Ltd,3171686
Solihull MBC,Highways & Transport Services,Struct Mtce Carriageways�,Other Contracted Services,E29000,22/09/2014,40027618,1684.25,Balfour Beatty Living Places Ltd,3171686
Solihull MBC,Highways & Transport Services,Struct Mtce Carriageways�,Other Contracted Services,E29000,22/09/2014,40027618,48.87,Balfour Beatty Living Places Ltd,3171686
Solihull MBC,Highways & Transport Services,Struct Mtce Carriageways�,Other Contracted Services,E29000,22/09/2014,40027618,213.24,Balfour Beatty Living Places Ltd,3171686
Solihull MBC,Highways & Transport Services,Carriageway Maintenance,Contractors,Y21000,22/09/2014,40027618,16085.52,Balfour Beatty Living Places Ltd,3171686
Solihull MBC,Highways & Transport Services,Carriageway Maintenance,Contractors,Y21000,22/09/2014,40027618,20575.36,Balfour Beatty Living Places Ltd,3171686
Solihull MBC,Highways & Transport Services,Carriageway Maintenance,Contractors,Y21000,22/09/2014,40027618,20991.78,Balfour Beatty Living Places Ltd,3171686
Solihull MBC,Highways & Transport Services,Struct Mtce Carriageways�,Other Contracted Services,E29000,22/09/2014,40027618,676.48,Balfour Beatty Living Places Ltd,3171686
Solihull MBC,Highways & Transport Services,Struct Mtce Carriageways�,Other Contracted Services,E29000,22/09/2014,40027618,1446.66,Balfour Beatty Living Places Ltd,3171686
Solihull MBC,Highways & Transport Services,Struct Mtce Carriageways�,Other Contracted Services,E29000,22/09/2014,40027618,648.62,Balfour Beatty Living Places Ltd,3171686
Solihull MBC,Highways & Transport Services,Struct Mtce Carriageways�,Other Contracted Services,E29000,22/09/2014,40027618,473.25,Balfour Beatty Living Places Ltd,3171686
Solihull MBC,Highways & Transport Services,Struct Mtce Carriageways�,Other Contracted Services,E29000,22/09/2014,40027618,814.80,Balfour Beatty Living Places Ltd,3171686
Solihull MBC,Highways & Transport Services,Struct Mtce Carriageways�,Other Contracted Services,E29000,22/09/2014,40027618,1886.72,Balfour Beatty Living Places Ltd,3171686
Solihull MBC,Highways & Transport Services,Struct Mtce Carriageways�,Other Contracted Services,E29000,22/09/2014,40027618,12655.60,Balfour Beatty Living Places Ltd,3171686
Solihull MBC,Highways & Transport Services,Carriageway Maintenance,Contractors,Y21000,22/09/2014,40027618,6919.91,Balfour Beatty Living Places Ltd,3171686
Solihull MBC,Highways & Transport Services,Carriageway Maintenance,Contractors,Y21000,22/09/2014,40027618,45709.97,Balfour Beatty Living Places Ltd,3171686
Solihull MBC,Highways & Transport Services,Carriageway Maintenance,Contractors,Y21000,22/09/2014,40027618,101053.00,Balfour Beatty Living Places Ltd,3171686
Solihull MBC,Highways & Transport Services,Carriageway Maintenance,Contractors,Y21000,22/09/2014,40027618,25638.29,Balfour Beatty Living Places Ltd,3171686
Solihull MBC,Highways & Transport Services,Struct Mtce Carriageways�,Other Contracted Services,E29000,22/09/2014,40027618,29.03,Balfour Beatty Living Places Ltd,3171686
Solihull MBC,Highways & Transport Services,Struct Mtce Carriageways�,Other Contracted Services,E29000,22/09/2014,40027618,38.87,Balfour Beatty Living Places Ltd,3171686
Solihull MBC,Highways & Transport Services,Struct Mtce Carriageways�,Other Contracted Services,E29000,22/09/2014,40027618,29.03,Balfour Beatty Living Places Ltd,3171686
Solihull MBC,Highways & Transport Services,Struct Mtce Carriageways�,Other Contracted Services,E29000,22/09/2014,40027618,20.07,Balfour Beatty Living Places Ltd,3171686
Solihull MBC,Highways & Transport Services,Struct Mtce Carriageways�,Other Contracted Services,E29000,22/09/2014,40027618,40.13,Balfour Beatty Living Places Ltd,3171686
Solihull MBC,Highways & Transport Services,Struct Mtce Carriageways�,Other Contracted Services,E29000,22/09/2014,40027618,16.27,Balfour Beatty Living Places Ltd,3171686
Solihull MBC,Highways & Transport Services,Struct Mtce Carriageways�,Other Contracted Services,E29000,22/09/2014,40027618,27.76,Balfour Beatty Living Places Ltd,3171686
Solihull MBC,Highways & Transport Services,Struct Mtce Carriageways�,Other Contracted Services,E29000,22/09/2014,40027618,5.84,Balfour Beatty Living Places Ltd,3171686
Solihull MBC,Highways & Transport Services,Struct Mtce Carriageways�,Other Contracted Services,E29000,22/09/2014,40027618,2.19,Balfour Beatty Living Places Ltd,3171686
Solihull MBC,Highways & Transport Services,Struct Mtce Carriageways�,Other Contracted Services,E29000,22/09/2014,40027618,37.44,Balfour Beatty Living Places Ltd,3171686
Solihull MBC,Highways & Transport Services,Struct Mtce Carriageways�,Other Contracted Services,E29000,22/09/2014,40027618,55.52,Balfour Beatty Living Places Ltd,3171686
Solihull MBC,Highways & Transport Services,Struct Mtce Carriageways�,Other Contracted Services,E29000,22/09/2014,40027618,27.76,Balfour Beatty Living Places Ltd,3171686
Solihull MBC,Highways & Transport Services,Struct Mtce Carriageways�,Other Contracted Services,E29000,22/09/2014,40027618,27.76,Balfour Beatty Living Places Ltd,3171686
Solihull MBC,Highways & Transport Services,Struct Mtce Carriageways�,Other Contracted Services,E29000,22/09/2014,40027618,27.76,Balfour Beatty Living Places Ltd,3171686
Solihull MBC,Highways & Transport Services,Struct Mtce Carriageways�,Other Contracted Services,E29000,22/09/2014,40027618,27.76,Balfour Beatty Living Places Ltd,3171686
Solihull MBC,Highways & Transport Services,Struct Mtce Carriageways�,Other Contracted Services,E29000,22/09/2014,40027618,29.03,Balfour Beatty Living Places Ltd,3171686
Solihull MBC,Highways & Transport Services,Struct Mtce Carriageways�,Other Contracted Services,E29000,22/09/2014,40027618,27.76,Balfour Beatty Living Places Ltd,3171686
Solihull MBC,Highways & Transport Services,Struct Mtce Carriageways�,Other Contracted Services,E29000,22/09/2014,40027618,27.76,Balfour Beatty Living Places Ltd,3171686
Solihull MBC,Highways & Transport Services,Struct Mtce Carriageways�,Other Contracted Services,E29000,22/09/2014,40027618,27.76,Balfour Beatty Living Places Ltd,3171686
Solihull MBC,Highways & Transport Services,Struct Mtce Carriageways�,Other Contracted Services,E29000,22/09/2014,40027618,27.76,Balfour Beatty Living Places Ltd,3171686
Solihull MBC,Highways & Transport Services,Struct Mtce Carriageways�,Other Contracted Services,E29000,22/09/2014,40027618,27.76,Balfour Beatty Living Places Ltd,3171686
Solihull MBC,Highways & Transport Services,Struct Mtce Carriageways�,Other Contracted Services,E29000,22/09/2014,40027618,55.52,Balfour Beatty Living Places Ltd,3171686
Solihull MBC,Highways & Transport Services,Struct Mtce Carriageways�,Other Contracted Services,E29000,22/09/2014,40027618,25.87,Balfour Beatty Living Places Ltd,3171686
Solihull MBC,Highways & Transport Services,Struct Mtce Carriageways�,Other Contracted Services,E29000,22/09/2014,40027618,111.05,Balfour Beatty Living Places Ltd,3171686
Solihull MBC,Highways & Transport Services,Struct Mtce Carriageways�,Other Contracted Services,E29000,22/09/2014,40027618,171.68,Balfour Beatty Living Places Ltd,3171686
Solihull MBC,Highways & Transport Services,Struct Mtce Carriageways�,Other Contracted Services,E29000,22/09/2014,40027618,27.76,Balfour Beatty Living Places Ltd,3171686
Solihull MBC,Highways & Transport Services,Struct Mtce Carriageways�,Other Contracted Services,E29000,22/09/2014,40027618,35.79,Balfour Beatty Living Places Ltd,3171686
Solihull MBC,Highways & Transport Services,Struct Mtce Carriageways�,Other Contracted Services,E29000,22/09/2014,40027618,20.07,Balfour Beatty Living Places Ltd,3171686
Solihull MBC,Highways & Transport Services,Struct Mtce Carriageways�,Other Contracted Services,E29000,22/09/2014,40027618,40.13,Balfour Beatty Living Places Ltd,3171686
Solihull MBC,Highways & Transport Services,Struct Mtce Carriageways�,Other Contracted Services,E29000,22/09/2014,40027618,27.76,Balfour Beatty Living Places Ltd,3171686
Solihull MBC,Highways & Transport Services,Struct Mtce Carriageways�,Other Contracted Services,E29000,22/09/2014,40027618,59.63,Balfour Beatty Living Places Ltd,3171686
Solihull MBC,Highways & Transport Services,Struct Mtce Carriageways�,Other Contracted Services,E29000,22/09/2014,40027618,11.68,Balfour Beatty Living Places Ltd,3171686
Solihull MBC,Highways & Transport Services,Struct Mtce Carriageways�,Other Contracted Services,E29000,22/09/2014,40027618,27.76,Balfour Beatty Living Places Ltd,3171686
Solihull MBC,Highways & Transport Services,Struct Mtce Carriageways�,Other Contracted Services,E29000,22/09/2014,40027618,27.76,Balfour Beatty Living Places Ltd,3171686
Solihull MBC,Highways & Transport Services,Struct Mtce Carriageways�,Other Contracted Services,E29000,22/09/2014,40027618,27.76,Balfour Beatty Living Places Ltd,3171686
Solihull MBC,Adult Social Care,Sexual Health,Other Contracted Services,E29000,08/09/2014,39127547,1212.78,Balsall Common & Meridan Group P,688138
Solihull MBC,Adult Social Care,Primary Prevention,Other Contracted Services,E29000,08/09/2014,39127547,2750.00,Balsall Common & Meridan Group P,688138
Solihull MBC,Adult Social Care,Sexual Health,Other Contracted Services,E29000,08/09/2014,39127547,882.21,Balsall Common & Meridan Group P,688138
Solihull MBC,Children & Education Services,Daylesford Inf,Training,A32000,25/09/2014,40096547,258.46,Balsall Common Primary School,7550
Solihull MBC,Children & Education Services,Primary Schools,Other Contracted Services,E29000,18/09/2014,39992589,32312.00,Balsall Common Primary School,7550
Solihull MBC,Children & Education Services,Top Up Funding - Primary,Other Contracted Services,E29000,18/09/2014,39992588,16961.00,Balsall Common Primary School,7550
Solihull MBC,Precepts Paid to Parish Councils,Parish Precepts,Parish Precepts,J10000,08/09/2014,39179552,46077.09,Balsall Parish Council,7561
Solihull MBC,Adult Social Care,OP South Spot Comm Care,ASC - Direct Payments,E20009,16/09/2014,39873759,796.92,Redacted Personal Data,1428608
Solihull MBC,Adult Social Care,OP South Spot Comm Care,ASC - Direct Payments,E20009,16/09/2014,39873685,283.11,Redacted Personal Data,3541686
Solihull MBC,Adult Social Care,LD Spot Comm Care - South,ASC - Residential Care Permanent,E20003,04/09/2014,38973721,5556.97,Barchester Healthcare Homes Ltd,102300
Solihull MBC,Children & Education Services,CSW Team B U18 Local Clients,Other Contracted Services,E29000,30/09/2014,40195604,13264.29,Barford Care,165519
Solihull MBC,Children & Education Services,CSW Team B U18 Local Clients,Other Contracted Services,E29000,12/09/2014,39746557,13706.43,Barford Care,165519
Solihull MBC,Adult Social Care,OP - North Spot Comm Care,ASC - Direct Payments,E20009,16/09/2014,39873889,1176.72,Redacted Personal Data,688146
Solihull MBC,Children & Education Services,CAMHS Grant,Other Contracted Services,E29000,16/09/2014,39885552,10500.00,Barnardos Midlands,121075
Solihull MBC,Children & Education Services,Childrens Centres,Other Contracted Services,E29000,08/09/2014,39193547,34177.63,Barnardos Midlands,121075
Solihull MBC,Children & Education Services,CSW Team B U18 Local Clients,External Fostering,E29006,01/09/2014,38832560,2803.73,Barnardos Midlands,121075
Solihull MBC,Children & Education Services,CSW Team B U18 Local Clients,External Fostering,E29006,30/09/2014,40195600,3835.71,Barnardos Midlands,121075
Solihull MBC,Children & Education Services,CSW Team B U18 Local Clients,External Fostering,E29006,05/09/2014,39057549,3820.13,Barnardos Midlands,121075
Solihull MBC,Planning & Development Services,Building Control Holding Account,Professional Fees,D51000,04/09/2014,38974552,447.91,Barneveld Consultants,218451
Solihull MBC,Central Services to the Public,Police Commiss Elections,Room Hire/ Premises Hire,D95000,10/09/2014,39522548,300.00,Barston Memorial Institute,17047
Solihull MBC,Precepts Paid to Parish Councils,Parish Precepts,Parish Precepts,J10000,08/09/2014,39179553,1828.50,Barston Parish Council,7761
Solihull MBC,Adult Social Care,Sexual Health,Other Contracted Services,E29000,17/09/2014,39976547,422.05,Barts &  London NHS Trust,687693
Solihull MBC,Adult Social Care,OP - North Spot Comm Care,ASC - Residential Care Permanent,E20003,05/09/2014,39107579,1463.33,Bcop,28610
Solihull MBC,Adult Social Care,OP South Spot Comm Care,ASC - Residential Care Permanent,E20003,05/09/2014,39107589,1636.78,Bcop,28610
Solihull MBC,Adult Social Care,OP - North Spot Comm Care,ASC - Residential Care Permanent,E20003,04/09/2014,38973706,767.00,Bcop,28610
Solihull MBC,Adult Social Care,OP - North Spot Comm Care,ASC - Residential Care Permanent,E20003,05/09/2014,39107573,1700.65,Bcop,28610
Solihull MBC,Adult Social Care,OP South Spot Comm Care,ASC - Residential Care Permanent,E20003,05/09/2014,39107571,1709.59,Bcop,28610
Solihull MBC,Adult Social Care,OP - North Spot Comm Care,ASC - Residential Care Permanent,E20003,05/09/2014,39107580,1700.66,Bcop,28610
Solihull MBC,Adult Social Care,OP South Spot Comm Care,ASC - Residential Care Permanent,E20003,05/09/2014,39107587,924.02,Bcop,28610
Solihull MBC,Adult Social Care,OP South Spot Comm Care,ASC - Residential Care Permanent,E20003,04/09/2014,38973709,6749.01,Bcop,28610
Solihull MBC,Adult Social Care,OP South Spot Comm Care,ASC - Residential Care Permanent,E20003,04/09/2014,38973708,770.88,Bcop,28610
Solihull MBC,Adult Social Care,OP South Spot Comm Care,ASC - Residential Care Permanent,E20003,04/09/2014,38973703,633.24,Bcop,28610
Solihull MBC,Adult Social Care,OP South Spot Comm Care,ASC - Residential Care Permanent,E20003,04/09/2014,38973702,306.41,Bcop,28610
Solihull MBC,Adult Social Care,OP South Spot Comm Care,ASC - Residential Care Permanent,E20003,04/09/2014,38973701,329.98,Bcop,28610
Solihull MBC,Adult Social Care,OP - North Spot Comm Care,ASC - Residential Care Permanent,E20003,05/09/2014,39107572,1641.75,Bcop,28610
Solihull MBC,Adult Social Care,OP South Spot Comm Care,ASC - Residential Care Permanent,E20003,05/09/2014,39107586,1845.43,Bcop,28610
Solihull MBC,Adult Social Care,OP South Spot Comm Care,ASC - Residential Care Permanent,E20003,05/09/2014,39107578,1700.97,Bcop,28610
Solihull MBC,Adult Social Care,OP South Spot Comm Care,ASC - Residential Care Permanent,E20003,05/09/2014,39107582,1264.27,Bcop,28610
Solihull MBC,Adult Social Care,OP South Spot Comm Care,ASC - Residential Care Permanent,E20003,04/09/2014,38973704,1727.25,Bcop,28610
Solihull MBC,Adult Social Care,OP South Spot Comm Care,ASC - Residential Care Permanent,E20003,05/09/2014,39107584,1716.71,Bcop,28610
Solihull MBC,Adult Social Care,OP - Sol Hos Spot Comm Care,ASC - Residential Care Permanent,E20003,05/09/2014,39107570,1660.67,Bcop,28610
Solihull MBC,Adult Social Care,OP South Spot Comm Care,ASC - Residential Care Permanent,E20003,05/09/2014,39107583,1301.03,Bcop,28610
Solihull MBC,Adult Social Care,OP South Spot Comm Care,ASC - Residential Care Permanent,E20003,04/09/2014,38973705,1896.30,Bcop,28610
Solihull MBC,Adult Social Care,OP - North Spot Comm Care,ASC - Residential Care Permanent,E20003,05/09/2014,39107576,1658.19,Bcop,28610
Solihull MBC,Adult Social Care,OP - North Spot Comm Care,ASC - Residential Care Permanent,E20003,05/09/2014,39107574,1643.62,Bcop,28610
Solihull MBC,Adult Social Care,OP - North Spot Comm Care,ASC - Residential Care Permanent,E20003,05/09/2014,39107581,1700.97,Bcop,28610
Solihull MBC,Adult Social Care,OP - North Spot Comm Care,ASC - Residential Care Permanent,E20003,05/09/2014,39107585,1454.79,Bcop,28610
Solihull MBC,Adult Social Care,OP South Spot Comm Care,ASC - Residential Care Permanent,E20003,05/09/2014,39107588,1700.66,Bcop,28610
Solihull MBC,Adult Social Care,OP South Spot Comm Care,ASC - Residential Care Permanent,E20003,05/09/2014,39107575,1656.95,Bcop,28610
Solihull MBC,Adult Social Care,OP - North Spot Comm Care,ASC - Residential Care Permanent,E20003,05/09/2014,39107577,2014.82,Bcop,28610
Solihull MBC,Adult Social Care,OP - North Spot Comm Care,ASC - Residential Care Permanent,E20003,04/09/2014,38973707,308.79,Bcop,28610
Solihull MBC,Central Services to the Public,Accountancy,Professional Fees,D51000,03/09/2014,38914549,3000.00,Bdo LLP,1445617
Solihull MBC,Central Services to the Public,Accountancy,Professional Fees,D51000,04/09/2014,38974583,15000.00,Bdo LLP,1445617
Solihull MBC,Adult Social Care,OP South Spot Comm Care,ASC - Residential Care Permanent,E20003,04/09/2014,38973720,987.66,Beechcroft Residential Home,155078
Solihull MBC,Children & Education Services,Section 17 South/Central,Clients Expenses,D62000,02/09/2014,38854696,634.50,Beechwood Childcare,7960
Solihull MBC,Children & Education Services,Top Up Funding - Primary,Other Contracted Services,E29000,18/09/2014,39992592,10954.00,Bentley Heath Ce Primary School Fund,13671
Solihull MBC,Children & Education Services,Primary Schools,Other Contracted Services,E29000,18/09/2014,39992592,21294.00,Bentley Heath Ce Primary School Fund,13671
Solihull MBC,Children & Education Services,Dorridge J Arts&Music Cen,Contractors,Y21000,01/09/2014,38832549,82903.00,Berben Installations Ltd,20346
Solihull MBC,Children & Education Services,Dorridge J Arts&Music Cen,Contractors,Y21000,01/09/2014,38832549,64258.00,Berben Installations Ltd,20346
Solihull MBC,Children & Education Services,Dorridge J Arts&Music Cen,Contractors,Y21000,01/09/2014,38832549,-82903.00,Berben Installations Ltd,20346
Solihull MBC,Precepts Paid to Parish Councils,Parish Precepts,Parish Precepts,J10000,08/09/2014,39179554,25650.00,Berkswell Parish Council,8138
Solihull MBC,Adult Social Care,LD Spot Comm Care - South,ASC - Supported Living Care Costs,E20016,04/09/2014,38973978,1595.57,Redacted Personal Data,5445686
Solihull MBC,Children & Education Services,Hazel Oak Muga,Contractors,Y21000,17/09/2014,39940547,66928.00,Bernhard's Sports Surfaces Ltd,80793
Solihull MBC,Adult Social Care,SP - Old People Support Needs,Other Contracted Services,E29000,10/09/2014,39508552,509.08,Berrow Cottage Homes,88317
Solihull MBC,Cultural & Related Services,Libraries Resources Fund,Materials,D11000,08/09/2014,39193604,645.53,Bertrams Library Services,221390
Solihull MBC,Adult Social Care,OP South Spot Comm Care,ASC - Direct Payments,E20009,16/09/2014,39873686,339.64,Redacted Personal Data,688170
Solihull MBC,Children & Education Services,Yorkswood J&I,Telephones,D30000,23/09/2014,40072585,500.00,Best 4 Business Communications,232548
Solihull MBC,Children & Education Services,Burman Inf,Telephones,D30000,17/09/2014,39955547,405.00,Best 4 Business Communications Ltd,271333
Solihull MBC,Children & Education Services,St Alphege Jnr,Training,A32000,11/09/2014,39546547,450.00,Best Practice Network Ltd,134328
Solihull MBC,Adult Social Care,OP South Spot Comm Care,ASC - Direct Payments,E20009,16/09/2014,39873877,1210.34,Redacted Personal Data,914599
Solihull MBC,Children & Education Services,Smithswood,Catering Provisions,D20000,16/09/2014,39872762,269.63,Beverages Direct Ltd,100222
Solihull MBC,Children & Education Services,Special Transport,Clients Transport Costs,C21000,11/09/2014,39691582,541.50,Redacted Personal Data,4980686
Solihull MBC,Highways & Transport Services,Street Lighting Contract 1,Furniture & Equipment,D10000,08/09/2014,39141551,282.00,Bew Electrical Distributors Ltd,84605
Solihull MBC,Children & Education Services,ATC-CSW 18+ Client Team 1,Clients Higher Education & Support,D62022,26/09/2014,40108616,645.75,Redacted Personal Data,2494691
Solihull MBC,Adult Social Care,OP - Locality SW North,Other Contracted Services,E29000,03/09/2014,38930553,400.00,Bibby Factors Leicester Ltd,280875
Solihull MBC,Cultural & Related Services,Business Support,Materials,D11000,15/09/2014,39869889,256.80,Bibliotheca,2651693
Solihull MBC,Cultural & Related Services,Libraries - Self Issue,Hardware,Y13001,29/09/2014,40118720,325.00,Bibliotheca,2651693
Solihull MBC,Cultural & Related Services,Libraries - Self Issue,Software,Y13002,29/09/2014,40118719,1799.30,Bibliotheca,2651693
Solihull MBC,Precepts Paid to Parish Councils,Parish Precepts,Parish Precepts,J10000,08/09/2014,39179555,61405.00,Bickenhill Parish Council,8417
Solihull MBC,Adult Social Care,OP South Spot Comm Care,ASC - Domiciliary Care,E20008,12/09/2014,39761625,2395.71,Bionicare,1749623
Solihull MBC,Adult Social Care,OP South Spot Comm Care,ASC - Domiciliary Care,E20008,12/09/2014,39761626,5712.86,Bionicare,1749623
Solihull MBC,Adult Social Care,PD Spot Comm Care - South,ASC - Domiciliary Care,E20008,12/09/2014,39761628,5892.85,Bionicare,1749623
Solihull MBC,Adult Social Care,PD Spot Comm Care - South,ASC - Domiciliary Care,E20008,12/09/2014,39761629,5712.86,Bionicare,1749623
Solihull MBC,Adult Social Care,PD Spot Comm Care - South,ASC - Domiciliary Care,E20008,12/09/2014,39761630,5320.86,Bionicare,1749623
Solihull MBC,Adult Social Care,OP South Spot Comm Care,ASC - Domiciliary Care,E20008,12/09/2014,39761627,5320.86,Bionicare,1749623
Solihull MBC,Children & Education Services,Lyndon,Visits & Pupil Activities,D52002,09/09/2014,39387547,283.50,Biotects Ltd,285569
Solihull MBC,Adult Social Care,SP - Women At Risk Dom Voilence,Block Contracts,E21001,10/09/2014,39508553,14693.31,Birmingham And Solihull Women's Aid,247871
Solihull MBC,Adult Social Care,SP - Women At Risk Dom Voilence,Block Contracts,E21001,10/09/2014,39508554,7978.46,Birmingham And Solihull Women's Aid,247871
Solihull MBC,Children & Education Services,Evolution Project (BIP),Other Fees,D52000,09/09/2014,39233547,720.00,Birmingham Boys' And Girl's Union,70875
Solihull MBC,Children & Education Services,Evolution Project (BIP),Other Fees,D52000,09/09/2014,39305548,720.00,Birmingham Boys' And Girl's Union,70875
Solihull MBC,Adult Social Care,Public Health Leadership,Other Contracted Services,E29000,04/09/2014,38974585,2308.00,Birmingham City Council,8616
Solihull MBC,Central Services to the Public,Business Rates Retention,Parish Precepts,J10000,18/09/2014,39992590,2680350.00,Birmingham City Council,8616
Solihull MBC,Adult Social Care,LD Spot Comm Care,Clients Transport Costs,C21000,02/09/2014,38859547,513.04,Birmingham City Council Shared Services,401601
Solihull MBC,Central Services to the Public,Budget Strategy Reserve,Professional Fees,D51000,22/09/2014,40019578,1500.00,Birmingham City Council Shared Services,401601
Solihull MBC,Central Services to the Public,Budget Strategy Reserve,Professional Fees,D51000,22/09/2014,40019577,1500.00,Birmingham City Council Shared Services,401601
Solihull MBC,Children & Education Services,PSD - Sutton Girls School PSD,Repair & Maintn Of Buildings,B31000,10/09/2014,39484573,469.00,Birmingham City Laboratories,174058
Solihull MBC,Adult Social Care,LD Spot Comm Care,ASC - Day Care,E20010,04/09/2014,38973776,2429.16,Birmingham Focus,8661
Solihull MBC,Adult Social Care,LD Spot Comm Care,ASC - Day Care,E20010,04/09/2014,38973775,986.42,Birmingham Focus,8661
Solihull MBC,Children & Education Services,St Anne's J&I,Visits & Pupil Activities,D52002,12/09/2014,39859547,275.00,Birmingham International Coaches Ltd,34755
Solihull MBC,Children & Education Services,Shirley Heath Jnr,Capitation,D11001,09/09/2014,39389550,325.85,Bishop Sports & Leisure Ltd,8738
Solihull MBC,Children & Education Services,Kingshurst Primary,Capitation,D11001,09/09/2014,39366547,257.40,Bishop Sports & Leisure Ltd,8738
Solihull MBC,Children & Education Services,Castle Bromwich Jnr,Capitation,D11001,08/09/2014,39138553,395.85,Bishop Sports & Leisure Ltd,8738
Solihull MBC,Adult Social Care,OP South Spot Comm Care,ASC - Residential Care Permanent,E20003,05/09/2014,39107647,1280.65,Bjcc,688195
Solihull MBC,Children & Education Services,Streetsbrook Inf,Examination Fees,D52001,29/09/2014,40118629,483.00,Black Country Museum Trust Ltd,43307
Solihull MBC,Children & Education Services,Evolution Project (BIP),Other Fees,D52000,16/09/2014,39886557,250.00,Blackwell Adventure,136240
Solihull MBC,Children & Education Services,YJB Prevent'N Devel Grant,Clients Expenses,D62000,23/09/2014,40038290,666.67,Blackwell Adventure,136240
Solihull MBC,Children & Education Services,St Alphege Jnr,Capitation,D11001,15/09/2014,39868649,259.30,Bloomfield Ltd,8959
Solihull MBC,Children & Education Services,Burman Inf,Capitation,D11001,17/09/2014,39959547,570.20,Bloomfield Ltd,8959
Solihull MBC,Children & Education Services,St George & Teresa J&I,Stationery,D41000,01/09/2014,38826552,473.60,Bloomfield Ltd,8959
Solihull MBC,Central Services to the Public,Enterprise Support P2,Professional Fees,D51000,11/09/2014,39731548,4175.00,Blue Orchid,1935617
Solihull MBC,Central Services to the Public,Enterprise Support P2,Other Contracted Services,E29000,11/09/2014,39732547,4450.00,Blue Orchid,1935617
Solihull MBC,Children & Education Services,UASC 18+,Supported Lodgings,E29007,22/09/2014,40030564,160.50,Blueberry Housing Ltd,208121
Solihull MBC,Children & Education Services,CSW Team B U18 Local Clients,Supported Lodgings,E29007,17/09/2014,39913585,111.00,Blueberry Housing Ltd,208121
Solihull MBC,Children & Education Services,CSW Team B U18 Local Clients,Supported Lodgings,E29007,17/09/2014,39913585,637.68,Blueberry Housing Ltd,208121
Solihull MBC,Children & Education Services,UASC 18+,Supported Lodgings,E29007,22/09/2014,40030564,330.80,Blueberry Housing Ltd,208121
Solihull MBC,Children & Education Services,CSW Team B U18 Local Clients,Clients Expenses,D62000,17/09/2014,39913585,207.05,Blueberry Housing Ltd,208121
Solihull MBC,Children & Education Services,UASC Non Allowable Expend,Supported Lodgings,E29007,22/09/2014,40030565,167.75,Blueberry Housing Ltd,208121
Solihull MBC,Children & Education Services,UASC Non Allowable Expend,Supported Lodgings,E29007,22/09/2014,40030565,107.25,Blueberry Housing Ltd,208121
Solihull MBC,Children & Education Services,ATC-CSW 18+ Client Team 1,Clients Expenses,D62000,17/09/2014,39913585,150.00,Blueberry Housing Ltd,208121
Solihull MBC,Children & Education Services,Section 17 CDT,Clients Expenses,D62000,03/09/2014,38914568,488.00,Bluebird Care,1731617
Solihull MBC,Children & Education Services,Lyndon,IT Equipment & Software,D32000,29/09/2014,40118662,231.80,Bluepoint Corporation Ltd,132566
Solihull MBC,Children & Education Services,Lyndon,IT Equipment & Software,D32000,23/09/2014,40072580,897.00,Bluepoint Corporation Ltd,132566
Solihull MBC,Children & Education Services,Lyndon,Consumables,D32907,23/09/2014,40072580,306.25,Bluepoint Corporation Ltd,132566
Solihull MBC,Children & Education Services,Lyndon,IT Equipment & Software,D32000,23/09/2014,40072580,6.00,Bluepoint Corporation Ltd,132566
Solihull MBC,Children & Education Services,Our Lady Wayside J&I,Photocopying,D40001,23/09/2014,40036587,694.71,Bnp Paribas Lease Group (Rentals),171558
Solihull MBC,Adult Social Care,OP South Spot Comm Care,ASC - Residential Care Permanent,E20003,04/09/2014,38973710,1021.01,Bondcare (Bromford) Ltd,1035597
Solihull MBC,Adult Social Care,OP South Spot Comm Care,ASC - Nursing Care Permanent,E20005,04/09/2014,38973711,1395.58,Bondcare (Bromford) Ltd,1035597
Solihull MBC,Adult Social Care,OP South Spot Comm Care,ASC - Nursing Care Permanent,E20005,04/09/2014,38973699,328.56,Bondcare St Andrews Ltd,1755621
Solihull MBC,Adult Social Care,OP South Spot Comm Care,ASC - Nursing Care Permanent,E20005,04/09/2014,38973697,328.56,Bondcare St Andrews Ltd,1755621
Solihull MBC,Adult Social Care,OP South Spot Comm Care,ASC - Nursing Care Permanent,E20005,04/09/2014,38973691,1593.44,Bondcare St Andrews Ltd,1755621
Solihull MBC,Adult Social Care,OP South Spot Comm Care,ASC - Nursing Care Permanent,E20005,12/09/2014,39761717,275.93,Bondcare St Andrews Ltd,1755621
Solihull MBC,Adult Social Care,OP South Spot Comm Care,ASC - Nursing Care Permanent,E20005,04/09/2014,38973695,1405.72,Bondcare St Andrews Ltd,1755621
Solihull MBC,Adult Social Care,OP South Spot Comm Care,ASC - Nursing Care Permanent,E20005,04/09/2014,38973698,317.96,Bondcare St Andrews Ltd,1755621
Solihull MBC,Adult Social Care,OP South Spot Comm Care,ASC - Nursing Care Permanent,E20005,04/09/2014,38973694,2103.88,Bondcare St Andrews Ltd,1755621
Solihull MBC,Adult Social Care,OP South Spot Comm Care,ASC - Nursing Care Permanent,E20005,04/09/2014,38973693,1827.23,Bondcare St Andrews Ltd,1755621
Solihull MBC,Adult Social Care,OP - North Spot Comm Care,ASC - Nursing Care Permanent,E20005,04/09/2014,38973692,1607.93,Bondcare St Andrews Ltd,1755621
Solihull MBC,Central Services to the Public,Legal Services,Postage & Courier Services,D43000,01/09/2014,38803573,505.90,Bonds Worldwide Express Ltd,120085
Solihull MBC,Children & Education Services,Specialist Inclusion Support Service,Materials,D11000,12/09/2014,39864551,1241.00,Bookpoint Ltd,9157
Solihull MBC,Children & Education Services,Lyndon,Capitation,D11001,16/09/2014,39876561,1930.79,Bookpoint Ltd,9157
Solihull MBC,Children & Education Services,St Peter's,Capitation,D11001,23/09/2014,40073595,399.00,Bookpoint Ltd,9157
Solihull MBC,Children & Education Services,Smith's Wood,Capitation,D11001,05/09/2014,39072549,287.50,Booktrust,93243
Solihull MBC,Children & Education Services,Smith's Wood,Capitation,D11001,05/09/2014,39072549,287.50,Booktrust,93243
Solihull MBC,Adult Social Care,Tobacco,Other Contracted Services,E29000,02/09/2014,38870551,39.00,Boots The Chemist,21499
Solihull MBC,Adult Social Care,Tobacco,Other Contracted Services,E29000,12/09/2014,39844547,147.96,Boots The Chemist,21499
Solihull MBC,Adult Social Care,Tobacco,Other Contracted Services,E29000,12/09/2014,39844547,16.00,Boots The Chemist,21499
Solihull MBC,Adult Social Care,Tobacco,Other Contracted Services,E29000,02/09/2014,38870551,4.00,Boots The Chemist,21499
Solihull MBC,Adult Social Care,Tobacco,Other Contracted Services,E29000,02/09/2014,38870551,340.00,Boots The Chemist,21499
Solihull MBC,Adult Social Care,Drug and Alcohol Misuse,Other Contracted Services,E29000,02/09/2014,38868259,122.46,Boots The Chemist,21499
Solihull MBC,Adult Social Care,Drug and Alcohol Misuse,Other Contracted Services,E29000,02/09/2014,38868260,101.56,Boots The Chemist,21499
Solihull MBC,Adult Social Care,Drug and Alcohol Misuse,Other Contracted Services,E29000,02/09/2014,38870551,220.69,Boots The Chemist,21499
Solihull MBC,Adult Social Care,Drug and Alcohol Misuse,Other Contracted Services,E29000,12/09/2014,39844547,180.98,Boots The Chemist,21499
Solihull MBC,Adult Social Care,Drug and Alcohol Misuse,Other Contracted Services,E29000,12/09/2014,39863551,76.48,Boots The Chemist,21499
Solihull MBC,Adult Social Care,Drug and Alcohol Misuse,Other Contracted Services,E29000,12/09/2014,39864549,43.04,Boots The Chemist,21499
Solihull MBC,Adult Social Care,Drug and Alcohol Misuse,Other Contracted Services,E29000,02/09/2014,38868259,417.66,Boots The Chemist,21499
Solihull MBC,Adult Social Care,Drug and Alcohol Misuse,Other Contracted Services,E29000,02/09/2014,38868259,-417.66,Boots The Chemist,21499
Solihull MBC,Adult Social Care,Drug and Alcohol Misuse,Other Contracted Services,E29000,02/09/2014,38868259,64.44,Boots The Chemist,21499
Solihull MBC,Adult Social Care,Drug and Alcohol Misuse,Other Contracted Services,E29000,12/09/2014,39844547,200.48,Boots The Chemist,21499
Solihull MBC,Adult Social Care,Drug and Alcohol Misuse,Other Contracted Services,E29000,02/09/2014,38870551,173.63,Boots The Chemist,21499
Solihull MBC,Adult Social Care,Sexual Health,Other Contracted Services,E29000,02/09/2014,38868259,293.04,Boots The Chemist,21499
Solihull MBC,Adult Social Care,Sexual Health,Other Contracted Services,E29000,02/09/2014,38868259,132.00,Boots The Chemist,21499
Solihull MBC,Adult Social Care,Sexual Health,Other Contracted Services,E29000,02/09/2014,38868260,366.30,Boots The Chemist,21499
Solihull MBC,Adult Social Care,Sexual Health,Other Contracted Services,E29000,02/09/2014,38868260,165.00,Boots The Chemist,21499
Solihull MBC,Adult Social Care,Sexual Health,Other Contracted Services,E29000,02/09/2014,38870551,354.09,Boots The Chemist,21499
Solihull MBC,Adult Social Care,Sexual Health,Other Contracted Services,E29000,02/09/2014,38870551,154.00,Boots The Chemist,21499
Solihull MBC,Adult Social Care,Sexual Health,Other Contracted Services,E29000,12/09/2014,39844547,341.88,Boots The Chemist,21499
Solihull MBC,Adult Social Care,Sexual Health,Other Contracted Services,E29000,12/09/2014,39844547,154.00,Boots The Chemist,21499
Solihull MBC,Adult Social Care,Sexual Health,Other Contracted Services,E29000,12/09/2014,39864549,195.36,Boots The Chemist,21499
Solihull MBC,Adult Social Care,Sexual Health,Other Contracted Services,E29000,12/09/2014,39864549,88.00,Boots The Chemist,21499
Solihull MBC,Adult Social Care,Sexual Health,Other Contracted Services,E29000,12/09/2014,39863551,439.56,Boots The Chemist,21499
Solihull MBC,Adult Social Care,Sexual Health,Other Contracted Services,E29000,12/09/2014,39863551,198.00,Boots The Chemist,21499
Solihull MBC,Other Housing Services,Discretionary Hsg Payments,Clients Expenses,D62000,17/09/2014,39973552,216.66,Borshch Electric,37562
Solihull MBC,Other Housing Services,Discretionary Hsg Payments,Clients Expenses,D62000,22/09/2014,40028577,337.49,Borshch Electric,37562
Solihull MBC,Other Housing Services,Discretionary Hsg Payments,Clients Expenses,D62000,19/09/2014,40011557,383.33,Borshch Electric,37562
Solihull MBC,Other Housing Services,Discretionary Hsg Payments,Clients Expenses,D62000,01/09/2014,38832559,279.17,Borshch Electric,37562
Solihull MBC,Other Housing Services,Discretionary Hsg Payments,Clients Expenses,D62000,17/09/2014,39973550,537.50,Borshch Electric,37562
Solihull MBC,Other Housing Services,Discretionary Hsg Payments,Grant & Subscription (SCITT),D92000,17/09/2014,39973555,362.50,Borshch Electric,37562
Solihull MBC,Other Housing Services,Discretionary Hsg Payments,Clients Expenses,D62000,17/09/2014,39973554,320.83,Borshch Electric,37562
Solihull MBC,Central Services to the Public,Organisational Development,Training,A32000,19/09/2014,40002547,7400.00,Bournemouth University,9279
Solihull MBC,Adult Social Care,OP South Spot Comm Care,ASC - Residential Care Permanent,E20003,04/09/2014,38973718,1700.66,Bower Grange Residential Care Home,1906616
Solihull MBC,Children & Education Services,St Andrew's J&I,Building Maint Planned,B31002,15/09/2014,39868696,2940.00,Brackleys Construction Ltd,250121
Solihull MBC,Children & Education Services,St Alphege Jnr,Building Maint Planned,B31002,15/09/2014,39868650,3085.00,Braddons Decorators,3752690
Solihull MBC,Children & Education Services,Valley Inf,Health & Safety,B43003,26/09/2014,40115636,693.20,Braiswick Photographic Co Ltd,283337
Solihull MBC,Children & Education Services,Dickens Heath,Catering Provisions,D20000,25/09/2014,40106565,188.49,Brake Bros Foodservice Ltd,9490
Solihull MBC,Children & Education Services,Dickens Heath,Catering Provisions,D20000,25/09/2014,40106565,40.78,Brake Bros Foodservice Ltd,9490
Solihull MBC,Children & Education Services,Dickens Heath,Catering Provisions,D20000,25/09/2014,40106565,82.87,Brake Bros Foodservice Ltd,9490
Solihull MBC,Children & Education Services,Dickens Heath,Catering Provisions,D20000,25/09/2014,40106565,286.91,Brake Bros Foodservice Ltd,9490
Solihull MBC,Children & Education Services,Dickens Heath,Catering Provisions,D20000,23/09/2014,40073624,16.50,Brake Bros Foodservice Ltd,9490
Solihull MBC,Children & Education Services,Dickens Heath,Catering Provisions,D20000,23/09/2014,40073624,419.40,Brake Bros Foodservice Ltd,9490
Solihull MBC,Children & Education Services,Dickens Heath,Catering Provisions,D20000,18/09/2014,39984547,25.05,Brake Bros Foodservice Ltd,9490
Solihull MBC,Children & Education Services,Dickens Heath,Catering Provisions,D20000,18/09/2014,39984547,35.47,Brake Bros Foodservice Ltd,9490
Solihull MBC,Children & Education Services,Dickens Heath,Catering Provisions,D20000,18/09/2014,39984547,40.80,Brake Bros Foodservice Ltd,9490
Solihull MBC,Children & Education Services,Dickens Heath,Catering Provisions,D20000,18/09/2014,39984547,186.48,Brake Bros Foodservice Ltd,9490
Solihull MBC,Children & Education Services,Dickens Heath,Catering Provisions,D20000,18/09/2014,39984547,359.62,Brake Bros Foodservice Ltd,9490
Solihull MBC,Children & Education Services,Dickens Heath,Catering Provisions,D20000,18/09/2014,39984547,143.48,Brake Bros Foodservice Ltd,9490
Solihull MBC,Children & Education Services,Dickens Heath,Catering Provisions,D20000,11/09/2014,39735626,50.10,Brake Bros Foodservice Ltd,9490
Solihull MBC,Children & Education Services,Dickens Heath,Catering Provisions,D20000,11/09/2014,39735626,123.48,Brake Bros Foodservice Ltd,9490
Solihull MBC,Children & Education Services,Dickens Heath,Catering Provisions,D20000,11/09/2014,39735626,300.22,Brake Bros Foodservice Ltd,9490
Solihull MBC,Children & Education Services,Dickens Heath,Catering Provisions,D20000,11/09/2014,39735626,165.18,Brake Bros Foodservice Ltd,9490
Solihull MBC,Children & Education Services,Dickens Heath,Catering Provisions,D20000,11/09/2014,39734548,574.04,Brake Bros Foodservice Ltd,9490
Solihull MBC,Children & Education Services,Dickens Heath,Catering Provisions,D20000,11/09/2014,39734548,112.00,Brake Bros Foodservice Ltd,9490
Solihull MBC,Adult Social Care,PD - Day Care Green Acres,Catering Provisions,D20000,19/09/2014,40013567,43.39,Brake Bros Foodservice Ltd,9490
Solihull MBC,Adult Social Care,PD - Day Care Green Acres,Catering Provisions,D20000,19/09/2014,40013567,256.61,Brake Bros Foodservice Ltd,9490
Solihull MBC,Adult Social Care,PD - Day Care Green Acres,Catering Provisions,D20000,19/09/2014,40013567,83.85,Brake Bros Foodservice Ltd,9490
Solihull MBC,Children & Education Services,C Bromwich Inf,Catering Provisions,D20000,11/09/2014,39734548,120.86,Brake Bros Foodservice Ltd,9490
Solihull MBC,Children & Education Services,Cheswick Green,Catering Provisions,D20000,30/09/2014,40211549,22.80,Brake Bros Foodservice Ltd,9490
Solihull MBC,Children & Education Services,Cheswick Green,Catering Provisions,D20000,30/09/2014,40211549,253.33,Brake Bros Foodservice Ltd,9490
Solihull MBC,Children & Education Services,Cheswick Green,Catering Provisions,D20000,25/09/2014,40106565,167.77,Brake Bros Foodservice Ltd,9490
Solihull MBC,Children & Education Services,Cheswick Green,Catering Provisions,D20000,25/09/2014,40106565,23.11,Brake Bros Foodservice Ltd,9490
Solihull MBC,Children & Education Services,Cheswick Green,Catering Provisions,D20000,18/09/2014,39984547,40.06,Brake Bros Foodservice Ltd,9490
Solihull MBC,Children & Education Services,Cheswick Green,Catering Provisions,D20000,18/09/2014,39984547,332.46,Brake Bros Foodservice Ltd,9490
Solihull MBC,Children & Education Services,Cheswick Green,Catering Provisions,D20000,18/09/2014,39984556,47.23,Brake Bros Foodservice Ltd,9490
Solihull MBC,Children & Education Services,Cheswick Green,Catering Provisions,D20000,11/09/2014,39735626,158.99,Brake Bros Foodservice Ltd,9490
Solihull MBC,Children & Education Services,Cheswick Green,Catering Provisions,D20000,11/09/2014,39735626,11.48,Brake Bros Foodservice Ltd,9490
Solihull MBC,Children & Education Services,Cheswick Green,Catering Provisions,D20000,11/09/2014,39734548,205.84,Brake Bros Foodservice Ltd,9490
Solihull MBC,Children & Education Services,Cheswick Green,Catering Provisions,D20000,11/09/2014,39734548,22.80,Brake Bros Foodservice Ltd,9490
Solihull MBC,Children & Education Services,Ulverley J&I,Catering Provisions,D20000,30/09/2014,40211549,22.80,Brake Bros Foodservice Ltd,9490
Solihull MBC,Children & Education Services,Ulverley J&I,Catering Provisions,D20000,30/09/2014,40211549,244.24,Brake Bros Foodservice Ltd,9490
Solihull MBC,Children & Education Services,Ulverley J&I,Catering Provisions,D20000,25/09/2014,40106565,353.09,Brake Bros Foodservice Ltd,9490
Solihull MBC,Children & Education Services,Ulverley J&I,Catering Provisions,D20000,25/09/2014,40106565,21.67,Brake Bros Foodservice Ltd,9490
Solihull MBC,Children & Education Services,Ulverley J&I,Catering Provisions,D20000,23/09/2014,40073624,371.17,Brake Bros Foodservice Ltd,9490
Solihull MBC,Children & Education Services,Ulverley J&I,Catering Provisions,D20000,18/09/2014,39984547,30.46,Brake Bros Foodservice Ltd,9490
Solihull MBC,Children & Education Services,Ulverley J&I,Catering Provisions,D20000,18/09/2014,39984547,447.42,Brake Bros Foodservice Ltd,9490
Solihull MBC,Children & Education Services,Ulverley J&I,Catering Provisions,D20000,18/09/2014,39984556,81.58,Brake Bros Foodservice Ltd,9490
Solihull MBC,Children & Education Services,Ulverley J&I,Catering Provisions,D20000,11/09/2014,39735626,95.68,Brake Bros Foodservice Ltd,9490
Solihull MBC,Children & Education Services,Ulverley J&I,Catering Provisions,D20000,11/09/2014,39735626,282.03,Brake Bros Foodservice Ltd,9490
Solihull MBC,Children & Education Services,Ulverley J&I,Catering Provisions,D20000,11/09/2014,39735626,10.19,Brake Bros Foodservice Ltd,9490
Solihull MBC,Children & Education Services,St Alphege Inf,Catering Provisions,D20000,30/09/2014,40211549,147.60,Brake Bros Foodservice Ltd,9490
Solihull MBC,Children & Education Services,St Alphege Inf,Catering Provisions,D20000,30/09/2014,40211549,11.40,Brake Bros Foodservice Ltd,9490
Solihull MBC,Children & Education Services,St Alphege Inf,Catering Provisions,D20000,25/09/2014,40106565,320.36,Brake Bros Foodservice Ltd,9490
Solihull MBC,Children & Education Services,St Alphege Inf,Catering Provisions,D20000,25/09/2014,40106565,33.16,Brake Bros Foodservice Ltd,9490
Solihull MBC,Children & Education Services,St Alphege Inf,Catering Provisions,D20000,23/09/2014,40073624,56.40,Brake Bros Foodservice Ltd,9490
Solihull MBC,Children & Education Services,St Alphege Inf,Catering Provisions,D20000,23/09/2014,40073624,162.12,Brake Bros Foodservice Ltd,9490
Solihull MBC,Children & Education Services,St Alphege Inf,Catering Provisions,D20000,18/09/2014,39984547,44.86,Brake Bros Foodservice Ltd,9490
Solihull MBC,Children & Education Services,St Alphege Inf,Catering Provisions,D20000,18/09/2014,39984547,307.45,Brake Bros Foodservice Ltd,9490
Solihull MBC,Children & Education Services,St Alphege Inf,Catering Provisions,D20000,18/09/2014,39984556,224.20,Brake Bros Foodservice Ltd,9490
Solihull MBC,Children & Education Services,St Alphege Inf,Catering Provisions,D20000,11/09/2014,39735626,66.10,Brake Bros Foodservice Ltd,9490
Solihull MBC,Children & Education Services,St Alphege Inf,Catering Provisions,D20000,11/09/2014,39735626,221.90,Brake Bros Foodservice Ltd,9490
Solihull MBC,Children & Education Services,St Alphege Inf,Catering Provisions,D20000,11/09/2014,39735626,33.16,Brake Bros Foodservice Ltd,9490
Solihull MBC,Children & Education Services,St Alphege Inf,Catering Provisions,D20000,11/09/2014,39734548,210.34,Brake Bros Foodservice Ltd,9490
Solihull MBC,Children & Education Services,St Alphege Inf,Catering Provisions,D20000,11/09/2014,39734548,22.80,Brake Bros Foodservice Ltd,9490
Solihull MBC,Children & Education Services,Daylesford Inf,Catering Provisions,D20000,25/09/2014,40106565,114.66,Brake Bros Foodservice Ltd,9490
Solihull MBC,Children & Education Services,Daylesford Inf,Catering Provisions,D20000,25/09/2014,40106565,14.57,Brake Bros Foodservice Ltd,9490
Solihull MBC,Children & Education Services,Daylesford Inf,Catering Provisions,D20000,23/09/2014,40073624,204.07,Brake Bros Foodservice Ltd,9490
Solihull MBC,Children & Education Services,Daylesford Inf,Catering Provisions,D20000,11/09/2014,39735626,99.95,Brake Bros Foodservice Ltd,9490
Solihull MBC,Children & Education Services,Dorridge Inf,Catering Provisions,D20000,25/09/2014,40106565,141.18,Brake Bros Foodservice Ltd,9490
Solihull MBC,Children & Education Services,Dorridge Inf,Catering Provisions,D20000,25/09/2014,40106565,173.08,Brake Bros Foodservice Ltd,9490
Solihull MBC,Children & Education Services,Dorridge Inf,Catering Provisions,D20000,25/09/2014,40106565,30.58,Brake Bros Foodservice Ltd,9490
Solihull MBC,Children & Education Services,Dorridge Inf,Catering Provisions,D20000,23/09/2014,40073624,17.40,Brake Bros Foodservice Ltd,9490
Solihull MBC,Children & Education Services,Dorridge Inf,Catering Provisions,D20000,23/09/2014,40073624,395.18,Brake Bros Foodservice Ltd,9490
Solihull MBC,Children & Education Services,Dorridge Inf,Catering Provisions,D20000,18/09/2014,39984547,33.60,Brake Bros Foodservice Ltd,9490
Solihull MBC,Children & Education Services,Dorridge Inf,Catering Provisions,D20000,18/09/2014,39984547,272.57,Brake Bros Foodservice Ltd,9490
Solihull MBC,Children & Education Services,Dorridge Inf,Catering Provisions,D20000,18/09/2014,39984547,157.75,Brake Bros Foodservice Ltd,9490
Solihull MBC,Children & Education Services,Dorridge Inf,Catering Provisions,D20000,11/09/2014,39735626,42.05,Brake Bros Foodservice Ltd,9490
Solihull MBC,Children & Education Services,Dorridge Inf,Catering Provisions,D20000,11/09/2014,39735626,272.13,Brake Bros Foodservice Ltd,9490
Solihull MBC,Children & Education Services,Dorridge Inf,Catering Provisions,D20000,11/09/2014,39735626,181.88,Brake Bros Foodservice Ltd,9490
Solihull MBC,Children & Education Services,Dorridge Inf,Catering Provisions,D20000,11/09/2014,39734548,263.10,Brake Bros Foodservice Ltd,9490
Solihull MBC,Children & Education Services,Dorridge Inf,Catering Provisions,D20000,11/09/2014,39734548,11.40,Brake Bros Foodservice Ltd,9490
Solihull MBC,Children & Education Services,Kineton Grn Inf,Catering Provisions,D20000,30/09/2014,40211549,146.66,Brake Bros Foodservice Ltd,9490
Solihull MBC,Children & Education Services,Kineton Grn Inf,Catering Provisions,D20000,25/09/2014,40106565,260.83,Brake Bros Foodservice Ltd,9490
Solihull MBC,Children & Education Services,Kineton Grn Inf,Catering Provisions,D20000,25/09/2014,40106565,20.40,Brake Bros Foodservice Ltd,9490
Solihull MBC,Children & Education Services,Kineton Grn Inf,Catering Provisions,D20000,18/09/2014,39984547,29.43,Brake Bros Foodservice Ltd,9490
Solihull MBC,Children & Education Services,Kineton Grn Inf,Catering Provisions,D20000,18/09/2014,39984547,240.77,Brake Bros Foodservice Ltd,9490
Solihull MBC,Children & Education Services,Kineton Grn Inf,Catering Provisions,D20000,18/09/2014,39984556,244.92,Brake Bros Foodservice Ltd,9490
Solihull MBC,Children & Education Services,Kineton Grn Inf,Catering Provisions,D20000,18/09/2014,39984556,79.20,Brake Bros Foodservice Ltd,9490
Solihull MBC,Children & Education Services,Kineton Grn Inf,Catering Provisions,D20000,11/09/2014,39735626,20.38,Brake Bros Foodservice Ltd,9490
Solihull MBC,Children & Education Services,Kineton Grn Inf,Catering Provisions,D20000,11/09/2014,39735626,233.69,Brake Bros Foodservice Ltd,9490
Solihull MBC,Children & Education Services,Kineton Grn Inf,Catering Provisions,D20000,11/09/2014,39734548,36.83,Brake Bros Foodservice Ltd,9490
Solihull MBC,Children & Education Services,Knowle Academy,Catering Provisions,D20000,18/09/2014,39984556,497.08,Brake Bros Foodservice Ltd,9490
Solihull MBC,Children & Education Services,Knowle Academy,Catering Provisions,D20000,18/09/2014,39984556,41.35,Brake Bros Foodservice Ltd,9490
Solihull MBC,Children & Education Services,Knowle Academy,Catering Provisions,D20000,11/09/2014,39735626,43.34,Brake Bros Foodservice Ltd,9490
Solihull MBC,Children & Education Services,Knowle Academy,Catering Provisions,D20000,11/09/2014,39735626,215.90,Brake Bros Foodservice Ltd,9490
Solihull MBC,Children & Education Services,Knowle Academy,Catering Provisions,D20000,11/09/2014,39735626,454.18,Brake Bros Foodservice Ltd,9490
Solihull MBC,Children & Education Services,Civic Suite Catering,Catering Provisions,D20000,30/09/2014,40211549,117.60,Brake Bros Foodservice Ltd,9490
Solihull MBC,Children & Education Services,Civic Suite Catering,Catering Provisions,D20000,30/09/2014,40211549,219.83,Brake Bros Foodservice Ltd,9490
Solihull MBC,Children & Education Services,Civic Suite Catering,Catering Provisions,D20000,25/09/2014,40106565,39.34,Brake Bros Foodservice Ltd,9490
Solihull MBC,Children & Education Services,Civic Suite Catering,Catering Provisions,D20000,25/09/2014,40106565,81.22,Brake Bros Foodservice Ltd,9490
Solihull MBC,Children & Education Services,Civic Suite Catering,Catering Provisions,D20000,23/09/2014,40073624,125.80,Brake Bros Foodservice Ltd,9490
Solihull MBC,Children & Education Services,Civic Suite Catering,Catering Provisions,D20000,23/09/2014,40073624,153.34,Brake Bros Foodservice Ltd,9490
Solihull MBC,Children & Education Services,Civic Suite Catering,Catering Provisions,D20000,18/09/2014,39984547,250.48,Brake Bros Foodservice Ltd,9490
Solihull MBC,Children & Education Services,Civic Suite Catering,Catering Provisions,D20000,18/09/2014,39984547,87.96,Brake Bros Foodservice Ltd,9490
Solihull MBC,Children & Education Services,Civic Suite Catering,Catering Provisions,D20000,18/09/2014,39984556,30.75,Brake Bros Foodservice Ltd,9490
Solihull MBC,Children & Education Services,Civic Suite Catering,Catering Provisions,D20000,18/09/2014,39984556,209.82,Brake Bros Foodservice Ltd,9490
Solihull MBC,Children & Education Services,Civic Suite Catering,Catering Provisions,D20000,15/09/2014,39868641,412.81,Brake Bros Foodservice Ltd,9490
Solihull MBC,Children & Education Services,Civic Suite Catering,Catering Provisions,D20000,11/09/2014,39735626,153.43,Brake Bros Foodservice Ltd,9490
Solihull MBC,Children & Education Services,Civic Suite Catering,Catering Provisions,D20000,11/09/2014,39735626,34.07,Brake Bros Foodservice Ltd,9490
Solihull MBC,Children & Education Services,Civic Suite Catering,Catering Provisions,D20000,11/09/2014,39735626,230.95,Brake Bros Foodservice Ltd,9490
Solihull MBC,Children & Education Services,Civic Suite Catering,Catering Provisions,D20000,11/09/2014,39737547,0.01,Brake Bros Foodservice Ltd,9490
Solihull MBC,Children & Education Services,Civic Suite Catering,Catering Provisions,D20000,11/09/2014,39737547,76.50,Brake Bros Foodservice Ltd,9490
Solihull MBC,Children & Education Services,Civic Suite Catering,Catering Provisions,D20000,11/09/2014,39737547,118.08,Brake Bros Foodservice Ltd,9490
Solihull MBC,Children & Education Services,Civic Suite Catering,Catering Provisions,D20000,11/09/2014,39737547,364.50,Brake Bros Foodservice Ltd,9490
Solihull MBC,Children & Education Services,Civic Suite Catering,Catering Provisions,D20000,11/09/2014,39734561,65.28,Brake Bros Foodservice Ltd,9490
Solihull MBC,Children & Education Services,Civic Suite Catering,Catering Provisions,D20000,11/09/2014,39734548,105.56,Brake Bros Foodservice Ltd,9490
Solihull MBC,Children & Education Services,Monkspath,Catering Provisions,D20000,25/09/2014,40106565,189.89,Brake Bros Foodservice Ltd,9490
Solihull MBC,Children & Education Services,Monkspath,Catering Provisions,D20000,25/09/2014,40106565,198.87,Brake Bros Foodservice Ltd,9490
Solihull MBC,Children & Education Services,Monkspath,Catering Provisions,D20000,25/09/2014,40106565,60.92,Brake Bros Foodservice Ltd,9490
Solihull MBC,Children & Education Services,Monkspath,Catering Provisions,D20000,25/09/2014,40106565,234.92,Brake Bros Foodservice Ltd,9490
Solihull MBC,Children & Education Services,Monkspath,Catering Provisions,D20000,23/09/2014,40073624,25.40,Brake Bros Foodservice Ltd,9490
Solihull MBC,Children & Education Services,Monkspath,Catering Provisions,D20000,23/09/2014,40073624,440.29,Brake Bros Foodservice Ltd,9490
Solihull MBC,Children & Education Services,Monkspath,Catering Provisions,D20000,18/09/2014,39984547,40.80,Brake Bros Foodservice Ltd,9490
Solihull MBC,Children & Education Services,Monkspath,Catering Provisions,D20000,18/09/2014,39984547,185.84,Brake Bros Foodservice Ltd,9490
Solihull MBC,Children & Education Services,Monkspath,Catering Provisions,D20000,18/09/2014,39984547,264.48,Brake Bros Foodservice Ltd,9490
Solihull MBC,Children & Education Services,Monkspath,Catering Provisions,D20000,18/09/2014,39984547,266.58,Brake Bros Foodservice Ltd,9490
Solihull MBC,Children & Education Services,Monkspath,Catering Provisions,D20000,18/09/2014,39984547,57.60,Brake Bros Foodservice Ltd,9490
Solihull MBC,Children & Education Services,Monkspath,Catering Provisions,D20000,11/09/2014,39735626,331.42,Brake Bros Foodservice Ltd,9490
Solihull MBC,Children & Education Services,Monkspath,Catering Provisions,D20000,11/09/2014,39735626,211.09,Brake Bros Foodservice Ltd,9490
Solihull MBC,Children & Education Services,Monkspath,Catering Provisions,D20000,11/09/2014,39735626,257.77,Brake Bros Foodservice Ltd,9490
Solihull MBC,Children & Education Services,Monkspath,Catering Provisions,D20000,11/09/2014,39734548,318.96,Brake Bros Foodservice Ltd,9490
Solihull MBC,Children & Education Services,Monkspath,Catering Provisions,D20000,11/09/2014,39734548,22.80,Brake Bros Foodservice Ltd,9490
Solihull MBC,Children & Education Services,C Bromwich Inf,Catering Provisions,D20000,30/09/2014,40211549,407.47,Brake Bros Foodservice Ltd,9490
Solihull MBC,Children & Education Services,C Bromwich Inf,Catering Provisions,D20000,25/09/2014,40106565,335.30,Brake Bros Foodservice Ltd,9490
Solihull MBC,Children & Education Services,C Bromwich Inf,Catering Provisions,D20000,25/09/2014,40106565,31.87,Brake Bros Foodservice Ltd,9490
Solihull MBC,Children & Education Services,C Bromwich Inf,Catering Provisions,D20000,18/09/2014,39984547,417.83,Brake Bros Foodservice Ltd,9490
Solihull MBC,Children & Education Services,C Bromwich Inf,Catering Provisions,D20000,18/09/2014,39984547,109.97,Brake Bros Foodservice Ltd,9490
Solihull MBC,Children & Education Services,C Bromwich Inf,Catering Provisions,D20000,18/09/2014,39984556,343.04,Brake Bros Foodservice Ltd,9490
Solihull MBC,Children & Education Services,C Bromwich Inf,Catering Provisions,D20000,18/09/2014,39984556,22.80,Brake Bros Foodservice Ltd,9490
Solihull MBC,Children & Education Services,C Bromwich Inf,Catering Provisions,D20000,11/09/2014,39735626,530.52,Brake Bros Foodservice Ltd,9490
Solihull MBC,Children & Education Services,C Bromwich Inf,Catering Provisions,D20000,11/09/2014,39735626,20.39,Brake Bros Foodservice Ltd,9490
Solihull MBC,Children & Education Services,Dorridge Jnr,Catering Provisions,D20000,30/09/2014,40211549,617.00,Brake Bros Foodservice Ltd,9490
Solihull MBC,Children & Education Services,Dorridge Jnr,Catering Provisions,D20000,25/09/2014,40106565,338.97,Brake Bros Foodservice Ltd,9490
Solihull MBC,Children & Education Services,Dorridge Jnr,Catering Provisions,D20000,25/09/2014,40106565,410.02,Brake Bros Foodservice Ltd,9490
Solihull MBC,Children & Education Services,Dorridge Jnr,Catering Provisions,D20000,25/09/2014,40106565,38.80,Brake Bros Foodservice Ltd,9490
Solihull MBC,Children & Education Services,Dorridge Jnr,Catering Provisions,D20000,18/09/2014,39984547,40.76,Brake Bros Foodservice Ltd,9490
Solihull MBC,Children & Education Services,Dorridge Jnr,Catering Provisions,D20000,18/09/2014,39984547,469.64,Brake Bros Foodservice Ltd,9490
Solihull MBC,Children & Education Services,Dorridge Jnr,Catering Provisions,D20000,18/09/2014,39984547,641.71,Brake Bros Foodservice Ltd,9490
Solihull MBC,Children & Education Services,Dorridge Jnr,Catering Provisions,D20000,18/09/2014,39984547,70.08,Brake Bros Foodservice Ltd,9490
Solihull MBC,Children & Education Services,Dorridge Jnr,Catering Provisions,D20000,18/09/2014,39984556,719.34,Brake Bros Foodservice Ltd,9490
Solihull MBC,Children & Education Services,Dorridge Jnr,Catering Provisions,D20000,18/09/2014,39984556,93.60,Brake Bros Foodservice Ltd,9490
Solihull MBC,Children & Education Services,Dorridge Jnr,Catering Provisions,D20000,11/09/2014,39735626,374.07,Brake Bros Foodservice Ltd,9490
Solihull MBC,Children & Education Services,Dorridge Jnr,Catering Provisions,D20000,11/09/2014,39735626,6.14,Brake Bros Foodservice Ltd,9490
Solihull MBC,Children & Education Services,Dorridge Jnr,Catering Provisions,D20000,11/09/2014,39735626,443.08,Brake Bros Foodservice Ltd,9490
Solihull MBC,Children & Education Services,Dorridge Jnr,Catering Provisions,D20000,11/09/2014,39735626,16.33,Brake Bros Foodservice Ltd,9490
Solihull MBC,Children & Education Services,Dorridge Jnr,Catering Provisions,D20000,11/09/2014,39734548,56.95,Brake Bros Foodservice Ltd,9490
Solihull MBC,Children & Education Services,Dorridge Jnr,Catering Provisions,D20000,11/09/2014,39734548,117.48,Brake Bros Foodservice Ltd,9490
Solihull MBC,Children & Education Services,St Margaret's,Catering Provisions,D20000,25/09/2014,40106565,217.98,Brake Bros Foodservice Ltd,9490
Solihull MBC,Children & Education Services,St Margaret's,Catering Provisions,D20000,23/09/2014,40073624,9.62,Brake Bros Foodservice Ltd,9490
Solihull MBC,Children & Education Services,St Margaret's,Catering Provisions,D20000,23/09/2014,40073624,50.60,Brake Bros Foodservice Ltd,9490
Solihull MBC,Children & Education Services,St Margaret's,Catering Provisions,D20000,23/09/2014,40073624,201.74,Brake Bros Foodservice Ltd,9490
Solihull MBC,Children & Education Services,St Margaret's,Catering Provisions,D20000,18/09/2014,39984547,44.86,Brake Bros Foodservice Ltd,9490
Solihull MBC,Children & Education Services,St Margaret's,Catering Provisions,D20000,18/09/2014,39984547,301.70,Brake Bros Foodservice Ltd,9490
Solihull MBC,Children & Education Services,St Margaret's,Catering Provisions,D20000,11/09/2014,39735626,184.13,Brake Bros Foodservice Ltd,9490
Solihull MBC,Children & Education Services,St Margaret's,Catering Provisions,D20000,11/09/2014,39735626,20.40,Brake Bros Foodservice Ltd,9490
Solihull MBC,Children & Education Services,St Margaret's,Catering Provisions,D20000,11/09/2014,39734548,97.30,Brake Bros Foodservice Ltd,9490
Solihull MBC,Children & Education Services,St Margaret's,Catering Provisions,D20000,11/09/2014,39734548,127.16,Brake Bros Foodservice Ltd,9490
Solihull MBC,Children & Education Services,Knowle Academy,Catering Provisions,D20000,30/09/2014,40211549,36.70,Brake Bros Foodservice Ltd,9490
Solihull MBC,Children & Education Services,Knowle Academy,Catering Provisions,D20000,30/09/2014,40211549,283.41,Brake Bros Foodservice Ltd,9490
Solihull MBC,Children & Education Services,Knowle Academy,Catering Provisions,D20000,25/09/2014,40106565,43.36,Brake Bros Foodservice Ltd,9490
Solihull MBC,Children & Education Services,Knowle Academy,Catering Provisions,D20000,25/09/2014,40106565,213.13,Brake Bros Foodservice Ltd,9490
Solihull MBC,Children & Education Services,Knowle Academy,Catering Provisions,D20000,25/09/2014,40106565,253.70,Brake Bros Foodservice Ltd,9490
Solihull MBC,Children & Education Services,Knowle Academy,Catering Provisions,D20000,23/09/2014,40073624,0.02,Brake Bros Foodservice Ltd,9490
Solihull MBC,Children & Education Services,Knowle Academy,Catering Provisions,D20000,23/09/2014,40073624,18.35,Brake Bros Foodservice Ltd,9490
Solihull MBC,Children & Education Services,Knowle Academy,Catering Provisions,D20000,23/09/2014,40073624,238.40,Brake Bros Foodservice Ltd,9490
Solihull MBC,Children & Education Services,Knowle Academy,Catering Provisions,D20000,18/09/2014,39984547,20.04,Brake Bros Foodservice Ltd,9490
Solihull MBC,Children & Education Services,Knowle Academy,Catering Provisions,D20000,18/09/2014,39984547,264.26,Brake Bros Foodservice Ltd,9490
Solihull MBC,Children & Education Services,Knowle Academy,Catering Provisions,D20000,18/09/2014,39984547,341.26,Brake Bros Foodservice Ltd,9490
Solihull MBC,Children & Education Services,Meadow Green School,Catering Provisions,D20000,30/09/2014,40211549,169.14,Brake Bros Foodservice Ltd,9490
Solihull MBC,Children & Education Services,Meadow Green School,Catering Provisions,D20000,30/09/2014,40211549,11.40,Brake Bros Foodservice Ltd,9490
Solihull MBC,Children & Education Services,Meadow Green School,Catering Provisions,D20000,23/09/2014,40073624,11.40,Brake Bros Foodservice Ltd,9490
Solihull MBC,Children & Education Services,Meadow Green School,Catering Provisions,D20000,23/09/2014,40073624,83.81,Brake Bros Foodservice Ltd,9490
Solihull MBC,Children & Education Services,Meadow Green School,Catering Provisions,D20000,18/09/2014,39984556,116.91,Brake Bros Foodservice Ltd,9490
Solihull MBC,Children & Education Services,Meadow Green School,Catering Provisions,D20000,11/09/2014,39734548,30.05,Brake Bros Foodservice Ltd,9490
Solihull MBC,Children & Education Services,Meadow Green School,Catering Provisions,D20000,11/09/2014,39734548,771.25,Brake Bros Foodservice Ltd,9490
Solihull MBC,Children & Education Services,Blossomfield Inf,Catering Provisions,D20000,30/09/2014,40211549,133.20,Brake Bros Foodservice Ltd,9490
Solihull MBC,Children & Education Services,Blossomfield Inf,Catering Provisions,D20000,30/09/2014,40211549,11.40,Brake Bros Foodservice Ltd,9490
Solihull MBC,Children & Education Services,Blossomfield Inf,Catering Provisions,D20000,25/09/2014,40106565,136.35,Brake Bros Foodservice Ltd,9490
Solihull MBC,Children & Education Services,Blossomfield Inf,Catering Provisions,D20000,25/09/2014,40106565,158.53,Brake Bros Foodservice Ltd,9490
Solihull MBC,Children & Education Services,Blossomfield Inf,Catering Provisions,D20000,25/09/2014,40106565,20.39,Brake Bros Foodservice Ltd,9490
Solihull MBC,Children & Education Services,Blossomfield Inf,Catering Provisions,D20000,18/09/2014,39984547,10.02,Brake Bros Foodservice Ltd,9490
Solihull MBC,Children & Education Services,Blossomfield Inf,Catering Provisions,D20000,18/09/2014,39984547,30.46,Brake Bros Foodservice Ltd,9490
Solihull MBC,Children & Education Services,Blossomfield Inf,Catering Provisions,D20000,18/09/2014,39984547,206.17,Brake Bros Foodservice Ltd,9490
Solihull MBC,Children & Education Services,Blossomfield Inf,Catering Provisions,D20000,18/09/2014,39984547,208.90,Brake Bros Foodservice Ltd,9490
Solihull MBC,Children & Education Services,Blossomfield Inf,Catering Provisions,D20000,18/09/2014,39984556,275.27,Brake Bros Foodservice Ltd,9490
Solihull MBC,Children & Education Services,Blossomfield Inf,Catering Provisions,D20000,18/09/2014,39984556,11.40,Brake Bros Foodservice Ltd,9490
Solihull MBC,Children & Education Services,Blossomfield Inf,Catering Provisions,D20000,11/09/2014,39735626,119.78,Brake Bros Foodservice Ltd,9490
Solihull MBC,Children & Education Services,Blossomfield Inf,Catering Provisions,D20000,11/09/2014,39735626,10.20,Brake Bros Foodservice Ltd,9490
Solihull MBC,Children & Education Services,St Anne's J&I,Catering Provisions,D20000,25/09/2014,40106565,5.01,Brake Bros Foodservice Ltd,9490
Solihull MBC,Children & Education Services,St Anne's J&I,Catering Provisions,D20000,25/09/2014,40106565,155.39,Brake Bros Foodservice Ltd,9490
Solihull MBC,Children & Education Services,St Anne's J&I,Catering Provisions,D20000,25/09/2014,40106565,205.71,Brake Bros Foodservice Ltd,9490
Solihull MBC,Children & Education Services,St Anne's J&I,Catering Provisions,D20000,23/09/2014,40073624,388.68,Brake Bros Foodservice Ltd,9490
Solihull MBC,Children & Education Services,St Anne's J&I,Catering Provisions,D20000,23/09/2014,40073624,70.45,Brake Bros Foodservice Ltd,9490
Solihull MBC,Children & Education Services,St Anne's J&I,Catering Provisions,D20000,18/09/2014,39984547,49.66,Brake Bros Foodservice Ltd,9490
Solihull MBC,Children & Education Services,St Anne's J&I,Catering Provisions,D20000,18/09/2014,39984547,249.39,Brake Bros Foodservice Ltd,9490
Solihull MBC,Children & Education Services,St Anne's J&I,Catering Provisions,D20000,18/09/2014,39984547,293.81,Brake Bros Foodservice Ltd,9490
Solihull MBC,Children & Education Services,St Anne's J&I,Catering Provisions,D20000,11/09/2014,39735626,369.54,Brake Bros Foodservice Ltd,9490
Solihull MBC,Children & Education Services,St Anne's J&I,Catering Provisions,D20000,11/09/2014,39735626,205.97,Brake Bros Foodservice Ltd,9490
Solihull MBC,Children & Education Services,St Anne's J&I,Catering Provisions,D20000,11/09/2014,39735626,30.57,Brake Bros Foodservice Ltd,9490
Solihull MBC,Children & Education Services,St Anne's J&I,Catering Provisions,D20000,11/09/2014,39734548,444.85,Brake Bros Foodservice Ltd,9490
Solihull MBC,Children & Education Services,St Anne's J&I,Catering Provisions,D20000,11/09/2014,39734548,22.80,Brake Bros Foodservice Ltd,9490
Solihull MBC,Children & Education Services,St Augustine's J&I,Catering Provisions,D20000,25/09/2014,40106565,245.14,Brake Bros Foodservice Ltd,9490
Solihull MBC,Children & Education Services,St Augustine's J&I,Catering Provisions,D20000,25/09/2014,40106565,16.66,Brake Bros Foodservice Ltd,9490
Solihull MBC,Children & Education Services,St Augustine's J&I,Catering Provisions,D20000,23/09/2014,40073624,27.40,Brake Bros Foodservice Ltd,9490
Solihull MBC,Children & Education Services,St Augustine's J&I,Catering Provisions,D20000,23/09/2014,40073624,183.65,Brake Bros Foodservice Ltd,9490
Solihull MBC,Children & Education Services,St Augustine's J&I,Catering Provisions,D20000,18/09/2014,39984547,30.46,Brake Bros Foodservice Ltd,9490
Solihull MBC,Children & Education Services,St Augustine's J&I,Catering Provisions,D20000,18/09/2014,39984547,218.31,Brake Bros Foodservice Ltd,9490
Solihull MBC,Children & Education Services,St Augustine's J&I,Catering Provisions,D20000,11/09/2014,39735626,10.02,Brake Bros Foodservice Ltd,9490
Solihull MBC,Children & Education Services,St Augustine's J&I,Catering Provisions,D20000,11/09/2014,39735626,247.78,Brake Bros Foodservice Ltd,9490
Solihull MBC,Children & Education Services,St Augustine's J&I,Catering Provisions,D20000,11/09/2014,39735625,10.19,Brake Bros Foodservice Ltd,9490
Solihull MBC,Children & Education Services,St Augustine's J&I,Catering Provisions,D20000,11/09/2014,39735625,351.55,Brake Bros Foodservice Ltd,9490
Solihull MBC,Children & Education Services,St Augustine's J&I,Catering Provisions,D20000,11/09/2014,39734548,127.94,Brake Bros Foodservice Ltd,9490
Solihull MBC,Children & Education Services,Dorridge Jnr,Catering Provisions,D20000,30/09/2014,40211549,94.20,Brake Bros Foodservice Ltd,9490
Solihull MBC,Children & Education Services,Lode Heath Academy,Catering Provisions,D20000,30/09/2014,40211549,264.75,Brake Bros Foodservice Ltd,9490
Solihull MBC,Children & Education Services,Lode Heath Academy,Catering Provisions,D20000,30/09/2014,40211549,778.80,Brake Bros Foodservice Ltd,9490
Solihull MBC,Children & Education Services,Lode Heath Academy,Catering Provisions,D20000,25/09/2014,40106565,134.36,Brake Bros Foodservice Ltd,9490
Solihull MBC,Children & Education Services,Lode Heath Academy,Catering Provisions,D20000,25/09/2014,40106565,195.14,Brake Bros Foodservice Ltd,9490
Solihull MBC,Children & Education Services,Lode Heath Academy,Catering Provisions,D20000,25/09/2014,40106565,192.24,Brake Bros Foodservice Ltd,9490
Solihull MBC,Children & Education Services,Lode Heath Academy,Catering Provisions,D20000,25/09/2014,40106565,19.02,Brake Bros Foodservice Ltd,9490
Solihull MBC,Children & Education Services,Lode Heath Academy,Catering Provisions,D20000,23/09/2014,40073624,495.20,Brake Bros Foodservice Ltd,9490
Solihull MBC,Children & Education Services,Lode Heath Academy,Catering Provisions,D20000,23/09/2014,40073624,654.68,Brake Bros Foodservice Ltd,9490
Solihull MBC,Children & Education Services,Lode Heath Academy,Catering Provisions,D20000,23/09/2014,40073624,760.50,Brake Bros Foodservice Ltd,9490
Solihull MBC,Children & Education Services,Lode Heath Academy,Catering Provisions,D20000,23/09/2014,40073624,220.61,Brake Bros Foodservice Ltd,9490
Solihull MBC,Children & Education Services,Lode Heath Academy,Catering Provisions,D20000,18/09/2014,39984547,27.60,Brake Bros Foodservice Ltd,9490
Solihull MBC,Children & Education Services,Lode Heath Academy,Catering Provisions,D20000,18/09/2014,39984547,208.93,Brake Bros Foodservice Ltd,9490
Solihull MBC,Children & Education Services,Lode Heath Academy,Catering Provisions,D20000,18/09/2014,39984547,98.39,Brake Bros Foodservice Ltd,9490
Solihull MBC,Children & Education Services,Lode Heath Academy,Catering Provisions,D20000,18/09/2014,39984556,497.00,Brake Bros Foodservice Ltd,9490
Solihull MBC,Children & Education Services,Lode Heath Academy,Catering Provisions,D20000,18/09/2014,39984556,882.32,Brake Bros Foodservice Ltd,9490
Solihull MBC,Children & Education Services,Lode Heath Academy,Catering Provisions,D20000,11/09/2014,39735626,277.80,Brake Bros Foodservice Ltd,9490
Solihull MBC,Children & Education Services,Lode Heath Academy,Catering Provisions,D20000,11/09/2014,39735625,33.62,Brake Bros Foodservice Ltd,9490
Solihull MBC,Children & Education Services,Lode Heath Academy,Catering Provisions,D20000,11/09/2014,39735625,68.24,Brake Bros Foodservice Ltd,9490
Solihull MBC,Children & Education Services,Lode Heath Academy,Catering Provisions,D20000,11/09/2014,39735625,371.08,Brake Bros Foodservice Ltd,9490
Solihull MBC,Children & Education Services,Lode Heath Academy,Catering Provisions,D20000,11/09/2014,39734561,303.55,Brake Bros Foodservice Ltd,9490
Solihull MBC,Children & Education Services,Lode Heath Academy,Catering Provisions,D20000,11/09/2014,39734561,728.51,Brake Bros Foodservice Ltd,9490
Solihull MBC,Children & Education Services,Balsall Common Academy,Catering Provisions,D20000,30/09/2014,40211549,51.08,Brake Bros Foodservice Ltd,9490
Solihull MBC,Children & Education Services,Balsall Common Academy,Catering Provisions,D20000,30/09/2014,40211549,314.43,Brake Bros Foodservice Ltd,9490
Solihull MBC,Children & Education Services,Balsall Common Academy,Catering Provisions,D20000,30/09/2014,40211549,11.40,Brake Bros Foodservice Ltd,9490
